Workbook

Sheet Mutual Fund 1
B1: Units at Beginning of Period | C1: 1 | D1: DEFAULT EXCHANGE RATES ARE INDIAN RUPEES TO ONE DOLLAR, AS PER WWW.X-RATES.COM ON 12/31 OF EACH YEAR. CHANGE ACCORDINGLY FOR YOUR COUNTRY. ALL NUMERICAL FIELDS IN BLUE ARE CHANGEABLE BY YOU. FUTURE YEARS HAVE DUMMY VALUES. IF YOUR FUND HAS DIVIDENDS WHICH ARE REINVESTED, TREAT EACH BATCH OF UNITS NEWLY BOUGHT BY REINVESTED DIVIDENDS AS A NEW MUTUAL FUND TO PROPERLY KEEP TRACK OF THE COST BASIS OF THOSE REINVESTED DIVIDENDS. FILL FUND NAME AND STUFF IN ROW "A" AT BOTTOM OF SHEET.
C2: 2003 | D2: 2004 | E2: 2005 | F2: 2006 | G2: 2007 | H2: 2008 | I2: 2009 | J2: 2010 | K2: 2011 | L2: 2012 | M2: 2013 | N2: 2014 | O2: 2015 | P2: 2016 | Q2: 2017 | R2: 2018 | S2: 2019 | T2: 2020
A3: =A47 -> Mutual Fund Name (Enter in A47) | B3: Exc Rate 12/31 | C3: 45.55 | D3: 43.27 | E3: 44.95 | F3: 44.11 | G3: 39.37 | H3: 48.58 | I3: 46.41 | J3: 44.7 | K3: 53.061002 | L3: 54.850973 | M3: 61.859005 | N3: 65 | O3: 75 | P3: 85 | Q3: 95 | R3: 105 | S3: 115 | T3: 125
A5: Year | B5: Highest NAV Per Unit During Calendar Year (01-01-xx to 12-31-xx) | C5: Highest Value of Fund in Calendar Year (01-01-xx to 12-31-xx) | D5: NAV Per Unit on Opening of First Business Day of Current Year (Jan) | E5: Total Nav on First Business Day of Current Year | F5: NAV (FMV) Per Unit on at Close of Last Business Day of Year, or SALE PRICE per UNIT (Dec) | G5: Total Nav Last business day of Year | H5: Adjusted Basis at EOY (or Sale Price) | I5: Section 1296 MTM (Mark to Market) Gain for the Tax Year | J5: Cumulative Net (MTM) Gains (afer unrealized loss for year deducted) | K5: Unrealized Loss for year | L5: Deductible Loss for Year (Unreversed Inclusion) (Ordinary Loss Allowed Up to Prior MTM Gain) | M5: Potential Capital Gain/Loss (if any) | N5: Mutual Fund Sold?
A6: =C2 -> 2003 | B6: 0 | C6: =B6*$C$1 -> 0 | D6: 1616 | E6: =D6*$C$1 -> 1616 | F6: 3291 | G6: =F6*$C$1 -> 3291 | H6: =IF(G6>=E6,G6,IF(G6<E6,IF(G6<$E$6,$E$6,G6),"ERROR")) -> 3291 | I6: =IF(N6="NO",IF((G6-E6)>=0,G6-E6,0),"SOLD") -> 1675 | J6: =IF(N6="Yes","SOLD",I6) -> 1675 | K6: =IF(N6="Yes","SOLD",IF(G6-E6<0,G6-E6,0)) -> 0 | L6: =IF(N6="Yes","SOLD",IF(-K6>J6,-J6,K6)) -> 0 | M6: =IF(N6="Yes",H6-E6,IF(G6-$E$6<0,G6-$E$6,0)) -> 0 | N6: =IF(O6=FALSE,"NO",IF(O6=TRUE,"YES","NO")) -> NO | O6: FALSE
A7: =D2 -> 2004 | B7: 27.85 | C7: =B7*$C$1 -> 27.85 | D7: =G6 -> 3291 | E7: =D7*$C$1 -> 3291 | F7: 4389 | G7: =F7*$C$1 -> 4389 | H7: =IF(OR(H6="---",N6="Yes"),"---",IF(G7>=E7,G7,IF(G7<E7,IF(G7<$E$6,$E$6,G7),"ERROR"))) -> 4389 | I7: =IF(OR(I6="---",N6="Yes"),"---",IF(N7="NO",IF((G7-H6)>=0,G7-H6,0),"SOLD")) -> 1098 | J7: =IF(OR(J6="---",N6="Yes"),"---",IF(N7="No",J6+I7+L7,"CUM NET MTM IN ADJ BASIS")) -> 2773 | K7: =IF(OR(K6="---",N6="Yes"),"---",IF(N7="YES","SOLD",IF(G7-H6<0,G7-H6,0))) -> 0 | L7: =IF(OR(L6="---",N6="Yes"),"---",IF(N7="Yes","SOLD",IF(-K7>J6,-J6,K7))) -> 0 | M7: =IF(OR(M6="---",N6="Yes"),"---",IF(N7="Yes",G7-H6,IF(G7-$E$6<0,G7-$E$6,0))) -> 0 | N7: =IF(O7=FALSE,"NO",IF(O7=TRUE,"YES","NO")) -> NO | O7: FALSE
A8: =E2 -> 2005 | B8: 36.55 | C8: 36.55 | D8: =G7 -> 4389 | E8: 4389 | F8: 2823 | G8: 2823 | H8: =IF(OR(H7="---",N7="Yes"),"---",IF(G8>=E8,G8,IF(G8<E8,IF(G8<$E$6,$E$6,G8),"ERROR"))) -> 2823 | I8: =IF(OR(I7="---",N7="Yes"),"---",IF(N8="NO",IF((G8-H7)>=0,G8-H7,0),"SOLD")) -> 0 | J8: =IF(OR(J7="---",N7="Yes"),"---",IF(N8="No",J7+I8+L8,"CUM NET MTM IN ADJ BASIS")) -> 1207 | K8: =IF(OR(K7="---",N7="Yes"),"---",IF(N8="YES","SOLD",IF(G8-H7<0,G8-H7,0))) -> -1566 | L8: =IF(OR(L7="---",N7="Yes"),"---",IF(N8="Yes","SOLD",IF(-K8>J7,-J7,K8))) -> -1566 | M8: =IF(OR(M7="---",N7="Yes"),"---",IF(N8="Yes",G8-H7,IF(G8-$E$6<0,G8-$E$6,0))) -> 0 | N8: NO | O8: FALSE
A9: =F2 -> 2006 | B9: 49.57 | C9: 49.57 | D9: 2823 | E9: 2823 | F9: 3507 | G9: 3507 | H9: =IF(OR(H8="---",N8="Yes"),"---",IF(G9>=E9,G9,IF(G9<E9,IF(G9<$E$6,$E$6,G9),"ERROR"))) -> 3507 | I9: =IF(OR(I8="---",N8="Yes"),"---",IF(N9="NO",IF((G9-H8)>=0,G9-H8,0),"SOLD")) -> 684 | J9: 1891 | K9: =IF(OR(K8="---",N8="Yes"),"---",IF(N9="YES","SOLD",IF(G9-H8<0,G9-H8,0))) -> 0 | L9: 0 | M9: =IF(OR(M8="---",N8="Yes"),"---",IF(N9="Yes",G9-H8,IF(G9-$E$6<0,G9-$E$6,0))) -> 0 | N9: NO | O9: FALSE
A10: =G2 -> 2007 | B10: 76.64 | C10: 76.64 | D10: 3507 | E10: 3507 | F10: 3300 | G10: 3300 | H10: =IF(OR(H9="---",N9="Yes"),"---",IF(G10>=E10,G10,IF(G10<E10,IF(G10<$E$6,$E$6,G10),"ERROR"))) -> 3300 | I10: =IF(OR(I9="---",N9="Yes"),"---",IF(N10="NO",IF((G10-H9)>=0,G10-H9,0),"SOLD")) -> 0 | J10: 1684 | K10: =IF(OR(K9="---",N9="Yes"),"---",IF(N10="YES","SOLD",IF(G10-H9<0,G10-H9,0))) -> -207 | L10: -207 | M10: =IF(OR(M9="---",N9="Yes"),"---",IF(N10="Yes",G10-H9,IF(G10-$E$6<0,G10-$E$6,0))) -> 0 | N10: NO | O10: FALSE
A11: =H2 -> 2008 | B11: 78.91 | C11: 78.91 | D11: 3300 | E11: 3300 | F11: 2500 | G11: 2500 | H11: =IF(OR(H10="---",N10="Yes"),"---",IF(G11>=E11,G11,IF(G11<E11,IF(G11<$E$6,$E$6,G11),"ERROR"))) -> 2500 | I11: =IF(OR(I10="---",N10="Yes"),"---",IF(N11="NO",IF((G11-H10)>=0,G11-H10,0),"SOLD")) -> 0 | J11: 884 | K11: =IF(OR(K10="---",N10="Yes"),"---",IF(N11="YES","SOLD",IF(G11-H10<0,G11-H10,0))) -> -800 | L11: -800 | M11: =IF(OR(M10="---",N10="Yes"),"---",IF(N11="Yes",G11-H10,IF(G11-$E$6<0,G11-$E$6,0))) -> 0 | N11: NO | O11: FALSE
A12: =I2 -> 2009 | B12: 74.58 | C12: 74.58 | D12: 2500 | E12: 2500 | F12: 2600 | G12: 2600 | H12: =IF(OR(H11="---",N11="Yes"),"---",IF(G12>=E12,G12,IF(G12<E12,IF(G12<$E$6,$E$6,G12),"ERROR"))) -> 2600 | I12: =IF(OR(I11="---",N11="Yes"),"---",IF(N12="NO",IF((G12-H11)>=0,G12-H11,0),"SOLD")) -> 100 | J12: 984 | K12: =IF(OR(K11="---",N11="Yes"),"---",IF(N12="YES","SOLD",IF(G12-H11<0,G12-H11,0))) -> 0 | L12: 0 | M12: =IF(OR(M11="---",N11="Yes"),"---",IF(N12="Yes",G12-H11,IF(G12-$E$6<0,G12-$E$6,0))) -> 0 | N12: NO | O12: FALSE
A13: =J2 -> 2010 | B13: 89.39 | C13: 89.39 | D13: 2600 | E13: 2600 | F13: 800 | G13: 800 | H13: =IF(OR(H12="---",N12="Yes"),"---",IF(G13>=E13,G13,IF(G13<E13,IF(G13<$E$6,$E$6,G13),"ERROR"))) -> 1616 | I13: =IF(OR(I12="---",N12="Yes"),"---",IF(N13="NO",IF((G13-H12)>=0,G13-H12,0),"SOLD")) -> 0 | J13: 0 | K13: =IF(OR(K12="---",N12="Yes"),"---",IF(N13="YES","SOLD",IF(G13-H12<0,G13-H12,0))) -> -1800 | L13: -984 | M13: =IF(OR(M12="---",N12="Yes"),"---",IF(N13="Yes",G13-H12,IF(G13-$E$6<0,G13-$E$6,0))) -> -816 | N13: NO | O13: FALSE
A14: =K2 -> 2011 | B14: 90.39 | C14: =B14*$C$1 -> 90.39 | D14: =G13 -> 800 | E14: =D14*$C$1 -> 800 | F14: 801 | G14: =F14*$C$1 -> 801 | H14: =IF(OR(H13="---",N13="Yes"),"---",IF(G14>=E14,G14,IF(G14<E14,IF(G14<$E$6,$E$6,G14),"ERROR"))) -> 801 | I14: =IF(OR(I13="---",N13="Yes"),"---",IF(N14="NO",IF((G14-H13)>=0,G14-H13,0),"SOLD")) -> 0 | J14: =IF(OR(J13="---",N13="Yes"),"---",IF(N14="No",J13+I14+L14,"CUM NET MTM IN ADJ BASIS")) -> 0 | K14: =IF(OR(K13="---",N13="Yes"),"---",IF(N14="YES","SOLD",IF(G14-H13<0,G14-H13,0))) -> -815 | L14: 0 | M14: =IF(OR(M13="---",N13="Yes"),"---",IF(N14="Yes",G14-H13,IF(G14-$E$6<0,G14-$E$6,0))) -> -815 | N14: NO | O14: FALSE
A15: =L2 -> 2012 | B15: 91.39 | C15: 91.39 | D15: 801 | E15: 801 | F15: 802 | G15: 802 | H15: =IF(OR(H14="---",N14="Yes"),"---",IF(G15>=E15,G15,IF(G15<E15,IF(G15<$E$6,$E$6,G15),"ERROR"))) -> 802 | I15: =IF(OR(I14="---",N14="Yes"),"---",IF(N15="NO",IF((G15-H14)>=0,G15-H14,0),"SOLD")) -> 1 | J15: 1 | K15: =IF(OR(K14="---",N14="Yes"),"---",IF(N15="YES","SOLD",IF(G15-H14<0,G15-H14,0))) -> 0 | L15: 0 | M15: =IF(OR(M14="---",N14="Yes"),"---",IF(N15="Yes",G15-H14,IF(G15-$E$6<0,G15-$E$6,0))) -> -814 | N15: NO | O15: FALSE
A16: =M2 -> 2013 | B16: 92.39 | C16: 92.39 | D16: 802 | E16: 802 | F16: 803 | G16: 803 | H16: =IF(OR(H15="---",N15="Yes"),"---",IF(G16>=E16,G16,IF(G16<E16,IF(G16<$E$6,$E$6,G16),"ERROR"))) -> 803 | I16: =IF(OR(I15="---",N15="Yes"),"---",IF(N16="NO",IF((G16-H15)>=0,G16-H15,0),"SOLD")) -> 1 | J16: 2 | K16: =IF(OR(K15="---",N15="Yes"),"---",IF(N16="YES","SOLD",IF(G16-H15<0,G16-H15,0))) -> 0 | L16: 0 | M16: =IF(OR(M15="---",N15="Yes"),"---",IF(N16="Yes",G16-H15,IF(G16-$E$6<0,G16-$E$6,0))) -> -813 | N16: NO | O16: FALSE
A17: =N2 -> 2014 | B17: 93.39 | C17: 93.39 | D17: 803 | E17: 803 | F17: 804 | G17: 804 | H17: =IF(OR(H16="---",N16="Yes"),"---",IF(G17>=E17,G17,IF(G17<E17,IF(G17<$E$6,$E$6,G17),"ERROR"))) -> 804 | I17: =IF(OR(I16="---",N16="Yes"),"---",IF(N17="NO",IF((G17-H16)>=0,G17-H16,0),"SOLD")) -> 1 | J17: 3 | K17: =IF(OR(K16="---",N16="Yes"),"---",IF(N17="YES","SOLD",IF(G17-H16<0,G17-H16,0))) -> 0 | L17: 0 | M17: =IF(OR(M16="---",N16="Yes"),"---",IF(N17="Yes",G17-H16,IF(G17-$E$6<0,G17-$E$6,0))) -> -812 | N17: NO | O17: FALSE
A18: =O2 -> 2015 | B18: 94.39 | C18: 94.39 | D18: 804 | E18: 804 | F18: 805 | G18: 805 | H18: =IF(OR(H17="---",N17="Yes"),"---",IF(G18>=E18,G18,IF(G18<E18,IF(G18<$E$6,$E$6,G18),"ERROR"))) -> 805 | I18: =IF(OR(I17="---",N17="Yes"),"---",IF(N18="NO",IF((G18-H17)>=0,G18-H17,0),"SOLD")) -> 1 | J18: 4 | K18: =IF(OR(K17="---",N17="Yes"),"---",IF(N18="YES","SOLD",IF(G18-H17<0,G18-H17,0))) -> 0 | L18: 0 | M18: =IF(OR(M17="---",N17="Yes"),"---",IF(N18="Yes",G18-H17,IF(G18-$E$6<0,G18-$E$6,0))) -> -811 | N18: NO | O18: FALSE
A19: =P2 -> 2016 | B19: 95.39 | C19: 95.39 | D19: 805 | E19: 805 | F19: 806 | G19: 806 | H19: =IF(OR(H18="---",N18="Yes"),"---",IF(G19>=E19,G19,IF(G19<E19,IF(G19<$E$6,$E$6,G19),"ERROR"))) -> 806 | I19: =IF(OR(I18="---",N18="Yes"),"---",IF(N19="NO",IF((G19-H18)>=0,G19-H18,0),"SOLD")) -> 1 | J19: 5 | K19: =IF(OR(K18="---",N18="Yes"),"---",IF(N19="YES","SOLD",IF(G19-H18<0,G19-H18,0))) -> 0 | L19: 0 | M19: =IF(OR(M18="---",N18="Yes"),"---",IF(N19="Yes",G19-H18,IF(G19-$E$6<0,G19-$E$6,0))) -> -810 | N19: NO | O19: FALSE
A20: =Q2 -> 2017 | B20: 96.39 | C20: 96.39 | D20: 806 | E20: 806 | F20: 807 | G20: 807 | H20: =IF(OR(H19="---",N19="Yes"),"---",IF(G20>=E20,G20,IF(G20<E20,IF(G20<$E$6,$E$6,G20),"ERROR"))) -> 807 | I20: =IF(OR(I19="---",N19="Yes"),"---",IF(N20="NO",IF((G20-H19)>=0,G20-H19,0),"SOLD")) -> 1 | J20: 6 | K20: =IF(OR(K19="---",N19="Yes"),"---",IF(N20="YES","SOLD",IF(G20-H19<0,G20-H19,0))) -> 0 | L20: 0 | M20: =IF(OR(M19="---",N19="Yes"),"---",IF(N20="Yes",G20-H19,IF(G20-$E$6<0,G20-$E$6,0))) -> -809 | N20: NO | O20: FALSE
A21: =R2 -> 2018 | B21: 97.39 | C21: 97.39 | D21: 807 | E21: 807 | F21: 808 | G21: 808 | H21: =IF(OR(H20="---",N20="Yes"),"---",IF(G21>=E21,G21,IF(G21<E21,IF(G21<$E$6,$E$6,G21),"ERROR"))) -> 808 | I21: =IF(OR(I20="---",N20="Yes"),"---",IF(N21="NO",IF((G21-H20)>=0,G21-H20,0),"SOLD")) -> 1 | J21: 7 | K21: =IF(OR(K20="---",N20="Yes"),"---",IF(N21="YES","SOLD",IF(G21-H20<0,G21-H20,0))) -> 0 | L21: 0 | M21: =IF(OR(M20="---",N20="Yes"),"---",IF(N21="Yes",G21-H20,IF(G21-$E$6<0,G21-$E$6,0))) -> -808 | N21: NO | O21: FALSE
A22: =S2 -> 2019 | B22: 98.39 | C22: 98.39 | D22: 808 | E22: 808 | F22: 809 | G22: 809 | H22: =IF(OR(H21="---",N21="Yes"),"---",IF(G22>=E22,G22,IF(G22<E22,IF(G22<$E$6,$E$6,G22),"ERROR"))) -> 809 | I22: =IF(OR(I21="---",N21="Yes"),"---",IF(N22="NO",IF((G22-H21)>=0,G22-H21,0),"SOLD")) -> 1 | J22: 8 | K22: =IF(OR(K21="---",N21="Yes"),"---",IF(N22="YES","SOLD",IF(G22-H21<0,G22-H21,0))) -> 0 | L22: 0 | M22: =IF(OR(M21="---",N21="Yes"),"---",IF(N22="Yes",G22-H21,IF(G22-$E$6<0,G22-$E$6,0))) -> -807 | N22: NO | O22: FALSE
A23: =T2 -> 2020 | B23: 99.39 | C23: 99.39 | D23: 809 | E23: 809 | F23: 810 | G23: 810 | H23: =IF(OR(H22="---",N22="Yes"),"---",IF(G23>=E23,G23,IF(G23<E23,IF(G23<$E$6,$E$6,G23),"ERROR"))) -> 810 | I23: =IF(OR(I22="---",N22="Yes"),"---",IF(N23="NO",IF((G23-H22)>=0,G23-H22,0),"SOLD")) -> 1 | J23: 9 | K23: =IF(OR(K22="---",N22="Yes"),"---",IF(N23="YES","SOLD",IF(G23-H22<0,G23-H22,0))) -> 0 | L23: 0 | M23: =IF(OR(M22="---",N22="Yes"),"---",IF(N23="Yes",G23-H22,IF(G23-$E$6<0,G23-$E$6,0))) -> -806 | N23: NO | O23: FALSE
A25: Year | B25: Highest NAV Per Unit During Calendar Year (01-01-xx to 12-31-xx) | C25: Highest Value of Fund in Calendar Year (01-01-xx to 12-31-xx) | D25: NAV Per Unit on Opening of First Business Day of Current Year (Jan) | E25: Total Nav on First Business Day of Current Year | F25: NAV (FMV) Per Unit on at Close of Last Business Day of Year, or SALE PRICE per UNIT (Dec) | G25: Total Nav Last business day of Year | H25: Adjusted Basis at EOY (or Sale Price) | I25: Section 1296 MTM (Mark to Market) Gain for the Tax Year | J25: Cumulative Net (MTM) Gains | K25: Unrealized Loss for year | L25: Deductible Loss for Year (Unreversed Inclusion) (Ordinary Loss Allowed Up to Prior MTM Gain) | M25: Potential Capital Gain/Loss (if any) | N25: Mutual Fund Sold?
A26: =C2 -> 2003 | B26: =B6/$C$3 -> 0 | C26: =C6/$C$3 -> 0 | D26: =D6/$C$3 -> 35.47749726 | E26: =D26*$C$1 -> 35.47749726 | F26: =F6/$C$3 -> 72.25027442 | G26: =F26*$C$1 -> 72.25027442 | H26: =IF(G26>=E26,G26,IF(G26<E26,IF(G26<$E$26,$E$26,G26),"ERROR")) -> 72.25027442 | I26: =IF(N26="NO",IF((G26-E26)>=0,G26-E26,0),"SOLD") -> 36.77277717 | J26: =IF(N26="Yes","SOLD",I26) -> 36.77277717 | K26: =IF(N26="Yes","SOLD",IF(G26-E26<0,G26-E26,0)) -> 0 | L26: =IF(N26="Yes","SOLD",IF(-K26>J26,-J26,K26)) -> 0 | M26: =IF(N26="Yes",H26-E26,IF(G26-$E$26<0,G26-$E$26,0)) -> 0 | N26: =N6 -> NO
A27: =D2 -> 2004 | B27: =B7/$D$3 -> 0.6436330021 | C27: =C7/$D$3 -> 0.6436330021 | D27: =D7/$D$3 -> 76.05731454 | E27: =D27*$C$1 -> 76.05731454 | F27: =F7/$D$3 -> 101.4328634 | G27: 101.4328634 | H27: =IF(OR(H26="---",N26="Yes"),"---",IF(G27>=E27,G27,IF(G27<E27,IF(G27<$E$26,$E$26,G27),"ERROR"))) -> 101.4328634 | I27: =IF(OR(I26="---",N26="Yes"),"---",IF(N27="NO",IF((G27-H26)>=0,G27-H26,0),"SOLD")) -> 29.18258899 | J27: =IF(OR(J26="---",N26="Yes"),"---",IF(N27="No",J26+I27+L27,"CUM NET MTM IN ADJ BASIS")) -> 65.95536616 | K27: =IF(OR(K26="---",N26="Yes"),"---",IF(N27="YES","SOLD",IF(G27-H26<0,G27-H26,0))) -> 0 | L27: =IF(OR(L26="---",N26="Yes"),"---",IF(N27="Yes","SOLD",IF(-K27>J26,-J26,K27))) -> 0 | M27: =IF(OR(M26="---",N26="Yes"),"---",IF(N27="Yes",G27-H26,IF(G27-$E$26<0,G27-$E$26,0))) -> 0 | N27: =N7 -> NO
A28: =E2 -> 2005 | B28: =B8/$E$3 -> 0.8131256952 | C28: =C8/$E$3 -> 0.8131256952 | D28: =D8/$E$3 -> 97.64182425 | E28: 97.64182425 | F28: =F8/$E$3 -> 62.80311457 | G28: 62.80311457 | H28: =IF(OR(H27="---",N27="Yes"),"---",IF(G28>=E28,G28,IF(G28<E28,IF(G28<$E$26,$E$26,G28),"ERROR"))) -> 62.80311457 | I28: =IF(OR(I27="---",N27="Yes"),"---",IF(N28="NO",IF((G28-H27)>=0,G28-H27,0),"SOLD")) -> 0 | J28: =IF(OR(J27="---",N27="Yes"),"---",IF(N28="No",J27+I28+L28,"CUM NET MTM IN ADJ BASIS")) -> 27.32561732 | K28: =IF(OR(K27="---",N27="Yes"),"---",IF(N28="YES","SOLD",IF(G28-H27<0,G28-H27,0))) -> -38.62974884 | L28: =IF(OR(L27="---",N27="Yes"),"---",IF(N28="Yes","SOLD",IF(-K28>J27,-J27,K28))) -> -38.62974884 | M28: =IF(OR(M27="---",N27="Yes"),"---",IF(N28="Yes",G28-H27,IF(G28-$E$26<0,G28-$E$26,0))) -> 0 | N28: NO
A29: =F2 -> 2006 | B29: =B9/$F$3 -> 1.123781455 | C29: =C9/$F$3 -> 1.123781455 | D29: =D9/$F$3 -> 63.99909318 | E29: 63.99909318 | F29: =F9/$F$3 -> 79.505781 | G29: 79.505781 | H29: =IF(OR(H28="---",N28="Yes"),"---",IF(G29>=E29,G29,IF(G29<E29,IF(G29<$E$26,$E$26,G29),"ERROR"))) -> 79.505781 | I29: =IF(OR(I28="---",N28="Yes"),"---",IF(N29="NO",IF((G29-H28)>=0,G29-H28,0),"SOLD")) -> 16.70266643 | J29: 44.02828375 | K29: =IF(OR(K28="---",N28="Yes"),"---",IF(N29="YES","SOLD",IF(G29-H28<0,G29-H28,0))) -> 0 | L29: 0 | M29: =IF(OR(M28="---",N28="Yes"),"---",IF(N29="Yes",G29-H28,IF(G29-$E$26<0,G29-$E$26,0))) -> 0 | N29: NO
A30: =G2 -> 2007 | B30: =B10/$G$3 -> 1.946659893 | C30: =C10/$G$3 -> 1.946659893 | D30: =D10/$G$3 -> 89.07797816 | E30: 89.07797816 | F30: =F10/$G$3 -> 83.82016764 | G30: 83.82016764 | H30: =IF(OR(H29="---",N29="Yes"),"---",IF(G30>=E30,G30,IF(G30<E30,IF(G30<$E$26,$E$26,G30),"ERROR"))) -> 83.82016764 | I30: =IF(OR(I29="---",N29="Yes"),"---",IF(N30="NO",IF((G30-H29)>=0,G30-H29,0),"SOLD")) -> 4.314386638 | J30: 48.34267038 | K30: =IF(OR(K29="---",N29="Yes"),"---",IF(N30="YES","SOLD",IF(G30-H29<0,G30-H29,0))) -> 0 | L30: 0 | M30: =IF(OR(M29="---",N29="Yes"),"---",IF(N30="Yes",G30-H29,IF(G30-$E$26<0,G30-$E$26,0))) -> 0 | N30: NO
A31: =H2 -> 2008 | B31: =B11/$H$3 -> 1.624331 | C31: =C11/$H$3 -> 1.624331 | D31: =D11/$H$3 -> 67.92918897 | E31: 67.92918897 | F31: =F11/$H$3 -> 51.46150679 | G31: 51.46150679 | H31: =IF(OR(H30="---",N30="Yes"),"---",IF(G31>=E31,G31,IF(G31<E31,IF(G31<$E$26,$E$26,G31),"ERROR"))) -> 51.46150679 | I31: =IF(OR(I30="---",N30="Yes"),"---",IF(N31="NO",IF((G31-H30)>=0,G31-H30,0),"SOLD")) -> 0 | J31: 15.98400954 | K31: =IF(OR(K30="---",N30="Yes"),"---",IF(N31="YES","SOLD",IF(G31-H30<0,G31-H30,0))) -> -32.35866085 | L31: -32.35866085 | M31: =IF(OR(M30="---",N30="Yes"),"---",IF(N31="Yes",G31-H30,IF(G31-$E$26<0,G31-$E$26,0))) -> 0 | N31: NO
A32: =I2 -> 2009 | B32: =B12/$I$3 -> 1.606981254 | C32: =C12/$I$3 -> 1.606981254 | D32: =D12/$I$3 -> 53.86770093 | E32: 53.86770093 | F32: =F12/$I$3 -> 56.02240896 | G32: 56.02240896 | H32: =IF(OR(H31="---",N31="Yes"),"---",IF(G32>=E32,G32,IF(G32<E32,IF(G32<$E$26,$E$26,G32),"ERROR"))) -> 56.02240896 | I32: =IF(OR(I31="---",N31="Yes"),"---",IF(N32="NO",IF((G32-H31)>=0,G32-H31,0),"SOLD")) -> 4.560902171 | J32: 20.54491171 | K32: =IF(OR(K31="---",N31="Yes"),"---",IF(N32="YES","SOLD",IF(G32-H31<0,G32-H31,0))) -> 0 | L32: 0 | M32: =IF(OR(M31="---",N31="Yes"),"---",IF(N32="Yes",G32-H31,IF(G32-$E$26<0,G32-$E$26,0))) -> 0 | N32: NO
A33: =J2 -> 2010 | B33: =B13/$J$3 -> 1.999776286 | C33: =C13/$J$3 -> 1.999776286 | D33: =D13/$J$3 -> 58.1655481 | E33: 58.1655481 | F33: =F13/$J$3 -> 17.89709172 | G33: 17.89709172 | H33: =IF(OR(H32="---",N32="Yes"),"---",IF(G33>=E33,G33,IF(G33<E33,IF(G33<$E$26,$E$26,G33),"ERROR"))) -> 35.47749726 | I33: =IF(OR(I32="---",N32="Yes"),"---",IF(N33="NO",IF((G33-H32)>=0,G33-H32,0),"SOLD")) -> 0 | J33: 0 | K33: =IF(OR(K32="---",N32="Yes"),"---",IF(N33="YES","SOLD",IF(G33-H32<0,G33-H32,0))) -> -38.12531724 | L33: -20.54491171 | M33: =IF(OR(M32="---",N32="Yes"),"---",IF(N33="Yes",G33-H32,IF(G33-$E$26<0,G33-$E$26,0))) -> -17.58040553 | N33: NO
A34: =K2 -> 2011 | B34: =B14/$K$3 -> 1.703510989 | C34: =C14/$K$3 -> 1.703510989 | D34: =D14/$K$3 -> 15.0769863 | E34: =D34*$C$1 -> 15.0769863 | F34: =F14/$K$3 -> 15.09583253 | G34: 15.09583253 | H34: =IF(OR(H33="---",N33="Yes"),"---",IF(G34>=E34,G34,IF(G34<E34,IF(G34<$E$26,$E$26,G34),"ERROR"))) -> 15.09583253 | I34: =IF(OR(I33="---",N33="Yes"),"---",IF(N34="NO",IF((G34-H33)>=0,G34-H33,0),"SOLD")) -> 0 | J34: =IF(OR(J33="---",N33="Yes"),"---",IF(N34="No",J33+I34+L34,"CUM NET MTM IN ADJ BASIS")) -> 0 | K34: =IF(OR(K33="---",N33="Yes"),"---",IF(N34="YES","SOLD",IF(G34-H33<0,G34-H33,0))) -> -20.38166473 | L34: 0 | M34: =IF(OR(M33="---",N33="Yes"),"---",IF(N34="Yes",G34-H33,IF(G34-$E$26<0,G34-$E$26,0))) -> -20.38166473 | N34: NO
A35: =L2 -> 2012 | B35: =B15/$L$3 -> 1.666150936 | C35: =C15/$L$3 -> 1.666150936 | D35: =D15/$L$3 -> 14.60320494 | E35: 14.60320494 | F35: =F15/$L$3 -> 14.62143616 | G35: 14.62143616 | H35: =IF(OR(H34="---",N34="Yes"),"---",IF(G35>=E35,G35,IF(G35<E35,IF(G35<$E$26,$E$26,G35),"ERROR"))) -> 14.62143616 | I35: =IF(OR(I34="---",N34="Yes"),"---",IF(N35="NO",IF((G35-H34)>=0,G35-H34,0),"SOLD")) -> 0 | J35: 0 | K35: =IF(OR(K34="---",N34="Yes"),"---",IF(N35="YES","SOLD",IF(G35-H34<0,G35-H34,0))) -> -0.4743963694 | L35: 0 | M35: =IF(OR(M34="---",N34="Yes"),"---",IF(N35="Yes",G35-H34,IF(G35-$E$26<0,G35-$E$26,0))) -> -20.8560611 | N35: NO
A36: =M2 -> 2013 | B36: =B16/$M$3 -> 1.493557809 | C36: =C16/$M$3 -> 1.493557809 | D36: =D16/$M$3 -> 12.96496767 | E36: 12.96496767 | F36: =F16/$M$3 -> 12.98113347 | G36: 12.98113347 | H36: =IF(OR(H35="---",N35="Yes"),"---",IF(G36>=E36,G36,IF(G36<E36,IF(G36<$E$26,$E$26,G36),"ERROR"))) -> 12.98113347 | I36: =IF(OR(I35="---",N35="Yes"),"---",IF(N36="NO",IF((G36-H35)>=0,G36-H35,0),"SOLD")) -> 0 | J36: 0 | K36: =IF(OR(K35="---",N35="Yes"),"---",IF(N36="YES","SOLD",IF(G36-H35<0,G36-H35,0))) -> -1.640302693 | L36: 0 | M36: =IF(OR(M35="---",N35="Yes"),"---",IF(N36="Yes",G36-H35,IF(G36-$E$26<0,G36-$E$26,0))) -> -22.49636379 | N36: NO
A37: =N2 -> 2014 | B37: =B17/$N$3 -> 1.436769231 | C37: =C17/$N$3 -> 1.436769231 | D37: =D17/$N$3 -> 12.35384615 | E37: 12.35384615 | F37: =F17/$N$3 -> 12.36923077 | G37: 12.36923077 | H37: =IF(OR(H36="---",N36="Yes"),"---",IF(G37>=E37,G37,IF(G37<E37,IF(G37<$E$26,$E$26,G37),"ERROR"))) -> 12.36923077 | I37: =IF(OR(I36="---",N36="Yes"),"---",IF(N37="NO",IF((G37-H36)>=0,G37-H36,0),"SOLD")) -> 0 | J37: 0 | K37: =IF(OR(K36="---",N36="Yes"),"---",IF(N37="YES","SOLD",IF(G37-H36<0,G37-H36,0))) -> -0.6119026971 | L37: 0 | M37: =IF(OR(M36="---",N36="Yes"),"---",IF(N37="Yes",G37-H36,IF(G37-$E$26<0,G37-$E$26,0))) -> -23.10826649 | N37: NO
A38: =O2 -> 2015 | B38: =B18/$O$3 -> 1.258533333 | C38: =C18/$O$3 -> 1.258533333 | D38: =D18/$O$3 -> 10.72 | E38: 10.72 | F38: =F18/$O$3 -> 10.73333333 | G38: 10.73333333 | H38: =IF(OR(H37="---",N37="Yes"),"---",IF(G38>=E38,G38,IF(G38<E38,IF(G38<$E$26,$E$26,G38),"ERROR"))) -> 10.73333333 | I38: =IF(OR(I37="---",N37="Yes"),"---",IF(N38="NO",IF((G38-H37)>=0,G38-H37,0),"SOLD")) -> 0 | J38: 0 | K38: =IF(OR(K37="---",N37="Yes"),"---",IF(N38="YES","SOLD",IF(G38-H37<0,G38-H37,0))) -> -1.635897436 | L38: 0 | M38: =IF(OR(M37="---",N37="Yes"),"---",IF(N38="Yes",G38-H37,IF(G38-$E$26<0,G38-$E$26,0))) -> -24.74416392 | N38: NO
A39: =P2 -> 2016 | B39: =B19/$P$3 -> 1.122235294 | C39: =C19/$P$3 -> 1.122235294 | D39: =D19/$P$3 -> 9.470588235 | E39: 9.470588235 | F39: =F19/$P$3 -> 9.482352941 | G39: 9.482352941 | H39: =IF(OR(H38="---",N38="Yes"),"---",IF(G39>=E39,G39,IF(G39<E39,IF(G39<$E$26,$E$26,G39),"ERROR"))) -> 9.482352941 | I39: =IF(OR(I38="---",N38="Yes"),"---",IF(N39="NO",IF((G39-H38)>=0,G39-H38,0),"SOLD")) -> 0 | J39: 0 | K39: =IF(OR(K38="---",N38="Yes"),"---",IF(N39="YES","SOLD",IF(G39-H38<0,G39-H38,0))) -> -1.250980392 | L39: 0 | M39: =IF(OR(M38="---",N38="Yes"),"---",IF(N39="Yes",G39-H38,IF(G39-$E$26<0,G39-$E$26,0))) -> -25.99514431 | N39: NO
A40: =Q2 -> 2017 | B40: =B20/$Q$3 -> 1.014631579 | C40: =C20/$Q$3 -> 1.014631579 | D40: =D20/$Q$3 -> 8.484210526 | E40: 8.484210526 | F40: =F20/$Q$3 -> 8.494736842 | G40: 8.494736842 | H40: =IF(OR(H39="---",N39="Yes"),"---",IF(G40>=E40,G40,IF(G40<E40,IF(G40<$E$26,$E$26,G40),"ERROR"))) -> 8.494736842 | I40: =IF(OR(I39="---",N39="Yes"),"---",IF(N40="NO",IF((G40-H39)>=0,G40-H39,0),"SOLD")) -> 0 | J40: 0 | K40: =IF(OR(K39="---",N39="Yes"),"---",IF(N40="YES","SOLD",IF(G40-H39<0,G40-H39,0))) -> -0.9876160991 | L40: 0 | M40: =IF(OR(M39="---",N39="Yes"),"---",IF(N40="Yes",G40-H39,IF(G40-$E$26<0,G40-$E$26,0))) -> -26.98276041 | N40: NO
A41: =R2 -> 2018 | B41: =B21/$R$3 -> 0.9275238095 | C41: =C21/$R$3 -> 0.9275238095 | D41: =D21/$R$3 -> 7.685714286 | E41: 7.685714286 | F41: =F21/$R$3 -> 7.695238095 | G41: 7.695238095 | H41: =IF(OR(H40="---",N40="Yes"),"---",IF(G41>=E41,G41,IF(G41<E41,IF(G41<$E$26,$E$26,G41),"ERROR"))) -> 7.695238095 | I41: =IF(OR(I40="---",N40="Yes"),"---",IF(N41="NO",IF((G41-H40)>=0,G41-H40,0),"SOLD")) -> 0 | J41: 0 | K41: =IF(OR(K40="---",N40="Yes"),"---",IF(N41="YES","SOLD",IF(G41-H40<0,G41-H40,0))) -> -0.7994987469 | L41: 0 | M41: =IF(OR(M40="---",N40="Yes"),"---",IF(N41="Yes",G41-H40,IF(G41-$E$26<0,G41-$E$26,0))) -> -27.78225916 | N41: NO
A42: =S2 -> 2019 | B42: =B22/$S$3 -> 0.8555652174 | C42: =C22/$S$3 -> 0.8555652174 | D42: =D22/$S$3 -> 7.026086957 | E42: 7.026086957 | F42: =F22/$S$3 -> 7.034782609 | G42: 7.034782609 | H42: =IF(OR(H41="---",N41="Yes"),"---",IF(G42>=E42,G42,IF(G42<E42,IF(G42<$E$26,$E$26,G42),"ERROR"))) -> 7.034782609 | I42: =IF(OR(I41="---",N41="Yes"),"---",IF(N42="NO",IF((G42-H41)>=0,G42-H41,0),"SOLD")) -> 0 | J42: 0 | K42: =IF(OR(K41="---",N41="Yes"),"---",IF(N42="YES","SOLD",IF(G42-H41<0,G42-H41,0))) -> -0.6604554865 | L42: 0 | M42: =IF(OR(M41="---",N41="Yes"),"---",IF(N42="Yes",G42-H41,IF(G42-$E$26<0,G42-$E$26,0))) -> -28.44271465 | N42: NO
A43: =T2 -> 2020 | B43: =B23/$T$3 -> 0.79512 | C43: =C23/$T$3 -> 0.79512 | D43: =D23/$T$3 -> 6.472 | E43: 6.472 | F43: =F23/$T$3 -> 6.48 | G43: 6.48 | H43: =IF(OR(H42="---",N42="Yes"),"---",IF(G43>=E43,G43,IF(G43<E43,IF(G43<$E$26,$E$26,G43),"ERROR"))) -> 6.48 | I43: =IF(OR(I42="---",N42="Yes"),"---",IF(N43="NO",IF((G43-H42)>=0,G43-H42,0),"SOLD")) -> 0 | J43: 0 | K43: =IF(OR(K42="---",N42="Yes"),"---",IF(N43="YES","SOLD",IF(G43-H42<0,G43-H42,0))) -> -0.5547826087 | L43: 0 | M43: =IF(OR(M42="---",N42="Yes"),"---",IF(N43="Yes",G43-H42,IF(G43-$E$26<0,G43-$E$26,0))) -> -28.99749726 | N43: NO
A46: FOREIGN FUND NAME (as on moneycontrol.com site) | B46: FOREIGN FUND SYMBOL (as on moneycontrol.com site) | C46: FUND'S REGISTERED ADDRESS (as on moneycontrol.com's site) | E46: FOLIO OR ACCOUNT NUMBER IF APPLICABLE | F46: IF FUND NOT HELD DIRECTLY, GIVE BROKERAGE NAME WHERE YOU HOLD IT | H46: IF YOU HAVE IT IN BROKERAGE, THEN GIVE BROKERAGE FULL ADDRESS | J46: Date which Mutual Fund Account Was Bought, OR if held in Brokerage, date which Brokerage Account was Opened | K46: Date which Mutual Fund Account Was Sold, OR if held in Brokerage, date which Brokerage Account was Closed
A47: Mutual Fund Name (Enter in A47)

Sheet Mutual Fund 2
B1: Units at Beginning of Period | C1: 1 | D1: DEFAULT EXCHANGE RATES ARE INDIAN RUPEES TO ONE DOLLAR, AS PER WWW.X-RATES.COM ON 12/31 OF EACH YEAR. CHANGE ACCORDINGLY FOR YOUR COUNTRY. ALL NUMERICAL FIELDS IN BLUE ARE CHANGEABLE BY YOU. FUTURE YEARS HAVE DUMMY VALUES. IF YOUR FUND HAS DIVIDENDS WHICH ARE REINVESTED, TREAT EACH BATCH OF UNITS NEWLY BOUGHT BY REINVESTED DIVIDENDS AS A NEW MUTUAL FUND TO PROPERLY KEEP TRACK OF THE COST BASIS OF THOSE REINVESTED DIVIDENDS. FILL FUND NAME AND STUFF IN ROW "A" AT BOTTOM OF SHEET.
C2: 2003 | D2: 2004 | E2: 2005 | F2: 2006 | G2: 2007 | H2: 2008 | I2: 2009 | J2: 2010 | K2: 2011 | L2: 2012 | M2: 2013 | N2: 2014 | O2: 2015 | P2: 2016 | Q2: 2017 | R2: 2018 | S2: 2019 | T2: 2020
A3: =A47 -> Mutual Fund Name (Enter in A47) | B3: Exc Rate 12/31 | C3: 45.55 | D3: 43.27 | E3: 44.95 | F3: 44.11 | G3: 39.37 | H3: 48.58 | I3: 46.41 | J3: 44.7 | K3: 53.061002 | L3: 54.850973 | M3: 61.859005 | N3: 65 | O3: 75 | P3: 85 | Q3: 95 | R3: 105 | S3: 115 | T3: 125
A5: Year | B5: Highest NAV Per Unit During Calendar Year (01-01-xx to 12-31-xx) | C5: Highest Value of Fund in Calendar Year (01-01-xx to 12-31-xx) | D5: NAV Per Unit on Opening of First Business Day of Current Year (Jan) | E5: Total Nav on First Business Day of Current Year | F5: NAV (FMV) Per Unit on at Close of Last Business Day of Year, or SALE PRICE per UNIT (Dec) | G5: Total Nav Last business day of Year | H5: Adjusted Basis at EOY (or Sale Price) | I5: Section 1296 MTM (Mark to Market) Gain for the Tax Year | J5: Cumulative Net (MTM) Gains (afer unrealized loss for year deducted) | K5: Unrealized Loss for year | L5: Deductible Loss for Year (Unreversed Inclusion) (Ordinary Loss Allowed Up to Prior MTM Gain) | M5: Potential Capital Gain/Loss (if any) | N5: Mutual Fund Sold?
A6: =C2 -> 2003 | B6: 0 | C6: =B6*$C$1 -> 0 | D6: 1616 | E6: =D6*$C$1 -> 1616 | F6: 3291 | G6: =F6*$C$1 -> 3291 | H6: =IF(G6>=E6,G6,IF(G6<E6,IF(G6<$E$6,$E$6,G6),"ERROR")) -> 3291 | I6: =IF(N6="NO",IF((G6-E6)>=0,G6-E6,0),"SOLD") -> 1675 | J6: =IF(N6="Yes","SOLD",I6) -> 1675 | K6: =IF(N6="Yes","SOLD",IF(G6-E6<0,G6-E6,0)) -> 0 | L6: =IF(N6="Yes","SOLD",IF(-K6>J6,-J6,K6)) -> 0 | M6: =IF(N6="Yes",H6-E6,IF(G6-$E$6<0,G6-$E$6,0)) -> 0 | N6: =IF(O6=FALSE,"NO",IF(O6=TRUE,"YES","NO")) -> NO | O6: FALSE
A7: =D2 -> 2004 | B7: 27.85 | C7: =B7*$C$1 -> 27.85 | D7: =G6 -> 3291 | E7: =D7*$C$1 -> 3291 | F7: 4389 | G7: =F7*$C$1 -> 4389 | H7: =IF(OR(H6="---",N6="Yes"),"---",IF(G7>=E7,G7,IF(G7<E7,IF(G7<$E$6,$E$6,G7),"ERROR"))) -> 4389 | I7: =IF(OR(I6="---",N6="Yes"),"---",IF(N7="NO",IF((G7-H6)>=0,G7-H6,0),"SOLD")) -> 1098 | J7: =IF(OR(J6="---",N6="Yes"),"---",IF(N7="No",J6+I7+L7,"CUM NET MTM IN ADJ BASIS")) -> 2773 | K7: =IF(OR(K6="---",N6="Yes"),"---",IF(N7="YES","SOLD",IF(G7-H6<0,G7-H6,0))) -> 0 | L7: =IF(OR(L6="---",N6="Yes"),"---",IF(N7="Yes","SOLD",IF(-K7>J6,-J6,K7))) -> 0 | M7: =IF(OR(M6="---",N6="Yes"),"---",IF(N7="Yes",G7-H6,IF(G7-$E$6<0,G7-$E$6,0))) -> 0 | N7: =IF(O7=FALSE,"NO",IF(O7=TRUE,"YES","NO")) -> NO | O7: FALSE
A8: =E2 -> 2005 | B8: 36.55 | C8: 36.55 | D8: =G7 -> 4389 | E8: 4389 | F8: 2823 | G8: 2823 | H8: =IF(OR(H7="---",N7="Yes"),"---",IF(G8>=E8,G8,IF(G8<E8,IF(G8<$E$6,$E$6,G8),"ERROR"))) -> 2823 | I8: =IF(OR(I7="---",N7="Yes"),"---",IF(N8="NO",IF((G8-H7)>=0,G8-H7,0),"SOLD")) -> 0 | J8: =IF(OR(J7="---",N7="Yes"),"---",IF(N8="No",J7+I8+L8,"CUM NET MTM IN ADJ BASIS")) -> 1207 | K8: =IF(OR(K7="---",N7="Yes"),"---",IF(N8="YES","SOLD",IF(G8-H7<0,G8-H7,0))) -> -1566 | L8: =IF(OR(L7="---",N7="Yes"),"---",IF(N8="Yes","SOLD",IF(-K8>J7,-J7,K8))) -> -1566 | M8: =IF(OR(M7="---",N7="Yes"),"---",IF(N8="Yes",G8-H7,IF(G8-$E$6<0,G8-$E$6,0))) -> 0 | N8: NO | O8: FALSE
A9: =F2 -> 2006 | B9: 49.57 | C9: 49.57 | D9: 2823 | E9: 2823 | F9: 3507 | G9: 3507 | H9: =IF(OR(H8="---",N8="Yes"),"---",IF(G9>=E9,G9,IF(G9<E9,IF(G9<$E$6,$E$6,G9),"ERROR"))) -> 3507 | I9: =IF(OR(I8="---",N8="Yes"),"---",IF(N9="NO",IF((G9-H8)>=0,G9-H8,0),"SOLD")) -> 684 | J9: 1891 | K9: =IF(OR(K8="---",N8="Yes"),"---",IF(N9="YES","SOLD",IF(G9-H8<0,G9-H8,0))) -> 0 | L9: 0 | M9: =IF(OR(M8="---",N8="Yes"),"---",IF(N9="Yes",G9-H8,IF(G9-$E$6<0,G9-$E$6,0))) -> 0 | N9: NO | O9: FALSE
A10: =G2 -> 2007 | B10: 76.64 | C10: 76.64 | D10: 3507 | E10: 3507 | F10: 3300 | G10: 3300 | H10: =IF(OR(H9="---",N9="Yes"),"---",IF(G10>=E10,G10,IF(G10<E10,IF(G10<$E$6,$E$6,G10),"ERROR"))) -> 3300 | I10: =IF(OR(I9="---",N9="Yes"),"---",IF(N10="NO",IF((G10-H9)>=0,G10-H9,0),"SOLD")) -> 0 | J10: 1684 | K10: =IF(OR(K9="---",N9="Yes"),"---",IF(N10="YES","SOLD",IF(G10-H9<0,G10-H9,0))) -> -207 | L10: -207 | M10: =IF(OR(M9="---",N9="Yes"),"---",IF(N10="Yes",G10-H9,IF(G10-$E$6<0,G10-$E$6,0))) -> 0 | N10: NO | O10: FALSE
A11: =H2 -> 2008 | B11: 78.91 | C11: 78.91 | D11: 3300 | E11: 3300 | F11: 2500 | G11: 2500 | H11: =IF(OR(H10="---",N10="Yes"),"---",IF(G11>=E11,G11,IF(G11<E11,IF(G11<$E$6,$E$6,G11),"ERROR"))) -> 2500 | I11: =IF(OR(I10="---",N10="Yes"),"---",IF(N11="NO",IF((G11-H10)>=0,G11-H10,0),"SOLD")) -> 0 | J11: 884 | K11: =IF(OR(K10="---",N10="Yes"),"---",IF(N11="YES","SOLD",IF(G11-H10<0,G11-H10,0))) -> -800 | L11: -800 | M11: =IF(OR(M10="---",N10="Yes"),"---",IF(N11="Yes",G11-H10,IF(G11-$E$6<0,G11-$E$6,0))) -> 0 | N11: NO | O11: FALSE
A12: =I2 -> 2009 | B12: 74.58 | C12: 74.58 | D12: 2500 | E12: 2500 | F12: 2600 | G12: 2600 | H12: =IF(OR(H11="---",N11="Yes"),"---",IF(G12>=E12,G12,IF(G12<E12,IF(G12<$E$6,$E$6,G12),"ERROR"))) -> 2600 | I12: =IF(OR(I11="---",N11="Yes"),"---",IF(N12="NO",IF((G12-H11)>=0,G12-H11,0),"SOLD")) -> 100 | J12: 984 | K12: =IF(OR(K11="---",N11="Yes"),"---",IF(N12="YES","SOLD",IF(G12-H11<0,G12-H11,0))) -> 0 | L12: 0 | M12: =IF(OR(M11="---",N11="Yes"),"---",IF(N12="Yes",G12-H11,IF(G12-$E$6<0,G12-$E$6,0))) -> 0 | N12: NO | O12: FALSE
A13: =J2 -> 2010 | B13: 89.39 | C13: 89.39 | D13: 2600 | E13: 2600 | F13: 800 | G13: 800 | H13: =IF(OR(H12="---",N12="Yes"),"---",IF(G13>=E13,G13,IF(G13<E13,IF(G13<$E$6,$E$6,G13),"ERROR"))) -> 1616 | I13: =IF(OR(I12="---",N12="Yes"),"---",IF(N13="NO",IF((G13-H12)>=0,G13-H12,0),"SOLD")) -> 0 | J13: 0 | K13: =IF(OR(K12="---",N12="Yes"),"---",IF(N13="YES","SOLD",IF(G13-H12<0,G13-H12,0))) -> -1800 | L13: -984 | M13: =IF(OR(M12="---",N12="Yes"),"---",IF(N13="Yes",G13-H12,IF(G13-$E$6<0,G13-$E$6,0))) -> -816 | N13: NO | O13: FALSE
A14: =K2 -> 2011 | B14: 90.39 | C14: 90.39 | D14: 800 | E14: 800 | F14: 801 | G14: 801 | H14: =IF(OR(H13="---",N13="Yes"),"---",IF(G14>=E14,G14,IF(G14<E14,IF(G14<$E$6,$E$6,G14),"ERROR"))) -> 801 | I14: =IF(OR(I13="---",N13="Yes"),"---",IF(N14="NO",IF((G14-H13)>=0,G14-H13,0),"SOLD")) -> 0 | J14: 0 | K14: =IF(OR(K13="---",N13="Yes"),"---",IF(N14="YES","SOLD",IF(G14-H13<0,G14-H13,0))) -> -815 | L14: 0 | M14: =IF(OR(M13="---",N13="Yes"),"---",IF(N14="Yes",G14-H13,IF(G14-$E$6<0,G14-$E$6,0))) -> -815 | N14: NO | O14: FALSE
A15: =L2 -> 2012 | B15: 91.39 | C15: 91.39 | D15: 801 | E15: 801 | F15: 802 | G15: 802 | H15: =IF(OR(H14="---",N14="Yes"),"---",IF(G15>=E15,G15,IF(G15<E15,IF(G15<$E$6,$E$6,G15),"ERROR"))) -> 802 | I15: =IF(OR(I14="---",N14="Yes"),"---",IF(N15="NO",IF((G15-H14)>=0,G15-H14,0),"SOLD")) -> 1 | J15: 1 | K15: =IF(OR(K14="---",N14="Yes"),"---",IF(N15="YES","SOLD",IF(G15-H14<0,G15-H14,0))) -> 0 | L15: 0 | M15: =IF(OR(M14="---",N14="Yes"),"---",IF(N15="Yes",G15-H14,IF(G15-$E$6<0,G15-$E$6,0))) -> -814 | N15: NO | O15: FALSE
A16: =M2 -> 2013 | B16: 92.39 | C16: 92.39 | D16: 802 | E16: 802 | F16: 803 | G16: 803 | H16: =IF(OR(H15="---",N15="Yes"),"---",IF(G16>=E16,G16,IF(G16<E16,IF(G16<$E$6,$E$6,G16),"ERROR"))) -> 803 | I16: =IF(OR(I15="---",N15="Yes"),"---",IF(N16="NO",IF((G16-H15)>=0,G16-H15,0),"SOLD")) -> 1 | J16: 2 | K16: =IF(OR(K15="---",N15="Yes"),"---",IF(N16="YES","SOLD",IF(G16-H15<0,G16-H15,0))) -> 0 | L16: 0 | M16: =IF(OR(M15="---",N15="Yes"),"---",IF(N16="Yes",G16-H15,IF(G16-$E$6<0,G16-$E$6,0))) -> -813 | N16: NO | O16: FALSE
A17: =N2 -> 2014 | B17: 93.39 | C17: 93.39 | D17: 803 | E17: 803 | F17: 804 | G17: 804 | H17: =IF(OR(H16="---",N16="Yes"),"---",IF(G17>=E17,G17,IF(G17<E17,IF(G17<$E$6,$E$6,G17),"ERROR"))) -> 804 | I17: =IF(OR(I16="---",N16="Yes"),"---",IF(N17="NO",IF((G17-H16)>=0,G17-H16,0),"SOLD")) -> 1 | J17: 3 | K17: =IF(OR(K16="---",N16="Yes"),"---",IF(N17="YES","SOLD",IF(G17-H16<0,G17-H16,0))) -> 0 | L17: 0 | M17: =IF(OR(M16="---",N16="Yes"),"---",IF(N17="Yes",G17-H16,IF(G17-$E$6<0,G17-$E$6,0))) -> -812 | N17: NO | O17: FALSE
A18: =O2 -> 2015 | B18: 94.39 | C18: 94.39 | D18: 804 | E18: 804 | F18: 805 | G18: 805 | H18: =IF(OR(H17="---",N17="Yes"),"---",IF(G18>=E18,G18,IF(G18<E18,IF(G18<$E$6,$E$6,G18),"ERROR"))) -> 805 | I18: =IF(OR(I17="---",N17="Yes"),"---",IF(N18="NO",IF((G18-H17)>=0,G18-H17,0),"SOLD")) -> 1 | J18: 4 | K18: =IF(OR(K17="---",N17="Yes"),"---",IF(N18="YES","SOLD",IF(G18-H17<0,G18-H17,0))) -> 0 | L18: 0 | M18: =IF(OR(M17="---",N17="Yes"),"---",IF(N18="Yes",G18-H17,IF(G18-$E$6<0,G18-$E$6,0))) -> -811 | N18: NO | O18: FALSE
A19: =P2 -> 2016 | B19: 95.39 | C19: 95.39 | D19: 805 | E19: 805 | F19: 806 | G19: 806 | H19: =IF(OR(H18="---",N18="Yes"),"---",IF(G19>=E19,G19,IF(G19<E19,IF(G19<$E$6,$E$6,G19),"ERROR"))) -> 806 | I19: =IF(OR(I18="---",N18="Yes"),"---",IF(N19="NO",IF((G19-H18)>=0,G19-H18,0),"SOLD")) -> 1 | J19: 5 | K19: =IF(OR(K18="---",N18="Yes"),"---",IF(N19="YES","SOLD",IF(G19-H18<0,G19-H18,0))) -> 0 | L19: 0 | M19: =IF(OR(M18="---",N18="Yes"),"---",IF(N19="Yes",G19-H18,IF(G19-$E$6<0,G19-$E$6,0))) -> -810 | N19: NO | O19: FALSE
A20: =Q2 -> 2017 | B20: 96.39 | C20: 96.39 | D20: 806 | E20: 806 | F20: 807 | G20: 807 | H20: =IF(OR(H19="---",N19="Yes"),"---",IF(G20>=E20,G20,IF(G20<E20,IF(G20<$E$6,$E$6,G20),"ERROR"))) -> 807 | I20: =IF(OR(I19="---",N19="Yes"),"---",IF(N20="NO",IF((G20-H19)>=0,G20-H19,0),"SOLD")) -> 1 | J20: 6 | K20: =IF(OR(K19="---",N19="Yes"),"---",IF(N20="YES","SOLD",IF(G20-H19<0,G20-H19,0))) -> 0 | L20: 0 | M20: =IF(OR(M19="---",N19="Yes"),"---",IF(N20="Yes",G20-H19,IF(G20-$E$6<0,G20-$E$6,0))) -> -809 | N20: NO | O20: FALSE
A21: =R2 -> 2018 | B21: 97.39 | C21: 97.39 | D21: 807 | E21: 807 | F21: 808 | G21: 808 | H21: =IF(OR(H20="---",N20="Yes"),"---",IF(G21>=E21,G21,IF(G21<E21,IF(G21<$E$6,$E$6,G21),"ERROR"))) -> 808 | I21: =IF(OR(I20="---",N20="Yes"),"---",IF(N21="NO",IF((G21-H20)>=0,G21-H20,0),"SOLD")) -> 1 | J21: 7 | K21: =IF(OR(K20="---",N20="Yes"),"---",IF(N21="YES","SOLD",IF(G21-H20<0,G21-H20,0))) -> 0 | L21: 0 | M21: =IF(OR(M20="---",N20="Yes"),"---",IF(N21="Yes",G21-H20,IF(G21-$E$6<0,G21-$E$6,0))) -> -808 | N21: NO | O21: FALSE
A22: =S2 -> 2019 | B22: 98.39 | C22: 98.39 | D22: 808 | E22: 808 | F22: 809 | G22: 809 | H22: =IF(OR(H21="---",N21="Yes"),"---",IF(G22>=E22,G22,IF(G22<E22,IF(G22<$E$6,$E$6,G22),"ERROR"))) -> 809 | I22: =IF(OR(I21="---",N21="Yes"),"---",IF(N22="NO",IF((G22-H21)>=0,G22-H21,0),"SOLD")) -> 1 | J22: 8 | K22: =IF(OR(K21="---",N21="Yes"),"---",IF(N22="YES","SOLD",IF(G22-H21<0,G22-H21,0))) -> 0 | L22: 0 | M22: =IF(OR(M21="---",N21="Yes"),"---",IF(N22="Yes",G22-H21,IF(G22-$E$6<0,G22-$E$6,0))) -> -807 | N22: NO | O22: FALSE
A23: =T2 -> 2020 | B23: 99.39 | C23: 99.39 | D23: 809 | E23: 809 | F23: 810 | G23: 810 | H23: =IF(OR(H22="---",N22="Yes"),"---",IF(G23>=E23,G23,IF(G23<E23,IF(G23<$E$6,$E$6,G23),"ERROR"))) -> 810 | I23: =IF(OR(I22="---",N22="Yes"),"---",IF(N23="NO",IF((G23-H22)>=0,G23-H22,0),"SOLD")) -> 1 | J23: 9 | K23: =IF(OR(K22="---",N22="Yes"),"---",IF(N23="YES","SOLD",IF(G23-H22<0,G23-H22,0))) -> 0 | L23: 0 | M23: =IF(OR(M22="---",N22="Yes"),"---",IF(N23="Yes",G23-H22,IF(G23-$E$6<0,G23-$E$6,0))) -> -806 | N23: NO | O23: FALSE
A25: Year | B25: Highest NAV Per Unit During Calendar Year (01-01-xx to 12-31-xx) | C25: Highest Value of Fund in Calendar Year (01-01-xx to 12-31-xx) | D25: NAV Per Unit on Opening of First Business Day of Current Year (Jan) | E25: Total Nav on First Business Day of Current Year | F25: NAV (FMV) Per Unit on at Close of Last Business Day of Year, or SALE PRICE per UNIT (Dec) | G25: Total Nav Last business day of Year | H25: Adjusted Basis at EOY (or Sale Price) | I25: Section 1296 MTM (Mark to Market) Gain for the Tax Year | J25: Cumulative Net (MTM) Gains | K25: Unrealized Loss for year | L25: Deductible Loss for Year (Unreversed Inclusion) (Ordinary Loss Allowed Up to Prior MTM Gain) | M25: Potential Capital Gain/Loss (if any) | N25: Mutual Fund Sold?
A26: =C2 -> 2003 | B26: =B6/$C$3 -> 0 | C26: =C6/$C$3 -> 0 | D26: =D6/$C$3 -> 35.47749726 | E26: =D26*$C$1 -> 35.47749726 | F26: =F6/$C$3 -> 72.25027442 | G26: =F26*$C$1 -> 72.25027442 | H26: =IF(G26>=E26,G26,IF(G26<E26,IF(G26<$E$26,$E$26,G26),"ERROR")) -> 72.25027442 | I26: =IF(N26="NO",IF((G26-E26)>=0,G26-E26,0),"SOLD") -> 36.77277717 | J26: =IF(N26="Yes","SOLD",I26) -> 36.77277717 | K26: =IF(N26="Yes","SOLD",IF(G26-E26<0,G26-E26,0)) -> 0 | L26: =IF(N26="Yes","SOLD",IF(-K26>J26,-J26,K26)) -> 0 | M26: =IF(N26="Yes",H26-E26,IF(G26-$E$26<0,G26-$E$26,0)) -> 0 | N26: =N6 -> NO
A27: =D2 -> 2004 | B27: =B7/$D$3 -> 0.6436330021 | C27: =C7/$D$3 -> 0.6436330021 | D27: =D7/$D$3 -> 76.05731454 | E27: =D27*$C$1 -> 76.05731454 | F27: =F7/$D$3 -> 101.4328634 | G27: 101.4328634 | H27: =IF(OR(H26="---",N26="Yes"),"---",IF(G27>=E27,G27,IF(G27<E27,IF(G27<$E$26,$E$26,G27),"ERROR"))) -> 101.4328634 | I27: =IF(OR(I26="---",N26="Yes"),"---",IF(N27="NO",IF((G27-H26)>=0,G27-H26,0),"SOLD")) -> 29.18258899 | J27: =IF(OR(J26="---",N26="Yes"),"---",IF(N27="No",J26+I27+L27,"CUM NET MTM IN ADJ BASIS")) -> 65.95536616 | K27: =IF(OR(K26="---",N26="Yes"),"---",IF(N27="YES","SOLD",IF(G27-H26<0,G27-H26,0))) -> 0 | L27: =IF(OR(L26="---",N26="Yes"),"---",IF(N27="Yes","SOLD",IF(-K27>J26,-J26,K27))) -> 0 | M27: =IF(OR(M26="---",N26="Yes"),"---",IF(N27="Yes",G27-H26,IF(G27-$E$26<0,G27-$E$26,0))) -> 0 | N27: =N7 -> NO
A28: =E2 -> 2005 | B28: =B8/$E$3 -> 0.8131256952 | C28: =C8/$E$3 -> 0.8131256952 | D28: =D8/$E$3 -> 97.64182425 | E28: 97.64182425 | F28: =F8/$E$3 -> 62.80311457 | G28: 62.80311457 | H28: =IF(OR(H27="---",N27="Yes"),"---",IF(G28>=E28,G28,IF(G28<E28,IF(G28<$E$26,$E$26,G28),"ERROR"))) -> 62.80311457 | I28: =IF(OR(I27="---",N27="Yes"),"---",IF(N28="NO",IF((G28-H27)>=0,G28-H27,0),"SOLD")) -> 0 | J28: =IF(OR(J27="---",N27="Yes"),"---",IF(N28="No",J27+I28+L28,"CUM NET MTM IN ADJ BASIS")) -> 27.32561732 | K28: =IF(OR(K27="---",N27="Yes"),"---",IF(N28="YES","SOLD",IF(G28-H27<0,G28-H27,0))) -> -38.62974884 | L28: =IF(OR(L27="---",N27="Yes"),"---",IF(N28="Yes","SOLD",IF(-K28>J27,-J27,K28))) -> -38.62974884 | M28: =IF(OR(M27="---",N27="Yes"),"---",IF(N28="Yes",G28-H27,IF(G28-$E$26<0,G28-$E$26,0))) -> 0 | N28: NO
A29: =F2 -> 2006 | B29: =B9/$F$3 -> 1.123781455 | C29: =C9/$F$3 -> 1.123781455 | D29: =D9/$F$3 -> 63.99909318 | E29: 63.99909318 | F29: =F9/$F$3 -> 79.505781 | G29: 79.505781 | H29: =IF(OR(H28="---",N28="Yes"),"---",IF(G29>=E29,G29,IF(G29<E29,IF(G29<$E$26,$E$26,G29),"ERROR"))) -> 79.505781 | I29: =IF(OR(I28="---",N28="Yes"),"---",IF(N29="NO",IF((G29-H28)>=0,G29-H28,0),"SOLD")) -> 16.70266643 | J29: 44.02828375 | K29: =IF(OR(K28="---",N28="Yes"),"---",IF(N29="YES","SOLD",IF(G29-H28<0,G29-H28,0))) -> 0 | L29: 0 | M29: =IF(OR(M28="---",N28="Yes"),"---",IF(N29="Yes",G29-H28,IF(G29-$E$26<0,G29-$E$26,0))) -> 0 | N29: NO
A30: =G2 -> 2007 | B30: =B10/$G$3 -> 1.946659893 | C30: =C10/$G$3 -> 1.946659893 | D30: =D10/$G$3 -> 89.07797816 | E30: 89.07797816 | F30: =F10/$G$3 -> 83.82016764 | G30: 83.82016764 | H30: =IF(OR(H29="---",N29="Yes"),"---",IF(G30>=E30,G30,IF(G30<E30,IF(G30<$E$26,$E$26,G30),"ERROR"))) -> 83.82016764 | I30: =IF(OR(I29="---",N29="Yes"),"---",IF(N30="NO",IF((G30-H29)>=0,G30-H29,0),"SOLD")) -> 4.314386638 | J30: 48.34267038 | K30: =IF(OR(K29="---",N29="Yes"),"---",IF(N30="YES","SOLD",IF(G30-H29<0,G30-H29,0))) -> 0 | L30: 0 | M30: =IF(OR(M29="---",N29="Yes"),"---",IF(N30="Yes",G30-H29,IF(G30-$E$26<0,G30-$E$26,0))) -> 0 | N30: NO
A31: =H2 -> 2008 | B31: =B11/$H$3 -> 1.624331 | C31: =C11/$H$3 -> 1.624331 | D31: =D11/$H$3 -> 67.92918897 | E31: 67.92918897 | F31: =F11/$H$3 -> 51.46150679 | G31: 51.46150679 | H31: =IF(OR(H30="---",N30="Yes"),"---",IF(G31>=E31,G31,IF(G31<E31,IF(G31<$E$26,$E$26,G31),"ERROR"))) -> 51.46150679 | I31: =IF(OR(I30="---",N30="Yes"),"---",IF(N31="NO",IF((G31-H30)>=0,G31-H30,0),"SOLD")) -> 0 | J31: 15.98400954 | K31: =IF(OR(K30="---",N30="Yes"),"---",IF(N31="YES","SOLD",IF(G31-H30<0,G31-H30,0))) -> -32.35866085 | L31: -32.35866085 | M31: =IF(OR(M30="---",N30="Yes"),"---",IF(N31="Yes",G31-H30,IF(G31-$E$26<0,G31-$E$26,0))) -> 0 | N31: NO
A32: =I2 -> 2009 | B32: =B12/$I$3 -> 1.606981254 | C32: =C12/$I$3 -> 1.606981254 | D32: =D12/$I$3 -> 53.86770093 | E32: 53.86770093 | F32: =F12/$I$3 -> 56.02240896 | G32: 56.02240896 | H32: =IF(OR(H31="---",N31="Yes"),"---",IF(G32>=E32,G32,IF(G32<E32,IF(G32<$E$26,$E$26,G32),"ERROR"))) -> 56.02240896 | I32: =IF(OR(I31="---",N31="Yes"),"---",IF(N32="NO",IF((G32-H31)>=0,G32-H31,0),"SOLD")) -> 4.560902171 | J32: 20.54491171 | K32: =IF(OR(K31="---",N31="Yes"),"---",IF(N32="YES","SOLD",IF(G32-H31<0,G32-H31,0))) -> 0 | L32: 0 | M32: =IF(OR(M31="---",N31="Yes"),"---",IF(N32="Yes",G32-H31,IF(G32-$E$26<0,G32-$E$26,0))) -> 0 | N32: NO
A33: =J2 -> 2010 | B33: =B13/$J$3 -> 1.999776286 | C33: =C13/$J$3 -> 1.999776286 | D33: =D13/$J$3 -> 58.1655481 | E33: 58.1655481 | F33: =F13/$J$3 -> 17.89709172 | G33: 17.89709172 | H33: =IF(OR(H32="---",N32="Yes"),"---",IF(G33>=E33,G33,IF(G33<E33,IF(G33<$E$26,$E$26,G33),"ERROR"))) -> 35.47749726 | I33: =IF(OR(I32="---",N32="Yes"),"---",IF(N33="NO",IF((G33-H32)>=0,G33-H32,0),"SOLD")) -> 0 | J33: 0 | K33: =IF(OR(K32="---",N32="Yes"),"---",IF(N33="YES","SOLD",IF(G33-H32<0,G33-H32,0))) -> -38.12531724 | L33: -20.54491171 | M33: =IF(OR(M32="---",N32="Yes"),"---",IF(N33="Yes",G33-H32,IF(G33-$E$26<0,G33-$E$26,0))) -> -17.58040553 | N33: NO
A34: =K2 -> 2011 | B34: =B14/$K$3 -> 1.703510989 | C34: =C14/$K$3 -> 1.703510989 | D34: =D14/$K$3 -> 15.0769863 | E34: 15.0769863 | F34: =F14/$K$3 -> 15.09583253 | G34: 15.09583253 | H34: =IF(OR(H33="---",N33="Yes"),"---",IF(G34>=E34,G34,IF(G34<E34,IF(G34<$E$26,$E$26,G34),"ERROR"))) -> 15.09583253 | I34: =IF(OR(I33="---",N33="Yes"),"---",IF(N34="NO",IF((G34-H33)>=0,G34-H33,0),"SOLD")) -> 0 | J34: 0 | K34: =IF(OR(K33="---",N33="Yes"),"---",IF(N34="YES","SOLD",IF(G34-H33<0,G34-H33,0))) -> -20.38166473 | L34: 0 | M34: =IF(OR(M33="---",N33="Yes"),"---",IF(N34="Yes",G34-H33,IF(G34-$E$26<0,G34-$E$26,0))) -> -20.38166473 | N34: NO
A35: =L2 -> 2012 | B35: =B15/$L$3 -> 1.666150936 | C35: =C15/$L$3 -> 1.666150936 | D35: =D15/$L$3 -> 14.60320494 | E35: 14.60320494 | F35: =F15/$L$3 -> 14.62143616 | G35: 14.62143616 | H35: =IF(OR(H34="---",N34="Yes"),"---",IF(G35>=E35,G35,IF(G35<E35,IF(G35<$E$26,$E$26,G35),"ERROR"))) -> 14.62143616 | I35: =IF(OR(I34="---",N34="Yes"),"---",IF(N35="NO",IF((G35-H34)>=0,G35-H34,0),"SOLD")) -> 0 | J35: 0 | K35: =IF(OR(K34="---",N34="Yes"),"---",IF(N35="YES","SOLD",IF(G35-H34<0,G35-H34,0))) -> -0.4743963694 | L35: 0 | M35: =IF(OR(M34="---",N34="Yes"),"---",IF(N35="Yes",G35-H34,IF(G35-$E$26<0,G35-$E$26,0))) -> -20.8560611 | N35: NO
A36: =M2 -> 2013 | B36: =B16/$M$3 -> 1.493557809 | C36: =C16/$M$3 -> 1.493557809 | D36: =D16/$M$3 -> 12.96496767 | E36: 12.96496767 | F36: =F16/$M$3 -> 12.98113347 | G36: 12.98113347 | H36: =IF(OR(H35="---",N35="Yes"),"---",IF(G36>=E36,G36,IF(G36<E36,IF(G36<$E$26,$E$26,G36),"ERROR"))) -> 12.98113347 | I36: =IF(OR(I35="---",N35="Yes"),"---",IF(N36="NO",IF((G36-H35)>=0,G36-H35,0),"SOLD")) -> 0 | J36: 0 | K36: =IF(OR(K35="---",N35="Yes"),"---",IF(N36="YES","SOLD",IF(G36-H35<0,G36-H35,0))) -> -1.640302693 | L36: 0 | M36: =IF(OR(M35="---",N35="Yes"),"---",IF(N36="Yes",G36-H35,IF(G36-$E$26<0,G36-$E$26,0))) -> -22.49636379 | N36: NO
A37: =N2 -> 2014 | B37: =B17/$N$3 -> 1.436769231 | C37: =C17/$N$3 -> 1.436769231 | D37: =D17/$N$3 -> 12.35384615 | E37: 12.35384615 | F37: =F17/$N$3 -> 12.36923077 | G37: 12.36923077 | H37: =IF(OR(H36="---",N36="Yes"),"---",IF(G37>=E37,G37,IF(G37<E37,IF(G37<$E$26,$E$26,G37),"ERROR"))) -> 12.36923077 | I37: =IF(OR(I36="---",N36="Yes"),"---",IF(N37="NO",IF((G37-H36)>=0,G37-H36,0),"SOLD")) -> 0 | J37: 0 | K37: =IF(OR(K36="---",N36="Yes"),"---",IF(N37="YES","SOLD",IF(G37-H36<0,G37-H36,0))) -> -0.6119026971 | L37: 0 | M37: =IF(OR(M36="---",N36="Yes"),"---",IF(N37="Yes",G37-H36,IF(G37-$E$26<0,G37-$E$26,0))) -> -23.10826649 | N37: NO
A38: =O2 -> 2015 | B38: =B18/$O$3 -> 1.258533333 | C38: =C18/$O$3 -> 1.258533333 | D38: =D18/$O$3 -> 10.72 | E38: 10.72 | F38: =F18/$O$3 -> 10.73333333 | G38: 10.73333333 | H38: =IF(OR(H37="---",N37="Yes"),"---",IF(G38>=E38,G38,IF(G38<E38,IF(G38<$E$26,$E$26,G38),"ERROR"))) -> 10.73333333 | I38: =IF(OR(I37="---",N37="Yes"),"---",IF(N38="NO",IF((G38-H37)>=0,G38-H37,0),"SOLD")) -> 0 | J38: 0 | K38: =IF(OR(K37="---",N37="Yes"),"---",IF(N38="YES","SOLD",IF(G38-H37<0,G38-H37,0))) -> -1.635897436 | L38: 0 | M38: =IF(OR(M37="---",N37="Yes"),"---",IF(N38="Yes",G38-H37,IF(G38-$E$26<0,G38-$E$26,0))) -> -24.74416392 | N38: NO
A39: =P2 -> 2016 | B39: =B19/$P$3 -> 1.122235294 | C39: =C19/$P$3 -> 1.122235294 | D39: =D19/$P$3 -> 9.470588235 | E39: 9.470588235 | F39: =F19/$P$3 -> 9.482352941 | G39: 9.482352941 | H39: =IF(OR(H38="---",N38="Yes"),"---",IF(G39>=E39,G39,IF(G39<E39,IF(G39<$E$26,$E$26,G39),"ERROR"))) -> 9.482352941 | I39: =IF(OR(I38="---",N38="Yes"),"---",IF(N39="NO",IF((G39-H38)>=0,G39-H38,0),"SOLD")) -> 0 | J39: 0 | K39: =IF(OR(K38="---",N38="Yes"),"---",IF(N39="YES","SOLD",IF(G39-H38<0,G39-H38,0))) -> -1.250980392 | L39: 0 | M39: =IF(OR(M38="---",N38="Yes"),"---",IF(N39="Yes",G39-H38,IF(G39-$E$26<0,G39-$E$26,0))) -> -25.99514431 | N39: NO
A40: =Q2 -> 2017 | B40: =B20/$Q$3 -> 1.014631579 | C40: =C20/$Q$3 -> 1.014631579 | D40: =D20/$Q$3 -> 8.484210526 | E40: 8.484210526 | F40: =F20/$Q$3 -> 8.494736842 | G40: 8.494736842 | H40: =IF(OR(H39="---",N39="Yes"),"---",IF(G40>=E40,G40,IF(G40<E40,IF(G40<$E$26,$E$26,G40),"ERROR"))) -> 8.494736842 | I40: =IF(OR(I39="---",N39="Yes"),"---",IF(N40="NO",IF((G40-H39)>=0,G40-H39,0),"SOLD")) -> 0 | J40: 0 | K40: =IF(OR(K39="---",N39="Yes"),"---",IF(N40="YES","SOLD",IF(G40-H39<0,G40-H39,0))) -> -0.9876160991 | L40: 0 | M40: =IF(OR(M39="---",N39="Yes"),"---",IF(N40="Yes",G40-H39,IF(G40-$E$26<0,G40-$E$26,0))) -> -26.98276041 | N40: NO
A41: =R2 -> 2018 | B41: =B21/$R$3 -> 0.9275238095 | C41: =C21/$R$3 -> 0.9275238095 | D41: =D21/$R$3 -> 7.685714286 | E41: 7.685714286 | F41: =F21/$R$3 -> 7.695238095 | G41: 7.695238095 | H41: =IF(OR(H40="---",N40="Yes"),"---",IF(G41>=E41,G41,IF(G41<E41,IF(G41<$E$26,$E$26,G41),"ERROR"))) -> 7.695238095 | I41: =IF(OR(I40="---",N40="Yes"),"---",IF(N41="NO",IF((G41-H40)>=0,G41-H40,0),"SOLD")) -> 0 | J41: 0 | K41: =IF(OR(K40="---",N40="Yes"),"---",IF(N41="YES","SOLD",IF(G41-H40<0,G41-H40,0))) -> -0.7994987469 | L41: 0 | M41: =IF(OR(M40="---",N40="Yes"),"---",IF(N41="Yes",G41-H40,IF(G41-$E$26<0,G41-$E$26,0))) -> -27.78225916 | N41: NO
A42: =S2 -> 2019 | B42: =B22/$S$3 -> 0.8555652174 | C42: =C22/$S$3 -> 0.8555652174 | D42: =D22/$S$3 -> 7.026086957 | E42: 7.026086957 | F42: =F22/$S$3 -> 7.034782609 | G42: 7.034782609 | H42: =IF(OR(H41="---",N41="Yes"),"---",IF(G42>=E42,G42,IF(G42<E42,IF(G42<$E$26,$E$26,G42),"ERROR"))) -> 7.034782609 | I42: =IF(OR(I41="---",N41="Yes"),"---",IF(N42="NO",IF((G42-H41)>=0,G42-H41,0),"SOLD")) -> 0 | J42: 0 | K42: =IF(OR(K41="---",N41="Yes"),"---",IF(N42="YES","SOLD",IF(G42-H41<0,G42-H41,0))) -> -0.6604554865 | L42: 0 | M42: =IF(OR(M41="---",N41="Yes"),"---",IF(N42="Yes",G42-H41,IF(G42-$E$26<0,G42-$E$26,0))) -> -28.44271465 | N42: NO
A43: =T2 -> 2020 | B43: =B23/$T$3 -> 0.79512 | C43: =C23/$T$3 -> 0.79512 | D43: =D23/$T$3 -> 6.472 | E43: =D43*$C$1 -> 6.472 | F43: =F23/$T$3 -> 6.48 | G43: 6.48 | H43: =IF(OR(H42="---",N42="Yes"),"---",IF(G43>=E43,G43,IF(G43<E43,IF(G43<$E$26,$E$26,G43),"ERROR"))) -> 6.48 | I43: =IF(OR(I42="---",N42="Yes"),"---",IF(N43="NO",IF((G43-H42)>=0,G43-H42,0),"SOLD")) -> 0 | J43: 0 | K43: =IF(OR(K42="---",N42="Yes"),"---",IF(N43="YES","SOLD",IF(G43-H42<0,G43-H42,0))) -> -0.5547826087 | L43: 0 | M43: =IF(OR(M42="---",N42="Yes"),"---",IF(N43="Yes",G43-H42,IF(G43-$E$26<0,G43-$E$26,0))) -> -28.99749726 | N43: NO
A46: FOREIGN FUND NAME (as on moneycontrol.com site) | B46: FOREIGN FUND SYMBOL (as on moneycontrol.com site) | C46: FUND'S REGISTERED ADDRESS (as on moneycontrol.com's site) | E46: FOLIO OR ACCOUNT NUMBER IF APPLICABLE | F46: IF FUND NOT HELD DIRECTLY, GIVE BROKERAGE NAME WHERE YOU HOLD IT | H46: IF YOU HAVE IT IN BROKERAGE, THEN GIVE BROKERAGE FULL ADDRESS | J46: Date which Mutual Fund Account Was Bought, OR if held in Brokerage, date which Brokerage Account was Opened | K46: Date which Mutual Fund Account Was Sold, OR if held in Brokerage, date which Brokerage Account was Closed
A47: Mutual Fund Name (Enter in A47)

Sheet Mutual Fund 3
B1: Units at Beginning of Period | C1: 1 | D1: DEFAULT EXCHANGE RATES ARE INDIAN RUPEES TO ONE DOLLAR, AS PER WWW.X-RATES.COM ON 12/31 OF EACH YEAR. CHANGE ACCORDINGLY FOR YOUR COUNTRY. ALL NUMERICAL FIELDS IN BLUE ARE CHANGEABLE BY YOU. FUTURE YEARS HAVE DUMMY VALUES. IF YOUR FUND HAS DIVIDENDS WHICH ARE REINVESTED, TREAT EACH BATCH OF UNITS NEWLY BOUGHT BY REINVESTED DIVIDENDS AS A NEW MUTUAL FUND TO PROPERLY KEEP TRACK OF THE COST BASIS OF THOSE REINVESTED DIVIDENDS. FILL FUND NAME AND STUFF IN ROW "A" AT BOTTOM OF SHEET.
C2: 2003 | D2: 2004 | E2: 2005 | F2: 2006 | G2: 2007 | H2: 2008 | I2: 2009 | J2: 2010 | K2: 2011 | L2: 2012 | M2: 2013 | N2: 2014 | O2: 2015 | P2: 2016 | Q2: 2017 | R2: 2018 | S2: 2019 | T2: 2020
A3: =A47 -> Mutual Fund Name (Enter in A47) | B3: Exc Rate 12/31 | C3: 45.55 | D3: 43.27 | E3: 44.95 | F3: 44.11 | G3: 39.37 | H3: 48.58 | I3: 46.41 | J3: 44.7 | K3: 53.061002 | L3: 54.850973 | M3: 61.859005 | N3: 65 | O3: 75 | P3: 85 | Q3: 95 | R3: 105 | S3: 115 | T3: 125
A5: Year | B5: Highest NAV Per Unit During Calendar Year (01-01-xx to 12-31-xx) | C5: Highest Value of Fund in Calendar Year (01-01-xx to 12-31-xx) | D5: NAV Per Unit on Opening of First Business Day of Current Year (Jan) | E5: Total Nav on First Business Day of Current Year | F5: NAV (FMV) Per Unit on at Close of Last Business Day of Year, or SALE PRICE per UNIT (Dec) | G5: Total Nav Last business day of Year | H5: Adjusted Basis at EOY (or Sale Price) | I5: Section 1296 MTM (Mark to Market) Gain for the Tax Year | J5: Cumulative Net (MTM) Gains (afer unrealized loss for year deducted) | K5: Unrealized Loss for year | L5: Deductible Loss for Year (Unreversed Inclusion) (Ordinary Loss Allowed Up to Prior MTM Gain) | M5: Potential Capital Gain/Loss (if any) | N5: Mutual Fund Sold?
A6: =C2 -> 2003 | B6: 0 | C6: =B6*$C$1 -> 0 | D6: 1616 | E6: =D6*$C$1 -> 1616 | F6: 3291 | G6: =F6*$C$1 -> 3291 | H6: =IF(G6>=E6,G6,IF(G6<E6,IF(G6<$E$6,$E$6,G6),"ERROR")) -> 3291 | I6: =IF(N6="NO",IF((G6-E6)>=0,G6-E6,0),"SOLD") -> 1675 | J6: =IF(N6="Yes","SOLD",I6) -> 1675 | K6: =IF(N6="Yes","SOLD",IF(G6-E6<0,G6-E6,0)) -> 0 | L6: =IF(N6="Yes","SOLD",IF(-K6>J6,-J6,K6)) -> 0 | M6: =IF(N6="Yes",H6-E6,IF(G6-$E$6<0,G6-$E$6,0)) -> 0 | N6: =IF(O6=FALSE,"NO",IF(O6=TRUE,"YES","NO")) -> NO | O6: FALSE
A7: =D2 -> 2004 | B7: 27.85 | C7: =B7*$C$1 -> 27.85 | D7: =G6 -> 3291 | E7: =D7*$C$1 -> 3291 | F7: 4389 | G7: =F7*$C$1 -> 4389 | H7: =IF(OR(H6="---",N6="Yes"),"---",IF(G7>=E7,G7,IF(G7<E7,IF(G7<$E$6,$E$6,G7),"ERROR"))) -> 4389 | I7: =IF(OR(I6="---",N6="Yes"),"---",IF(N7="NO",IF((G7-H6)>=0,G7-H6,0),"SOLD")) -> 1098 | J7: =IF(OR(J6="---",N6="Yes"),"---",IF(N7="No",J6+I7+L7,"CUM NET MTM IN ADJ BASIS")) -> 2773 | K7: =IF(OR(K6="---",N6="Yes"),"---",IF(N7="YES","SOLD",IF(G7-H6<0,G7-H6,0))) -> 0 | L7: =IF(OR(L6="---",N6="Yes"),"---",IF(N7="Yes","SOLD",IF(-K7>J6,-J6,K7))) -> 0 | M7: =IF(OR(M6="---",N6="Yes"),"---",IF(N7="Yes",G7-H6,IF(G7-$E$6<0,G7-$E$6,0))) -> 0 | N7: =IF(O7=FALSE,"NO",IF(O7=TRUE,"YES","NO")) -> NO | O7: FALSE
A8: =E2 -> 2005 | B8: 36.55 | C8: 36.55 | D8: =G7 -> 4389 | E8: 4389 | F8: 2823 | G8: 2823 | H8: =IF(OR(H7="---",N7="Yes"),"---",IF(G8>=E8,G8,IF(G8<E8,IF(G8<$E$6,$E$6,G8),"ERROR"))) -> 2823 | I8: =IF(OR(I7="---",N7="Yes"),"---",IF(N8="NO",IF((G8-H7)>=0,G8-H7,0),"SOLD")) -> 0 | J8: =IF(OR(J7="---",N7="Yes"),"---",IF(N8="No",J7+I8+L8,"CUM NET MTM IN ADJ BASIS")) -> 1207 | K8: =IF(OR(K7="---",N7="Yes"),"---",IF(N8="YES","SOLD",IF(G8-H7<0,G8-H7,0))) -> -1566 | L8: =IF(OR(L7="---",N7="Yes"),"---",IF(N8="Yes","SOLD",IF(-K8>J7,-J7,K8))) -> -1566 | M8: =IF(OR(M7="---",N7="Yes"),"---",IF(N8="Yes",G8-H7,IF(G8-$E$6<0,G8-$E$6,0))) -> 0 | N8: NO | O8: FALSE
A9: =F2 -> 2006 | B9: 49.57 | C9: 49.57 | D9: 2823 | E9: 2823 | F9: 3507 | G9: 3507 | H9: =IF(OR(H8="---",N8="Yes"),"---",IF(G9>=E9,G9,IF(G9<E9,IF(G9<$E$6,$E$6,G9),"ERROR"))) -> 3507 | I9: =IF(OR(I8="---",N8="Yes"),"---",IF(N9="NO",IF((G9-H8)>=0,G9-H8,0),"SOLD")) -> 684 | J9: 1891 | K9: =IF(OR(K8="---",N8="Yes"),"---",IF(N9="YES","SOLD",IF(G9-H8<0,G9-H8,0))) -> 0 | L9: 0 | M9: =IF(OR(M8="---",N8="Yes"),"---",IF(N9="Yes",G9-H8,IF(G9-$E$6<0,G9-$E$6,0))) -> 0 | N9: NO | O9: FALSE
A10: =G2 -> 2007 | B10: 76.64 | C10: 76.64 | D10: 3507 | E10: 3507 | F10: 3300 | G10: 3300 | H10: =IF(OR(H9="---",N9="Yes"),"---",IF(G10>=E10,G10,IF(G10<E10,IF(G10<$E$6,$E$6,G10),"ERROR"))) -> 3300 | I10: =IF(OR(I9="---",N9="Yes"),"---",IF(N10="NO",IF((G10-H9)>=0,G10-H9,0),"SOLD")) -> 0 | J10: 1684 | K10: =IF(OR(K9="---",N9="Yes"),"---",IF(N10="YES","SOLD",IF(G10-H9<0,G10-H9,0))) -> -207 | L10: -207 | M10: =IF(OR(M9="---",N9="Yes"),"---",IF(N10="Yes",G10-H9,IF(G10-$E$6<0,G10-$E$6,0))) -> 0 | N10: NO | O10: FALSE
A11: =H2 -> 2008 | B11: 78.91 | C11: 78.91 | D11: 3300 | E11: 3300 | F11: 2500 | G11: 2500 | H11: =IF(OR(H10="---",N10="Yes"),"---",IF(G11>=E11,G11,IF(G11<E11,IF(G11<$E$6,$E$6,G11),"ERROR"))) -> 2500 | I11: =IF(OR(I10="---",N10="Yes"),"---",IF(N11="NO",IF((G11-H10)>=0,G11-H10,0),"SOLD")) -> 0 | J11: 884 | K11: =IF(OR(K10="---",N10="Yes"),"---",IF(N11="YES","SOLD",IF(G11-H10<0,G11-H10,0))) -> -800 | L11: -800 | M11: =IF(OR(M10="---",N10="Yes"),"---",IF(N11="Yes",G11-H10,IF(G11-$E$6<0,G11-$E$6,0))) -> 0 | N11: NO | O11: FALSE
A12: =I2 -> 2009 | B12: 74.58 | C12: 74.58 | D12: 2500 | E12: 2500 | F12: 2600 | G12: 2600 | H12: =IF(OR(H11="---",N11="Yes"),"---",IF(G12>=E12,G12,IF(G12<E12,IF(G12<$E$6,$E$6,G12),"ERROR"))) -> 2600 | I12: =IF(OR(I11="---",N11="Yes"),"---",IF(N12="NO",IF((G12-H11)>=0,G12-H11,0),"SOLD")) -> 100 | J12: 984 | K12: =IF(OR(K11="---",N11="Yes"),"---",IF(N12="YES","SOLD",IF(G12-H11<0,G12-H11,0))) -> 0 | L12: 0 | M12: =IF(OR(M11="---",N11="Yes"),"---",IF(N12="Yes",G12-H11,IF(G12-$E$6<0,G12-$E$6,0))) -> 0 | N12: NO | O12: FALSE
A13: =J2 -> 2010 | B13: 89.39 | C13: 89.39 | D13: 2600 | E13: 2600 | F13: 800 | G13: 800 | H13: =IF(OR(H12="---",N12="Yes"),"---",IF(G13>=E13,G13,IF(G13<E13,IF(G13<$E$6,$E$6,G13),"ERROR"))) -> 1616 | I13: =IF(OR(I12="---",N12="Yes"),"---",IF(N13="NO",IF((G13-H12)>=0,G13-H12,0),"SOLD")) -> 0 | J13: 0 | K13: =IF(OR(K12="---",N12="Yes"),"---",IF(N13="YES","SOLD",IF(G13-H12<0,G13-H12,0))) -> -1800 | L13: -984 | M13: =IF(OR(M12="---",N12="Yes"),"---",IF(N13="Yes",G13-H12,IF(G13-$E$6<0,G13-$E$6,0))) -> -816 | N13: NO | O13: FALSE
A14: =K2 -> 2011 | B14: 90.39 | C14: 90.39 | D14: 800 | E14: 800 | F14: 801 | G14: 801 | H14: =IF(OR(H13="---",N13="Yes"),"---",IF(G14>=E14,G14,IF(G14<E14,IF(G14<$E$6,$E$6,G14),"ERROR"))) -> 801 | I14: =IF(OR(I13="---",N13="Yes"),"---",IF(N14="NO",IF((G14-H13)>=0,G14-H13,0),"SOLD")) -> 0 | J14: 0 | K14: =IF(OR(K13="---",N13="Yes"),"---",IF(N14="YES","SOLD",IF(G14-H13<0,G14-H13,0))) -> -815 | L14: 0 | M14: =IF(OR(M13="---",N13="Yes"),"---",IF(N14="Yes",G14-H13,IF(G14-$E$6<0,G14-$E$6,0))) -> -815 | N14: NO | O14: FALSE
A15: =L2 -> 2012 | B15: 91.39 | C15: 91.39 | D15: 801 | E15: 801 | F15: 802 | G15: 802 | H15: =IF(OR(H14="---",N14="Yes"),"---",IF(G15>=E15,G15,IF(G15<E15,IF(G15<$E$6,$E$6,G15),"ERROR"))) -> 802 | I15: =IF(OR(I14="---",N14="Yes"),"---",IF(N15="NO",IF((G15-H14)>=0,G15-H14,0),"SOLD")) -> 1 | J15: 1 | K15: =IF(OR(K14="---",N14="Yes"),"---",IF(N15="YES","SOLD",IF(G15-H14<0,G15-H14,0))) -> 0 | L15: 0 | M15: =IF(OR(M14="---",N14="Yes"),"---",IF(N15="Yes",G15-H14,IF(G15-$E$6<0,G15-$E$6,0))) -> -814 | N15: NO | O15: FALSE
A16: =M2 -> 2013 | B16: 92.39 | C16: 92.39 | D16: 802 | E16: 802 | F16: 803 | G16: 803 | H16: =IF(OR(H15="---",N15="Yes"),"---",IF(G16>=E16,G16,IF(G16<E16,IF(G16<$E$6,$E$6,G16),"ERROR"))) -> 803 | I16: =IF(OR(I15="---",N15="Yes"),"---",IF(N16="NO",IF((G16-H15)>=0,G16-H15,0),"SOLD")) -> 1 | J16: 2 | K16: =IF(OR(K15="---",N15="Yes"),"---",IF(N16="YES","SOLD",IF(G16-H15<0,G16-H15,0))) -> 0 | L16: 0 | M16: =IF(OR(M15="---",N15="Yes"),"---",IF(N16="Yes",G16-H15,IF(G16-$E$6<0,G16-$E$6,0))) -> -813 | N16: NO | O16: FALSE
A17: =N2 -> 2014 | B17: 93.39 | C17: 93.39 | D17: 803 | E17: 803 | F17: 804 | G17: 804 | H17: =IF(OR(H16="---",N16="Yes"),"---",IF(G17>=E17,G17,IF(G17<E17,IF(G17<$E$6,$E$6,G17),"ERROR"))) -> 804 | I17: =IF(OR(I16="---",N16="Yes"),"---",IF(N17="NO",IF((G17-H16)>=0,G17-H16,0),"SOLD")) -> 1 | J17: 3 | K17: =IF(OR(K16="---",N16="Yes"),"---",IF(N17="YES","SOLD",IF(G17-H16<0,G17-H16,0))) -> 0 | L17: 0 | M17: =IF(OR(M16="---",N16="Yes"),"---",IF(N17="Yes",G17-H16,IF(G17-$E$6<0,G17-$E$6,0))) -> -812 | N17: NO | O17: FALSE
A18: =O2 -> 2015 | B18: 94.39 | C18: 94.39 | D18: 804 | E18: 804 | F18: 805 | G18: 805 | H18: =IF(OR(H17="---",N17="Yes"),"---",IF(G18>=E18,G18,IF(G18<E18,IF(G18<$E$6,$E$6,G18),"ERROR"))) -> 805 | I18: =IF(OR(I17="---",N17="Yes"),"---",IF(N18="NO",IF((G18-H17)>=0,G18-H17,0),"SOLD")) -> 1 | J18: 4 | K18: =IF(OR(K17="---",N17="Yes"),"---",IF(N18="YES","SOLD",IF(G18-H17<0,G18-H17,0))) -> 0 | L18: 0 | M18: =IF(OR(M17="---",N17="Yes"),"---",IF(N18="Yes",G18-H17,IF(G18-$E$6<0,G18-$E$6,0))) -> -811 | N18: NO | O18: FALSE
A19: =P2 -> 2016 | B19: 95.39 | C19: 95.39 | D19: 805 | E19: 805 | F19: 806 | G19: 806 | H19: =IF(OR(H18="---",N18="Yes"),"---",IF(G19>=E19,G19,IF(G19<E19,IF(G19<$E$6,$E$6,G19),"ERROR"))) -> 806 | I19: =IF(OR(I18="---",N18="Yes"),"---",IF(N19="NO",IF((G19-H18)>=0,G19-H18,0),"SOLD")) -> 1 | J19: 5 | K19: =IF(OR(K18="---",N18="Yes"),"---",IF(N19="YES","SOLD",IF(G19-H18<0,G19-H18,0))) -> 0 | L19: 0 | M19: =IF(OR(M18="---",N18="Yes"),"---",IF(N19="Yes",G19-H18,IF(G19-$E$6<0,G19-$E$6,0))) -> -810 | N19: NO | O19: FALSE
A20: =Q2 -> 2017 | B20: 96.39 | C20: 96.39 | D20: 806 | E20: 806 | F20: 807 | G20: 807 | H20: =IF(OR(H19="---",N19="Yes"),"---",IF(G20>=E20,G20,IF(G20<E20,IF(G20<$E$6,$E$6,G20),"ERROR"))) -> 807 | I20: =IF(OR(I19="---",N19="Yes"),"---",IF(N20="NO",IF((G20-H19)>=0,G20-H19,0),"SOLD")) -> 1 | J20: 6 | K20: =IF(OR(K19="---",N19="Yes"),"---",IF(N20="YES","SOLD",IF(G20-H19<0,G20-H19,0))) -> 0 | L20: 0 | M20: =IF(OR(M19="---",N19="Yes"),"---",IF(N20="Yes",G20-H19,IF(G20-$E$6<0,G20-$E$6,0))) -> -809 | N20: NO | O20: FALSE
A21: =R2 -> 2018 | B21: 97.39 | C21: 97.39 | D21: 807 | E21: 807 | F21: 808 | G21: 808 | H21: =IF(OR(H20="---",N20="Yes"),"---",IF(G21>=E21,G21,IF(G21<E21,IF(G21<$E$6,$E$6,G21),"ERROR"))) -> 808 | I21: =IF(OR(I20="---",N20="Yes"),"---",IF(N21="NO",IF((G21-H20)>=0,G21-H20,0),"SOLD")) -> 1 | J21: 7 | K21: =IF(OR(K20="---",N20="Yes"),"---",IF(N21="YES","SOLD",IF(G21-H20<0,G21-H20,0))) -> 0 | L21: 0 | M21: =IF(OR(M20="---",N20="Yes"),"---",IF(N21="Yes",G21-H20,IF(G21-$E$6<0,G21-$E$6,0))) -> -808 | N21: NO | O21: FALSE
A22: =S2 -> 2019 | B22: 98.39 | C22: 98.39 | D22: 808 | E22: 808 | F22: 809 | G22: 809 | H22: =IF(OR(H21="---",N21="Yes"),"---",IF(G22>=E22,G22,IF(G22<E22,IF(G22<$E$6,$E$6,G22),"ERROR"))) -> 809 | I22: =IF(OR(I21="---",N21="Yes"),"---",IF(N22="NO",IF((G22-H21)>=0,G22-H21,0),"SOLD")) -> 1 | J22: 8 | K22: =IF(OR(K21="---",N21="Yes"),"---",IF(N22="YES","SOLD",IF(G22-H21<0,G22-H21,0))) -> 0 | L22: 0 | M22: =IF(OR(M21="---",N21="Yes"),"---",IF(N22="Yes",G22-H21,IF(G22-$E$6<0,G22-$E$6,0))) -> -807 | N22: NO | O22: FALSE
A23: =T2 -> 2020 | B23: 99.39 | C23: 99.39 | D23: 809 | E23: 809 | F23: 810 | G23: 810 | H23: =IF(OR(H22="---",N22="Yes"),"---",IF(G23>=E23,G23,IF(G23<E23,IF(G23<$E$6,$E$6,G23),"ERROR"))) -> 810 | I23: =IF(OR(I22="---",N22="Yes"),"---",IF(N23="NO",IF((G23-H22)>=0,G23-H22,0),"SOLD")) -> 1 | J23: 9 | K23: =IF(OR(K22="---",N22="Yes"),"---",IF(N23="YES","SOLD",IF(G23-H22<0,G23-H22,0))) -> 0 | L23: 0 | M23: =IF(OR(M22="---",N22="Yes"),"---",IF(N23="Yes",G23-H22,IF(G23-$E$6<0,G23-$E$6,0))) -> -806 | N23: NO | O23: FALSE
A25: Year | B25: Highest NAV Per Unit During Calendar Year (01-01-xx to 12-31-xx) | C25: Highest Value of Fund in Calendar Year (01-01-xx to 12-31-xx) | D25: NAV Per Unit on Opening of First Business Day of Current Year (Jan) | E25: Total Nav on First Business Day of Current Year | F25: NAV (FMV) Per Unit on at Close of Last Business Day of Year, or SALE PRICE per UNIT (Dec) | G25: Total Nav Last business day of Year | H25: Adjusted Basis at EOY (or Sale Price) | I25: Section 1296 MTM (Mark to Market) Gain for the Tax Year | J25: Cumulative Net (MTM) Gains | K25: Unrealized Loss for year | L25: Deductible Loss for Year (Unreversed Inclusion) (Ordinary Loss Allowed Up to Prior MTM Gain) | M25: Potential Capital Gain/Loss (if any) | N25: Mutual Fund Sold?
A26: =C2 -> 2003 | B26: =B6/$C$3 -> 0 | C26: =C6/$C$3 -> 0 | D26: =D6/$C$3 -> 35.47749726 | E26: =D26*$C$1 -> 35.47749726 | F26: =F6/$C$3 -> 72.25027442 | G26: =F26*$C$1 -> 72.25027442 | H26: =IF(G26>=E26,G26,IF(G26<E26,IF(G26<$E$26,$E$26,G26),"ERROR")) -> 72.25027442 | I26: =IF(N26="NO",IF((G26-E26)>=0,G26-E26,0),"SOLD") -> 36.77277717 | J26: =IF(N26="Yes","SOLD",I26) -> 36.77277717 | K26: =IF(N26="Yes","SOLD",IF(G26-E26<0,G26-E26,0)) -> 0 | L26: =IF(N26="Yes","SOLD",IF(-K26>J26,-J26,K26)) -> 0 | M26: =IF(N26="Yes",H26-E26,IF(G26-$E$26<0,G26-$E$26,0)) -> 0 | N26: =N6 -> NO
A27: =D2 -> 2004 | B27: =B7/$D$3 -> 0.6436330021 | C27: =C7/$D$3 -> 0.6436330021 | D27: =D7/$D$3 -> 76.05731454 | E27: =D27*$C$1 -> 76.05731454 | F27: =F7/$D$3 -> 101.4328634 | G27: 101.4328634 | H27: =IF(OR(H26="---",N26="Yes"),"---",IF(G27>=E27,G27,IF(G27<E27,IF(G27<$E$26,$E$26,G27),"ERROR"))) -> 101.4328634 | I27: =IF(OR(I26="---",N26="Yes"),"---",IF(N27="NO",IF((G27-H26)>=0,G27-H26,0),"SOLD")) -> 29.18258899 | J27: =IF(OR(J26="---",N26="Yes"),"---",IF(N27="No",J26+I27+L27,"CUM NET MTM IN ADJ BASIS")) -> 65.95536616 | K27: =IF(OR(K26="---",N26="Yes"),"---",IF(N27="YES","SOLD",IF(G27-H26<0,G27-H26,0))) -> 0 | L27: =IF(OR(L26="---",N26="Yes"),"---",IF(N27="Yes","SOLD",IF(-K27>J26,-J26,K27))) -> 0 | M27: =IF(OR(M26="---",N26="Yes"),"---",IF(N27="Yes",G27-H26,IF(G27-$E$26<0,G27-$E$26,0))) -> 0 | N27: =N7 -> NO
A28: =E2 -> 2005 | B28: =B8/$E$3 -> 0.8131256952 | C28: =C8/$E$3 -> 0.8131256952 | D28: =D8/$E$3 -> 97.64182425 | E28: 97.64182425 | F28: =F8/$E$3 -> 62.80311457 | G28: 62.80311457 | H28: =IF(OR(H27="---",N27="Yes"),"---",IF(G28>=E28,G28,IF(G28<E28,IF(G28<$E$26,$E$26,G28),"ERROR"))) -> 62.80311457 | I28: =IF(OR(I27="---",N27="Yes"),"---",IF(N28="NO",IF((G28-H27)>=0,G28-H27,0),"SOLD")) -> 0 | J28: =IF(OR(J27="---",N27="Yes"),"---",IF(N28="No",J27+I28+L28,"CUM NET MTM IN ADJ BASIS")) -> 27.32561732 | K28: =IF(OR(K27="---",N27="Yes"),"---",IF(N28="YES","SOLD",IF(G28-H27<0,G28-H27,0))) -> -38.62974884 | L28: =IF(OR(L27="---",N27="Yes"),"---",IF(N28="Yes","SOLD",IF(-K28>J27,-J27,K28))) -> -38.62974884 | M28: =IF(OR(M27="---",N27="Yes"),"---",IF(N28="Yes",G28-H27,IF(G28-$E$26<0,G28-$E$26,0))) -> 0 | N28: NO
A29: =F2 -> 2006 | B29: =B9/$F$3 -> 1.123781455 | C29: =C9/$F$3 -> 1.123781455 | D29: =D9/$F$3 -> 63.99909318 | E29: 63.99909318 | F29: =F9/$F$3 -> 79.505781 | G29: 79.505781 | H29: =IF(OR(H28="---",N28="Yes"),"---",IF(G29>=E29,G29,IF(G29<E29,IF(G29<$E$26,$E$26,G29),"ERROR"))) -> 79.505781 | I29: =IF(OR(I28="---",N28="Yes"),"---",IF(N29="NO",IF((G29-H28)>=0,G29-H28,0),"SOLD")) -> 16.70266643 | J29: 44.02828375 | K29: =IF(OR(K28="---",N28="Yes"),"---",IF(N29="YES","SOLD",IF(G29-H28<0,G29-H28,0))) -> 0 | L29: 0 | M29: =IF(OR(M28="---",N28="Yes"),"---",IF(N29="Yes",G29-H28,IF(G29-$E$26<0,G29-$E$26,0))) -> 0 | N29: NO
A30: =G2 -> 2007 | B30: =B10/$G$3 -> 1.946659893 | C30: =C10/$G$3 -> 1.946659893 | D30: =D10/$G$3 -> 89.07797816 | E30: 89.07797816 | F30: =F10/$G$3 -> 83.82016764 | G30: 83.82016764 | H30: =IF(OR(H29="---",N29="Yes"),"---",IF(G30>=E30,G30,IF(G30<E30,IF(G30<$E$26,$E$26,G30),"ERROR"))) -> 83.82016764 | I30: =IF(OR(I29="---",N29="Yes"),"---",IF(N30="NO",IF((G30-H29)>=0,G30-H29,0),"SOLD")) -> 4.314386638 | J30: 48.34267038 | K30: =IF(OR(K29="---",N29="Yes"),"---",IF(N30="YES","SOLD",IF(G30-H29<0,G30-H29,0))) -> 0 | L30: 0 | M30: =IF(OR(M29="---",N29="Yes"),"---",IF(N30="Yes",G30-H29,IF(G30-$E$26<0,G30-$E$26,0))) -> 0 | N30: NO
A31: =H2 -> 2008 | B31: =B11/$H$3 -> 1.624331 | C31: =C11/$H$3 -> 1.624331 | D31: =D11/$H$3 -> 67.92918897 | E31: 67.92918897 | F31: =F11/$H$3 -> 51.46150679 | G31: 51.46150679 | H31: =IF(OR(H30="---",N30="Yes"),"---",IF(G31>=E31,G31,IF(G31<E31,IF(G31<$E$26,$E$26,G31),"ERROR"))) -> 51.46150679 | I31: =IF(OR(I30="---",N30="Yes"),"---",IF(N31="NO",IF((G31-H30)>=0,G31-H30,0),"SOLD")) -> 0 | J31: 15.98400954 | K31: =IF(OR(K30="---",N30="Yes"),"---",IF(N31="YES","SOLD",IF(G31-H30<0,G31-H30,0))) -> -32.35866085 | L31: -32.35866085 | M31: =IF(OR(M30="---",N30="Yes"),"---",IF(N31="Yes",G31-H30,IF(G31-$E$26<0,G31-$E$26,0))) -> 0 | N31: NO
A32: =I2 -> 2009 | B32: =B12/$I$3 -> 1.606981254 | C32: =C12/$I$3 -> 1.606981254 | D32: =D12/$I$3 -> 53.86770093 | E32: 53.86770093 | F32: =F12/$I$3 -> 56.02240896 | G32: 56.02240896 | H32: =IF(OR(H31="---",N31="Yes"),"---",IF(G32>=E32,G32,IF(G32<E32,IF(G32<$E$26,$E$26,G32),"ERROR"))) -> 56.02240896 | I32: =IF(OR(I31="---",N31="Yes"),"---",IF(N32="NO",IF((G32-H31)>=0,G32-H31,0),"SOLD")) -> 4.560902171 | J32: 20.54491171 | K32: =IF(OR(K31="---",N31="Yes"),"---",IF(N32="YES","SOLD",IF(G32-H31<0,G32-H31,0))) -> 0 | L32: 0 | M32: =IF(OR(M31="---",N31="Yes"),"---",IF(N32="Yes",G32-H31,IF(G32-$E$26<0,G32-$E$26,0))) -> 0 | N32: NO
A33: =J2 -> 2010 | B33: =B13/$J$3 -> 1.999776286 | C33: =C13/$J$3 -> 1.999776286 | D33: =D13/$J$3 -> 58.1655481 | E33: 58.1655481 | F33: =F13/$J$3 -> 17.89709172 | G33: 17.89709172 | H33: =IF(OR(H32="---",N32="Yes"),"---",IF(G33>=E33,G33,IF(G33<E33,IF(G33<$E$26,$E$26,G33),"ERROR"))) -> 35.47749726 | I33: =IF(OR(I32="---",N32="Yes"),"---",IF(N33="NO",IF((G33-H32)>=0,G33-H32,0),"SOLD")) -> 0 | J33: 0 | K33: =IF(OR(K32="---",N32="Yes"),"---",IF(N33="YES","SOLD",IF(G33-H32<0,G33-H32,0))) -> -38.12531724 | L33: -20.54491171 | M33: =IF(OR(M32="---",N32="Yes"),"---",IF(N33="Yes",G33-H32,IF(G33-$E$26<0,G33-$E$26,0))) -> -17.58040553 | N33: NO
A34: =K2 -> 2011 | B34: =B14/$K$3 -> 1.703510989 | C34: =C14/$K$3 -> 1.703510989 | D34: =D14/$K$3 -> 15.0769863 | E34: 15.0769863 | F34: =F14/$K$3 -> 15.09583253 | G34: 15.09583253 | H34: =IF(OR(H33="---",N33="Yes"),"---",IF(G34>=E34,G34,IF(G34<E34,IF(G34<$E$26,$E$26,G34),"ERROR"))) -> 15.09583253 | I34: =IF(OR(I33="---",N33="Yes"),"---",IF(N34="NO",IF((G34-H33)>=0,G34-H33,0),"SOLD")) -> 0 | J34: 0 | K34: =IF(OR(K33="---",N33="Yes"),"---",IF(N34="YES","SOLD",IF(G34-H33<0,G34-H33,0))) -> -20.38166473 | L34: 0 | M34: =IF(OR(M33="---",N33="Yes"),"---",IF(N34="Yes",G34-H33,IF(G34-$E$26<0,G34-$E$26,0))) -> -20.38166473 | N34: NO
A35: =L2 -> 2012 | B35: =B15/$L$3 -> 1.666150936 | C35: =C15/$L$3 -> 1.666150936 | D35: =D15/$L$3 -> 14.60320494 | E35: 14.60320494 | F35: =F15/$L$3 -> 14.62143616 | G35: 14.62143616 | H35: =IF(OR(H34="---",N34="Yes"),"---",IF(G35>=E35,G35,IF(G35<E35,IF(G35<$E$26,$E$26,G35),"ERROR"))) -> 14.62143616 | I35: =IF(OR(I34="---",N34="Yes"),"---",IF(N35="NO",IF((G35-H34)>=0,G35-H34,0),"SOLD")) -> 0 | J35: 0 | K35: =IF(OR(K34="---",N34="Yes"),"---",IF(N35="YES","SOLD",IF(G35-H34<0,G35-H34,0))) -> -0.4743963694 | L35: 0 | M35: =IF(OR(M34="---",N34="Yes"),"---",IF(N35="Yes",G35-H34,IF(G35-$E$26<0,G35-$E$26,0))) -> -20.8560611 | N35: NO
A36: =M2 -> 2013 | B36: =B16/$M$3 -> 1.493557809 | C36: =C16/$M$3 -> 1.493557809 | D36: =D16/$M$3 -> 12.96496767 | E36: 12.96496767 | F36: =F16/$M$3 -> 12.98113347 | G36: 12.98113347 | H36: =IF(OR(H35="---",N35="Yes"),"---",IF(G36>=E36,G36,IF(G36<E36,IF(G36<$E$26,$E$26,G36),"ERROR"))) -> 12.98113347 | I36: =IF(OR(I35="---",N35="Yes"),"---",IF(N36="NO",IF((G36-H35)>=0,G36-H35,0),"SOLD")) -> 0 | J36: 0 | K36: =IF(OR(K35="---",N35="Yes"),"---",IF(N36="YES","SOLD",IF(G36-H35<0,G36-H35,0))) -> -1.640302693 | L36: 0 | M36: =IF(OR(M35="---",N35="Yes"),"---",IF(N36="Yes",G36-H35,IF(G36-$E$26<0,G36-$E$26,0))) -> -22.49636379 | N36: NO
A37: =N2 -> 2014 | B37: =B17/$N$3 -> 1.436769231 | C37: =C17/$N$3 -> 1.436769231 | D37: =D17/$N$3 -> 12.35384615 | E37: 12.35384615 | F37: =F17/$N$3 -> 12.36923077 | G37: 12.36923077 | H37: =IF(OR(H36="---",N36="Yes"),"---",IF(G37>=E37,G37,IF(G37<E37,IF(G37<$E$26,$E$26,G37),"ERROR"))) -> 12.36923077 | I37: =IF(OR(I36="---",N36="Yes"),"---",IF(N37="NO",IF((G37-H36)>=0,G37-H36,0),"SOLD")) -> 0 | J37: 0 | K37: =IF(OR(K36="---",N36="Yes"),"---",IF(N37="YES","SOLD",IF(G37-H36<0,G37-H36,0))) -> -0.6119026971 | L37: 0 | M37: =IF(OR(M36="---",N36="Yes"),"---",IF(N37="Yes",G37-H36,IF(G37-$E$26<0,G37-$E$26,0))) -> -23.10826649 | N37: NO
A38: =O2 -> 2015 | B38: =B18/$O$3 -> 1.258533333 | C38: =C18/$O$3 -> 1.258533333 | D38: =D18/$O$3 -> 10.72 | E38: 10.72 | F38: =F18/$O$3 -> 10.73333333 | G38: 10.73333333 | H38: =IF(OR(H37="---",N37="Yes"),"---",IF(G38>=E38,G38,IF(G38<E38,IF(G38<$E$26,$E$26,G38),"ERROR"))) -> 10.73333333 | I38: =IF(OR(I37="---",N37="Yes"),"---",IF(N38="NO",IF((G38-H37)>=0,G38-H37,0),"SOLD")) -> 0 | J38: 0 | K38: =IF(OR(K37="---",N37="Yes"),"---",IF(N38="YES","SOLD",IF(G38-H37<0,G38-H37,0))) -> -1.635897436 | L38: 0 | M38: =IF(OR(M37="---",N37="Yes"),"---",IF(N38="Yes",G38-H37,IF(G38-$E$26<0,G38-$E$26,0))) -> -24.74416392 | N38: NO
A39: =P2 -> 2016 | B39: =B19/$P$3 -> 1.122235294 | C39: =C19/$P$3 -> 1.122235294 | D39: =D19/$P$3 -> 9.470588235 | E39: 9.470588235 | F39: =F19/$P$3 -> 9.482352941 | G39: 9.482352941 | H39: =IF(OR(H38="---",N38="Yes"),"---",IF(G39>=E39,G39,IF(G39<E39,IF(G39<$E$26,$E$26,G39),"ERROR"))) -> 9.482352941 | I39: =IF(OR(I38="---",N38="Yes"),"---",IF(N39="NO",IF((G39-H38)>=0,G39-H38,0),"SOLD")) -> 0 | J39: 0 | K39: =IF(OR(K38="---",N38="Yes"),"---",IF(N39="YES","SOLD",IF(G39-H38<0,G39-H38,0))) -> -1.250980392 | L39: 0 | M39: =IF(OR(M38="---",N38="Yes"),"---",IF(N39="Yes",G39-H38,IF(G39-$E$26<0,G39-$E$26,0))) -> -25.99514431 | N39: NO
A40: =Q2 -> 2017 | B40: =B20/$Q$3 -> 1.014631579 | C40: =C20/$Q$3 -> 1.014631579 | D40: =D20/$Q$3 -> 8.484210526 | E40: 8.484210526 | F40: =F20/$Q$3 -> 8.494736842 | G40: 8.494736842 | H40: =IF(OR(H39="---",N39="Yes"),"---",IF(G40>=E40,G40,IF(G40<E40,IF(G40<$E$26,$E$26,G40),"ERROR"))) -> 8.494736842 | I40: =IF(OR(I39="---",N39="Yes"),"---",IF(N40="NO",IF((G40-H39)>=0,G40-H39,0),"SOLD")) -> 0 | J40: 0 | K40: =IF(OR(K39="---",N39="Yes"),"---",IF(N40="YES","SOLD",IF(G40-H39<0,G40-H39,0))) -> -0.9876160991 | L40: 0 | M40: =IF(OR(M39="---",N39="Yes"),"---",IF(N40="Yes",G40-H39,IF(G40-$E$26<0,G40-$E$26,0))) -> -26.98276041 | N40: NO
A41: =R2 -> 2018 | B41: =B21/$R$3 -> 0.9275238095 | C41: =C21/$R$3 -> 0.9275238095 | D41: =D21/$R$3 -> 7.685714286 | E41: 7.685714286 | F41: =F21/$R$3 -> 7.695238095 | G41: 7.695238095 | H41: =IF(OR(H40="---",N40="Yes"),"---",IF(G41>=E41,G41,IF(G41<E41,IF(G41<$E$26,$E$26,G41),"ERROR"))) -> 7.695238095 | I41: =IF(OR(I40="---",N40="Yes"),"---",IF(N41="NO",IF((G41-H40)>=0,G41-H40,0),"SOLD")) -> 0 | J41: 0 | K41: =IF(OR(K40="---",N40="Yes"),"---",IF(N41="YES","SOLD",IF(G41-H40<0,G41-H40,0))) -> -0.7994987469 | L41: 0 | M41: =IF(OR(M40="---",N40="Yes"),"---",IF(N41="Yes",G41-H40,IF(G41-$E$26<0,G41-$E$26,0))) -> -27.78225916 | N41: NO
A42: =S2 -> 2019 | B42: =B22/$S$3 -> 0.8555652174 | C42: =C22/$S$3 -> 0.8555652174 | D42: =D22/$S$3 -> 7.026086957 | E42: 7.026086957 | F42: =F22/$S$3 -> 7.034782609 | G42: 7.034782609 | H42: =IF(OR(H41="---",N41="Yes"),"---",IF(G42>=E42,G42,IF(G42<E42,IF(G42<$E$26,$E$26,G42),"ERROR"))) -> 7.034782609 | I42: =IF(OR(I41="---",N41="Yes"),"---",IF(N42="NO",IF((G42-H41)>=0,G42-H41,0),"SOLD")) -> 0 | J42: 0 | K42: =IF(OR(K41="---",N41="Yes"),"---",IF(N42="YES","SOLD",IF(G42-H41<0,G42-H41,0))) -> -0.6604554865 | L42: 0 | M42: =IF(OR(M41="---",N41="Yes"),"---",IF(N42="Yes",G42-H41,IF(G42-$E$26<0,G42-$E$26,0))) -> -28.44271465 | N42: NO
A43: =T2 -> 2020 | B43: =B23/$T$3 -> 0.79512 | C43: =C23/$T$3 -> 0.79512 | D43: =D23/$T$3 -> 6.472 | E43: =D43*$C$1 -> 6.472 | F43: =F23/$T$3 -> 6.48 | G43: 6.48 | H43: =IF(OR(H42="---",N42="Yes"),"---",IF(G43>=E43,G43,IF(G43<E43,IF(G43<$E$26,$E$26,G43),"ERROR"))) -> 6.48 | I43: =IF(OR(I42="---",N42="Yes"),"---",IF(N43="NO",IF((G43-H42)>=0,G43-H42,0),"SOLD")) -> 0 | J43: 0 | K43: =IF(OR(K42="---",N42="Yes"),"---",IF(N43="YES","SOLD",IF(G43-H42<0,G43-H42,0))) -> -0.5547826087 | L43: 0 | M43: =IF(OR(M42="---",N42="Yes"),"---",IF(N43="Yes",G43-H42,IF(G43-$E$26<0,G43-$E$26,0))) -> -28.99749726 | N43: NO
A46: FOREIGN FUND NAME (as on moneycontrol.com site) | B46: FOREIGN FUND SYMBOL (as on moneycontrol.com site) | C46: FUND'S REGISTERED ADDRESS (as on moneycontrol.com's site) | E46: FOLIO OR ACCOUNT NUMBER IF APPLICABLE | F46: IF FUND NOT HELD DIRECTLY, GIVE BROKERAGE NAME WHERE YOU HOLD IT | H46: IF YOU HAVE IT IN BROKERAGE, THEN GIVE BROKERAGE FULL ADDRESS | J46: Date which Mutual Fund Account Was Bought, OR if held in Brokerage, date which Brokerage Account was Opened | K46: Date which Mutual Fund Account Was Sold, OR if held in Brokerage, date which Brokerage Account was Closed
A47: Mutual Fund Name (Enter in A47)

Sheet Mutual Fund 4
B1: Units at Beginning of Period | C1: 1 | D1: DEFAULT EXCHANGE RATES ARE INDIAN RUPEES TO ONE DOLLAR, AS PER WWW.X-RATES.COM ON 12/31 OF EACH YEAR. CHANGE ACCORDINGLY FOR YOUR COUNTRY. ALL NUMERICAL FIELDS IN BLUE ARE CHANGEABLE BY YOU. FUTURE YEARS HAVE DUMMY VALUES. IF YOUR FUND HAS DIVIDENDS WHICH ARE REINVESTED, TREAT EACH BATCH OF UNITS NEWLY BOUGHT BY REINVESTED DIVIDENDS AS A NEW MUTUAL FUND TO PROPERLY KEEP TRACK OF THE COST BASIS OF THOSE REINVESTED DIVIDENDS. FILL FUND NAME AND STUFF IN ROW "A" AT BOTTOM OF SHEET.
C2: 2003 | D2: 2004 | E2: 2005 | F2: 2006 | G2: 2007 | H2: 2008 | I2: 2009 | J2: 2010 | K2: 2011 | L2: 2012 | M2: 2013 | N2: 2014 | O2: 2015 | P2: 2016 | Q2: 2017 | R2: 2018 | S2: 2019 | T2: 2020
A3: =A47 -> Mutual Fund Name (Enter in A47) | B3: Exc Rate 12/31 | C3: 45.55 | D3: 43.27 | E3: 44.95 | F3: 44.11 | G3: 39.37 | H3: 48.58 | I3: 46.41 | J3: 44.7 | K3: 53.061002 | L3: 54.850973 | M3: 61.859005 | N3: 65 | O3: 75 | P3: 85 | Q3: 95 | R3: 105 | S3: 115 | T3: 125
A5: Year | B5: Highest NAV Per Unit During Calendar Year (01-01-xx to 12-31-xx) | C5: Highest Value of Fund in Calendar Year (01-01-xx to 12-31-xx) | D5: NAV Per Unit on Opening of First Business Day of Current Year (Jan) | E5: Total Nav on First Business Day of Current Year | F5: NAV (FMV) Per Unit on at Close of Last Business Day of Year, or SALE PRICE per UNIT (Dec) | G5: Total Nav Last business day of Year | H5: Adjusted Basis at EOY (or Sale Price) | I5: Section 1296 MTM (Mark to Market) Gain for the Tax Year | J5: Cumulative Net (MTM) Gains (afer unrealized loss for year deducted) | K5: Unrealized Loss for year | L5: Deductible Loss for Year (Unreversed Inclusion) (Ordinary Loss Allowed Up to Prior MTM Gain) | M5: Potential Capital Gain/Loss (if any) | N5: Mutual Fund Sold?
A6: =C2 -> 2003 | B6: 0 | C6: =B6*$C$1 -> 0 | D6: 1616 | E6: =D6*$C$1 -> 1616 | F6: 3291 | G6: =F6*$C$1 -> 3291 | H6: =IF(G6>=E6,G6,IF(G6<E6,IF(G6<$E$6,$E$6,G6),"ERROR")) -> 3291 | I6: =IF(N6="NO",IF((G6-E6)>=0,G6-E6,0),"SOLD") -> 1675 | J6: =IF(N6="Yes","SOLD",I6) -> 1675 | K6: =IF(N6="Yes","SOLD",IF(G6-E6<0,G6-E6,0)) -> 0 | L6: =IF(N6="Yes","SOLD",IF(-K6>J6,-J6,K6)) -> 0 | M6: =IF(N6="Yes",H6-E6,IF(G6-$E$6<0,G6-$E$6,0)) -> 0 | N6: =IF(O6=FALSE,"NO",IF(O6=TRUE,"YES","NO")) -> NO | O6: FALSE
A7: =D2 -> 2004 | B7: 27.85 | C7: =B7*$C$1 -> 27.85 | D7: =G6 -> 3291 | E7: =D7*$C$1 -> 3291 | F7: 4389 | G7: =F7*$C$1 -> 4389 | H7: =IF(OR(H6="---",N6="Yes"),"---",IF(G7>=E7,G7,IF(G7<E7,IF(G7<$E$6,$E$6,G7),"ERROR"))) -> 4389 | I7: =IF(OR(I6="---",N6="Yes"),"---",IF(N7="NO",IF((G7-H6)>=0,G7-H6,0),"SOLD")) -> 1098 | J7: =IF(OR(J6="---",N6="Yes"),"---",IF(N7="No",J6+I7+L7,"CUM NET MTM IN ADJ BASIS")) -> 2773 | K7: =IF(OR(K6="---",N6="Yes"),"---",IF(N7="YES","SOLD",IF(G7-H6<0,G7-H6,0))) -> 0 | L7: =IF(OR(L6="---",N6="Yes"),"---",IF(N7="Yes","SOLD",IF(-K7>J6,-J6,K7))) -> 0 | M7: =IF(OR(M6="---",N6="Yes"),"---",IF(N7="Yes",G7-H6,IF(G7-$E$6<0,G7-$E$6,0))) -> 0 | N7: =IF(O7=FALSE,"NO",IF(O7=TRUE,"YES","NO")) -> NO | O7: FALSE
A8: =E2 -> 2005 | B8: 36.55 | C8: 36.55 | D8: =G7 -> 4389 | E8: 4389 | F8: 2823 | G8: 2823 | H8: =IF(OR(H7="---",N7="Yes"),"---",IF(G8>=E8,G8,IF(G8<E8,IF(G8<$E$6,$E$6,G8),"ERROR"))) -> 2823 | I8: =IF(OR(I7="---",N7="Yes"),"---",IF(N8="NO",IF((G8-H7)>=0,G8-H7,0),"SOLD")) -> 0 | J8: =IF(OR(J7="---",N7="Yes"),"---",IF(N8="No",J7+I8+L8,"CUM NET MTM IN ADJ BASIS")) -> 1207 | K8: =IF(OR(K7="---",N7="Yes"),"---",IF(N8="YES","SOLD",IF(G8-H7<0,G8-H7,0))) -> -1566 | L8: =IF(OR(L7="---",N7="Yes"),"---",IF(N8="Yes","SOLD",IF(-K8>J7,-J7,K8))) -> -1566 | M8: =IF(OR(M7="---",N7="Yes"),"---",IF(N8="Yes",G8-H7,IF(G8-$E$6<0,G8-$E$6,0))) -> 0 | N8: NO | O8: FALSE
A9: =F2 -> 2006 | B9: 49.57 | C9: 49.57 | D9: 2823 | E9: 2823 | F9: 3507 | G9: 3507 | H9: =IF(OR(H8="---",N8="Yes"),"---",IF(G9>=E9,G9,IF(G9<E9,IF(G9<$E$6,$E$6,G9),"ERROR"))) -> 3507 | I9: =IF(OR(I8="---",N8="Yes"),"---",IF(N9="NO",IF((G9-H8)>=0,G9-H8,0),"SOLD")) -> 684 | J9: 1891 | K9: =IF(OR(K8="---",N8="Yes"),"---",IF(N9="YES","SOLD",IF(G9-H8<0,G9-H8,0))) -> 0 | L9: 0 | M9: =IF(OR(M8="---",N8="Yes"),"---",IF(N9="Yes",G9-H8,IF(G9-$E$6<0,G9-$E$6,0))) -> 0 | N9: NO | O9: FALSE
A10: =G2 -> 2007 | B10: 76.64 | C10: 76.64 | D10: 3507 | E10: 3507 | F10: 3300 | G10: 3300 | H10: =IF(OR(H9="---",N9="Yes"),"---",IF(G10>=E10,G10,IF(G10<E10,IF(G10<$E$6,$E$6,G10),"ERROR"))) -> 3300 | I10: =IF(OR(I9="---",N9="Yes"),"---",IF(N10="NO",IF((G10-H9)>=0,G10-H9,0),"SOLD")) -> 0 | J10: 1684 | K10: =IF(OR(K9="---",N9="Yes"),"---",IF(N10="YES","SOLD",IF(G10-H9<0,G10-H9,0))) -> -207 | L10: -207 | M10: =IF(OR(M9="---",N9="Yes"),"---",IF(N10="Yes",G10-H9,IF(G10-$E$6<0,G10-$E$6,0))) -> 0 | N10: NO | O10: FALSE
A11: =H2 -> 2008 | B11: 78.91 | C11: 78.91 | D11: 3300 | E11: 3300 | F11: 2500 | G11: 2500 | H11: =IF(OR(H10="---",N10="Yes"),"---",IF(G11>=E11,G11,IF(G11<E11,IF(G11<$E$6,$E$6,G11),"ERROR"))) -> 2500 | I11: =IF(OR(I10="---",N10="Yes"),"---",IF(N11="NO",IF((G11-H10)>=0,G11-H10,0),"SOLD")) -> 0 | J11: 884 | K11: =IF(OR(K10="---",N10="Yes"),"---",IF(N11="YES","SOLD",IF(G11-H10<0,G11-H10,0))) -> -800 | L11: -800 | M11: =IF(OR(M10="---",N10="Yes"),"---",IF(N11="Yes",G11-H10,IF(G11-$E$6<0,G11-$E$6,0))) -> 0 | N11: NO | O11: FALSE
A12: =I2 -> 2009 | B12: 74.58 | C12: 74.58 | D12: 2500 | E12: 2500 | F12: 2600 | G12: 2600 | H12: =IF(OR(H11="---",N11="Yes"),"---",IF(G12>=E12,G12,IF(G12<E12,IF(G12<$E$6,$E$6,G12),"ERROR"))) -> 2600 | I12: =IF(OR(I11="---",N11="Yes"),"---",IF(N12="NO",IF((G12-H11)>=0,G12-H11,0),"SOLD")) -> 100 | J12: 984 | K12: =IF(OR(K11="---",N11="Yes"),"---",IF(N12="YES","SOLD",IF(G12-H11<0,G12-H11,0))) -> 0 | L12: 0 | M12: =IF(OR(M11="---",N11="Yes"),"---",IF(N12="Yes",G12-H11,IF(G12-$E$6<0,G12-$E$6,0))) -> 0 | N12: NO | O12: FALSE
A13: =J2 -> 2010 | B13: 89.39 | C13: 89.39 | D13: 2600 | E13: 2600 | F13: 800 | G13: 800 | H13: =IF(OR(H12="---",N12="Yes"),"---",IF(G13>=E13,G13,IF(G13<E13,IF(G13<$E$6,$E$6,G13),"ERROR"))) -> 1616 | I13: =IF(OR(I12="---",N12="Yes"),"---",IF(N13="NO",IF((G13-H12)>=0,G13-H12,0),"SOLD")) -> 0 | J13: 0 | K13: =IF(OR(K12="---",N12="Yes"),"---",IF(N13="YES","SOLD",IF(G13-H12<0,G13-H12,0))) -> -1800 | L13: -984 | M13: =IF(OR(M12="---",N12="Yes"),"---",IF(N13="Yes",G13-H12,IF(G13-$E$6<0,G13-$E$6,0))) -> -816 | N13: NO | O13: FALSE
A14: =K2 -> 2011 | B14: 90.39 | C14: 90.39 | D14: 800 | E14: 800 | F14: 801 | G14: 801 | H14: =IF(OR(H13="---",N13="Yes"),"---",IF(G14>=E14,G14,IF(G14<E14,IF(G14<$E$6,$E$6,G14),"ERROR"))) -> 801 | I14: =IF(OR(I13="---",N13="Yes"),"---",IF(N14="NO",IF((G14-H13)>=0,G14-H13,0),"SOLD")) -> 0 | J14: 0 | K14: =IF(OR(K13="---",N13="Yes"),"---",IF(N14="YES","SOLD",IF(G14-H13<0,G14-H13,0))) -> -815 | L14: 0 | M14: =IF(OR(M13="---",N13="Yes"),"---",IF(N14="Yes",G14-H13,IF(G14-$E$6<0,G14-$E$6,0))) -> -815 | N14: NO | O14: FALSE
A15: =L2 -> 2012 | B15: 91.39 | C15: 91.39 | D15: 801 | E15: 801 | F15: 802 | G15: 802 | H15: =IF(OR(H14="---",N14="Yes"),"---",IF(G15>=E15,G15,IF(G15<E15,IF(G15<$E$6,$E$6,G15),"ERROR"))) -> 802 | I15: =IF(OR(I14="---",N14="Yes"),"---",IF(N15="NO",IF((G15-H14)>=0,G15-H14,0),"SOLD")) -> 1 | J15: 1 | K15: =IF(OR(K14="---",N14="Yes"),"---",IF(N15="YES","SOLD",IF(G15-H14<0,G15-H14,0))) -> 0 | L15: 0 | M15: =IF(OR(M14="---",N14="Yes"),"---",IF(N15="Yes",G15-H14,IF(G15-$E$6<0,G15-$E$6,0))) -> -814 | N15: NO | O15: FALSE
A16: =M2 -> 2013 | B16: 92.39 | C16: 92.39 | D16: 802 | E16: 802 | F16: 803 | G16: 803 | H16: =IF(OR(H15="---",N15="Yes"),"---",IF(G16>=E16,G16,IF(G16<E16,IF(G16<$E$6,$E$6,G16),"ERROR"))) -> 803 | I16: =IF(OR(I15="---",N15="Yes"),"---",IF(N16="NO",IF((G16-H15)>=0,G16-H15,0),"SOLD")) -> 1 | J16: 2 | K16: =IF(OR(K15="---",N15="Yes"),"---",IF(N16="YES","SOLD",IF(G16-H15<0,G16-H15,0))) -> 0 | L16: 0 | M16: =IF(OR(M15="---",N15="Yes"),"---",IF(N16="Yes",G16-H15,IF(G16-$E$6<0,G16-$E$6,0))) -> -813 | N16: NO | O16: FALSE
A17: =N2 -> 2014 | B17: 93.39 | C17: 93.39 | D17: 803 | E17: 803 | F17: 804 | G17: 804 | H17: =IF(OR(H16="---",N16="Yes"),"---",IF(G17>=E17,G17,IF(G17<E17,IF(G17<$E$6,$E$6,G17),"ERROR"))) -> 804 | I17: =IF(OR(I16="---",N16="Yes"),"---",IF(N17="NO",IF((G17-H16)>=0,G17-H16,0),"SOLD")) -> 1 | J17: 3 | K17: =IF(OR(K16="---",N16="Yes"),"---",IF(N17="YES","SOLD",IF(G17-H16<0,G17-H16,0))) -> 0 | L17: 0 | M17: =IF(OR(M16="---",N16="Yes"),"---",IF(N17="Yes",G17-H16,IF(G17-$E$6<0,G17-$E$6,0))) -> -812 | N17: NO | O17: FALSE
A18: =O2 -> 2015 | B18: 94.39 | C18: 94.39 | D18: 804 | E18: 804 | F18: 805 | G18: 805 | H18: =IF(OR(H17="---",N17="Yes"),"---",IF(G18>=E18,G18,IF(G18<E18,IF(G18<$E$6,$E$6,G18),"ERROR"))) -> 805 | I18: =IF(OR(I17="---",N17="Yes"),"---",IF(N18="NO",IF((G18-H17)>=0,G18-H17,0),"SOLD")) -> 1 | J18: 4 | K18: =IF(OR(K17="---",N17="Yes"),"---",IF(N18="YES","SOLD",IF(G18-H17<0,G18-H17,0))) -> 0 | L18: 0 | M18: =IF(OR(M17="---",N17="Yes"),"---",IF(N18="Yes",G18-H17,IF(G18-$E$6<0,G18-$E$6,0))) -> -811 | N18: NO | O18: FALSE
A19: =P2 -> 2016 | B19: 95.39 | C19: 95.39 | D19: 805 | E19: 805 | F19: 806 | G19: 806 | H19: =IF(OR(H18="---",N18="Yes"),"---",IF(G19>=E19,G19,IF(G19<E19,IF(G19<$E$6,$E$6,G19),"ERROR"))) -> 806 | I19: =IF(OR(I18="---",N18="Yes"),"---",IF(N19="NO",IF((G19-H18)>=0,G19-H18,0),"SOLD")) -> 1 | J19: 5 | K19: =IF(OR(K18="---",N18="Yes"),"---",IF(N19="YES","SOLD",IF(G19-H18<0,G19-H18,0))) -> 0 | L19: 0 | M19: =IF(OR(M18="---",N18="Yes"),"---",IF(N19="Yes",G19-H18,IF(G19-$E$6<0,G19-$E$6,0))) -> -810 | N19: NO | O19: FALSE
A20: =Q2 -> 2017 | B20: 96.39 | C20: 96.39 | D20: 806 | E20: 806 | F20: 807 | G20: 807 | H20: =IF(OR(H19="---",N19="Yes"),"---",IF(G20>=E20,G20,IF(G20<E20,IF(G20<$E$6,$E$6,G20),"ERROR"))) -> 807 | I20: =IF(OR(I19="---",N19="Yes"),"---",IF(N20="NO",IF((G20-H19)>=0,G20-H19,0),"SOLD")) -> 1 | J20: 6 | K20: =IF(OR(K19="---",N19="Yes"),"---",IF(N20="YES","SOLD",IF(G20-H19<0,G20-H19,0))) -> 0 | L20: 0 | M20: =IF(OR(M19="---",N19="Yes"),"---",IF(N20="Yes",G20-H19,IF(G20-$E$6<0,G20-$E$6,0))) -> -809 | N20: NO | O20: FALSE
A21: =R2 -> 2018 | B21: 97.39 | C21: 97.39 | D21: 807 | E21: 807 | F21: 808 | G21: 808 | H21: =IF(OR(H20="---",N20="Yes"),"---",IF(G21>=E21,G21,IF(G21<E21,IF(G21<$E$6,$E$6,G21),"ERROR"))) -> 808 | I21: =IF(OR(I20="---",N20="Yes"),"---",IF(N21="NO",IF((G21-H20)>=0,G21-H20,0),"SOLD")) -> 1 | J21: 7 | K21: =IF(OR(K20="---",N20="Yes"),"---",IF(N21="YES","SOLD",IF(G21-H20<0,G21-H20,0))) -> 0 | L21: 0 | M21: =IF(OR(M20="---",N20="Yes"),"---",IF(N21="Yes",G21-H20,IF(G21-$E$6<0,G21-$E$6,0))) -> -808 | N21: NO | O21: FALSE
A22: =S2 -> 2019 | B22: 98.39 | C22: 98.39 | D22: 808 | E22: 808 | F22: 809 | G22: 809 | H22: =IF(OR(H21="---",N21="Yes"),"---",IF(G22>=E22,G22,IF(G22<E22,IF(G22<$E$6,$E$6,G22),"ERROR"))) -> 809 | I22: =IF(OR(I21="---",N21="Yes"),"---",IF(N22="NO",IF((G22-H21)>=0,G22-H21,0),"SOLD")) -> 1 | J22: 8 | K22: =IF(OR(K21="---",N21="Yes"),"---",IF(N22="YES","SOLD",IF(G22-H21<0,G22-H21,0))) -> 0 | L22: 0 | M22: =IF(OR(M21="---",N21="Yes"),"---",IF(N22="Yes",G22-H21,IF(G22-$E$6<0,G22-$E$6,0))) -> -807 | N22: NO | O22: FALSE
A23: =T2 -> 2020 | B23: 99.39 | C23: 99.39 | D23: 809 | E23: 809 | F23: 810 | G23: 810 | H23: =IF(OR(H22="---",N22="Yes"),"---",IF(G23>=E23,G23,IF(G23<E23,IF(G23<$E$6,$E$6,G23),"ERROR"))) -> 810 | I23: =IF(OR(I22="---",N22="Yes"),"---",IF(N23="NO",IF((G23-H22)>=0,G23-H22,0),"SOLD")) -> 1 | J23: 9 | K23: =IF(OR(K22="---",N22="Yes"),"---",IF(N23="YES","SOLD",IF(G23-H22<0,G23-H22,0))) -> 0 | L23: 0 | M23: =IF(OR(M22="---",N22="Yes"),"---",IF(N23="Yes",G23-H22,IF(G23-$E$6<0,G23-$E$6,0))) -> -806 | N23: NO | O23: FALSE
A25: Year | B25: Highest NAV Per Unit During Calendar Year (01-01-xx to 12-31-xx) | C25: Highest Value of Fund in Calendar Year (01-01-xx to 12-31-xx) | D25: NAV Per Unit on Opening of First Business Day of Current Year (Jan) | E25: Total Nav on First Business Day of Current Year | F25: NAV (FMV) Per Unit on at Close of Last Business Day of Year, or SALE PRICE per UNIT (Dec) | G25: Total Nav Last business day of Year | H25: Adjusted Basis at EOY (or Sale Price) | I25: Section 1296 MTM (Mark to Market) Gain for the Tax Year | J25: Cumulative Net (MTM) Gains | K25: Unrealized Loss for year | L25: Deductible Loss for Year (Unreversed Inclusion) (Ordinary Loss Allowed Up to Prior MTM Gain) | M25: Potential Capital Gain/Loss (if any) | N25: Mutual Fund Sold?
A26: =C2 -> 2003 | B26: =B6/$C$3 -> 0 | C26: =C6/$C$3 -> 0 | D26: =D6/$C$3 -> 35.47749726 | E26: =D26*$C$1 -> 35.47749726 | F26: =F6/$C$3 -> 72.25027442 | G26: =F26*$C$1 -> 72.25027442 | H26: =IF(G26>=E26,G26,IF(G26<E26,IF(G26<$E$26,$E$26,G26),"ERROR")) -> 72.25027442 | I26: =IF(N26="NO",IF((G26-E26)>=0,G26-E26,0),"SOLD") -> 36.77277717 | J26: =IF(N26="Yes","SOLD",I26) -> 36.77277717 | K26: =IF(N26="Yes","SOLD",IF(G26-E26<0,G26-E26,0)) -> 0 | L26: =IF(N26="Yes","SOLD",IF(-K26>J26,-J26,K26)) -> 0 | M26: =IF(N26="Yes",H26-E26,IF(G26-$E$26<0,G26-$E$26,0)) -> 0 | N26: =N6 -> NO
A27: =D2 -> 2004 | B27: =B7/$D$3 -> 0.6436330021 | C27: =C7/$D$3 -> 0.6436330021 | D27: =D7/$D$3 -> 76.05731454 | E27: =D27*$C$1 -> 76.05731454 | F27: =F7/$D$3 -> 101.4328634 | G27: 101.4328634 | H27: =IF(OR(H26="---",N26="Yes"),"---",IF(G27>=E27,G27,IF(G27<E27,IF(G27<$E$26,$E$26,G27),"ERROR"))) -> 101.4328634 | I27: =IF(OR(I26="---",N26="Yes"),"---",IF(N27="NO",IF((G27-H26)>=0,G27-H26,0),"SOLD")) -> 29.18258899 | J27: =IF(OR(J26="---",N26="Yes"),"---",IF(N27="No",J26+I27+L27,"CUM NET MTM IN ADJ BASIS")) -> 65.95536616 | K27: =IF(OR(K26="---",N26="Yes"),"---",IF(N27="YES","SOLD",IF(G27-H26<0,G27-H26,0))) -> 0 | L27: =IF(OR(L26="---",N26="Yes"),"---",IF(N27="Yes","SOLD",IF(-K27>J26,-J26,K27))) -> 0 | M27: =IF(OR(M26="---",N26="Yes"),"---",IF(N27="Yes",G27-H26,IF(G27-$E$26<0,G27-$E$26,0))) -> 0 | N27: =N7 -> NO
A28: =E2 -> 2005 | B28: =B8/$E$3 -> 0.8131256952 | C28: =C8/$E$3 -> 0.8131256952 | D28: =D8/$E$3 -> 97.64182425 | E28: 97.64182425 | F28: =F8/$E$3 -> 62.80311457 | G28: 62.80311457 | H28: =IF(OR(H27="---",N27="Yes"),"---",IF(G28>=E28,G28,IF(G28<E28,IF(G28<$E$26,$E$26,G28),"ERROR"))) -> 62.80311457 | I28: =IF(OR(I27="---",N27="Yes"),"---",IF(N28="NO",IF((G28-H27)>=0,G28-H27,0),"SOLD")) -> 0 | J28: =IF(OR(J27="---",N27="Yes"),"---",IF(N28="No",J27+I28+L28,"CUM NET MTM IN ADJ BASIS")) -> 27.32561732 | K28: =IF(OR(K27="---",N27="Yes"),"---",IF(N28="YES","SOLD",IF(G28-H27<0,G28-H27,0))) -> -38.62974884 | L28: =IF(OR(L27="---",N27="Yes"),"---",IF(N28="Yes","SOLD",IF(-K28>J27,-J27,K28))) -> -38.62974884 | M28: =IF(OR(M27="---",N27="Yes"),"---",IF(N28="Yes",G28-H27,IF(G28-$E$26<0,G28-$E$26,0))) -> 0 | N28: NO
A29: =F2 -> 2006 | B29: =B9/$F$3 -> 1.123781455 | C29: =C9/$F$3 -> 1.123781455 | D29: =D9/$F$3 -> 63.99909318 | E29: 63.99909318 | F29: =F9/$F$3 -> 79.505781 | G29: 79.505781 | H29: =IF(OR(H28="---",N28="Yes"),"---",IF(G29>=E29,G29,IF(G29<E29,IF(G29<$E$26,$E$26,G29),"ERROR"))) -> 79.505781 | I29: =IF(OR(I28="---",N28="Yes"),"---",IF(N29="NO",IF((G29-H28)>=0,G29-H28,0),"SOLD")) -> 16.70266643 | J29: 44.02828375 | K29: =IF(OR(K28="---",N28="Yes"),"---",IF(N29="YES","SOLD",IF(G29-H28<0,G29-H28,0))) -> 0 | L29: 0 | M29: =IF(OR(M28="---",N28="Yes"),"---",IF(N29="Yes",G29-H28,IF(G29-$E$26<0,G29-$E$26,0))) -> 0 | N29: NO
A30: =G2 -> 2007 | B30: =B10/$G$3 -> 1.946659893 | C30: =C10/$G$3 -> 1.946659893 | D30: =D10/$G$3 -> 89.07797816 | E30: 89.07797816 | F30: =F10/$G$3 -> 83.82016764 | G30: 83.82016764 | H30: =IF(OR(H29="---",N29="Yes"),"---",IF(G30>=E30,G30,IF(G30<E30,IF(G30<$E$26,$E$26,G30),"ERROR"))) -> 83.82016764 | I30: =IF(OR(I29="---",N29="Yes"),"---",IF(N30="NO",IF((G30-H29)>=0,G30-H29,0),"SOLD")) -> 4.314386638 | J30: 48.34267038 | K30: =IF(OR(K29="---",N29="Yes"),"---",IF(N30="YES","SOLD",IF(G30-H29<0,G30-H29,0))) -> 0 | L30: 0 | M30: =IF(OR(M29="---",N29="Yes"),"---",IF(N30="Yes",G30-H29,IF(G30-$E$26<0,G30-$E$26,0))) -> 0 | N30: NO
A31: =H2 -> 2008 | B31: =B11/$H$3 -> 1.624331 | C31: =C11/$H$3 -> 1.624331 | D31: =D11/$H$3 -> 67.92918897 | E31: 67.92918897 | F31: =F11/$H$3 -> 51.46150679 | G31: 51.46150679 | H31: =IF(OR(H30="---",N30="Yes"),"---",IF(G31>=E31,G31,IF(G31<E31,IF(G31<$E$26,$E$26,G31),"ERROR"))) -> 51.46150679 | I31: =IF(OR(I30="---",N30="Yes"),"---",IF(N31="NO",IF((G31-H30)>=0,G31-H30,0),"SOLD")) -> 0 | J31: 15.98400954 | K31: =IF(OR(K30="---",N30="Yes"),"---",IF(N31="YES","SOLD",IF(G31-H30<0,G31-H30,0))) -> -32.35866085 | L31: -32.35866085 | M31: =IF(OR(M30="---",N30="Yes"),"---",IF(N31="Yes",G31-H30,IF(G31-$E$26<0,G31-$E$26,0))) -> 0 | N31: NO
A32: =I2 -> 2009 | B32: =B12/$I$3 -> 1.606981254 | C32: =C12/$I$3 -> 1.606981254 | D32: =D12/$I$3 -> 53.86770093 | E32: 53.86770093 | F32: =F12/$I$3 -> 56.02240896 | G32: 56.02240896 | H32: =IF(OR(H31="---",N31="Yes"),"---",IF(G32>=E32,G32,IF(G32<E32,IF(G32<$E$26,$E$26,G32),"ERROR"))) -> 56.02240896 | I32: =IF(OR(I31="---",N31="Yes"),"---",IF(N32="NO",IF((G32-H31)>=0,G32-H31,0),"SOLD")) -> 4.560902171 | J32: 20.54491171 | K32: =IF(OR(K31="---",N31="Yes"),"---",IF(N32="YES","SOLD",IF(G32-H31<0,G32-H31,0))) -> 0 | L32: 0 | M32: =IF(OR(M31="---",N31="Yes"),"---",IF(N32="Yes",G32-H31,IF(G32-$E$26<0,G32-$E$26,0))) -> 0 | N32: NO
A33: =J2 -> 2010 | B33: =B13/$J$3 -> 1.999776286 | C33: =C13/$J$3 -> 1.999776286 | D33: =D13/$J$3 -> 58.1655481 | E33: 58.1655481 | F33: =F13/$J$3 -> 17.89709172 | G33: 17.89709172 | H33: =IF(OR(H32="---",N32="Yes"),"---",IF(G33>=E33,G33,IF(G33<E33,IF(G33<$E$26,$E$26,G33),"ERROR"))) -> 35.47749726 | I33: =IF(OR(I32="---",N32="Yes"),"---",IF(N33="NO",IF((G33-H32)>=0,G33-H32,0),"SOLD")) -> 0 | J33: 0 | K33: =IF(OR(K32="---",N32="Yes"),"---",IF(N33="YES","SOLD",IF(G33-H32<0,G33-H32,0))) -> -38.12531724 | L33: -20.54491171 | M33: =IF(OR(M32="---",N32="Yes"),"---",IF(N33="Yes",G33-H32,IF(G33-$E$26<0,G33-$E$26,0))) -> -17.58040553 | N33: NO
A34: =K2 -> 2011 | B34: =B14/$K$3 -> 1.703510989 | C34: =C14/$K$3 -> 1.703510989 | D34: =D14/$K$3 -> 15.0769863 | E34: 15.0769863 | F34: =F14/$K$3 -> 15.09583253 | G34: 15.09583253 | H34: =IF(OR(H33="---",N33="Yes"),"---",IF(G34>=E34,G34,IF(G34<E34,IF(G34<$E$26,$E$26,G34),"ERROR"))) -> 15.09583253 | I34: =IF(OR(I33="---",N33="Yes"),"---",IF(N34="NO",IF((G34-H33)>=0,G34-H33,0),"SOLD")) -> 0 | J34: 0 | K34: =IF(OR(K33="---",N33="Yes"),"---",IF(N34="YES","SOLD",IF(G34-H33<0,G34-H33,0))) -> -20.38166473 | L34: 0 | M34: =IF(OR(M33="---",N33="Yes"),"---",IF(N34="Yes",G34-H33,IF(G34-$E$26<0,G34-$E$26,0))) -> -20.38166473 | N34: NO
A35: =L2 -> 2012 | B35: =B15/$L$3 -> 1.666150936 | C35: =C15/$L$3 -> 1.666150936 | D35: =D15/$L$3 -> 14.60320494 | E35: 14.60320494 | F35: =F15/$L$3 -> 14.62143616 | G35: 14.62143616 | H35: =IF(OR(H34="---",N34="Yes"),"---",IF(G35>=E35,G35,IF(G35<E35,IF(G35<$E$26,$E$26,G35),"ERROR"))) -> 14.62143616 | I35: =IF(OR(I34="---",N34="Yes"),"---",IF(N35="NO",IF((G35-H34)>=0,G35-H34,0),"SOLD")) -> 0 | J35: 0 | K35: =IF(OR(K34="---",N34="Yes"),"---",IF(N35="YES","SOLD",IF(G35-H34<0,G35-H34,0))) -> -0.4743963694 | L35: 0 | M35: =IF(OR(M34="---",N34="Yes"),"---",IF(N35="Yes",G35-H34,IF(G35-$E$26<0,G35-$E$26,0))) -> -20.8560611 | N35: NO
A36: =M2 -> 2013 | B36: =B16/$M$3 -> 1.493557809 | C36: =C16/$M$3 -> 1.493557809 | D36: =D16/$M$3 -> 12.96496767 | E36: 12.96496767 | F36: =F16/$M$3 -> 12.98113347 | G36: 12.98113347 | H36: =IF(OR(H35="---",N35="Yes"),"---",IF(G36>=E36,G36,IF(G36<E36,IF(G36<$E$26,$E$26,G36),"ERROR"))) -> 12.98113347 | I36: =IF(OR(I35="---",N35="Yes"),"---",IF(N36="NO",IF((G36-H35)>=0,G36-H35,0),"SOLD")) -> 0 | J36: 0 | K36: =IF(OR(K35="---",N35="Yes"),"---",IF(N36="YES","SOLD",IF(G36-H35<0,G36-H35,0))) -> -1.640302693 | L36: 0 | M36: =IF(OR(M35="---",N35="Yes"),"---",IF(N36="Yes",G36-H35,IF(G36-$E$26<0,G36-$E$26,0))) -> -22.49636379 | N36: NO
A37: =N2 -> 2014 | B37: =B17/$N$3 -> 1.436769231 | C37: =C17/$N$3 -> 1.436769231 | D37: =D17/$N$3 -> 12.35384615 | E37: 12.35384615 | F37: =F17/$N$3 -> 12.36923077 | G37: 12.36923077 | H37: =IF(OR(H36="---",N36="Yes"),"---",IF(G37>=E37,G37,IF(G37<E37,IF(G37<$E$26,$E$26,G37),"ERROR"))) -> 12.36923077 | I37: =IF(OR(I36="---",N36="Yes"),"---",IF(N37="NO",IF((G37-H36)>=0,G37-H36,0),"SOLD")) -> 0 | J37: 0 | K37: =IF(OR(K36="---",N36="Yes"),"---",IF(N37="YES","SOLD",IF(G37-H36<0,G37-H36,0))) -> -0.6119026971 | L37: 0 | M37: =IF(OR(M36="---",N36="Yes"),"---",IF(N37="Yes",G37-H36,IF(G37-$E$26<0,G37-$E$26,0))) -> -23.10826649 | N37: NO
A38: =O2 -> 2015 | B38: =B18/$O$3 -> 1.258533333 | C38: =C18/$O$3 -> 1.258533333 | D38: =D18/$O$3 -> 10.72 | E38: 10.72 | F38: =F18/$O$3 -> 10.73333333 | G38: 10.73333333 | H38: =IF(OR(H37="---",N37="Yes"),"---",IF(G38>=E38,G38,IF(G38<E38,IF(G38<$E$26,$E$26,G38),"ERROR"))) -> 10.73333333 | I38: =IF(OR(I37="---",N37="Yes"),"---",IF(N38="NO",IF((G38-H37)>=0,G38-H37,0),"SOLD")) -> 0 | J38: 0 | K38: =IF(OR(K37="---",N37="Yes"),"---",IF(N38="YES","SOLD",IF(G38-H37<0,G38-H37,0))) -> -1.635897436 | L38: 0 | M38: =IF(OR(M37="---",N37="Yes"),"---",IF(N38="Yes",G38-H37,IF(G38-$E$26<0,G38-$E$26,0))) -> -24.74416392 | N38: NO
A39: =P2 -> 2016 | B39: =B19/$P$3 -> 1.122235294 | C39: =C19/$P$3 -> 1.122235294 | D39: =D19/$P$3 -> 9.470588235 | E39: 9.470588235 | F39: =F19/$P$3 -> 9.482352941 | G39: 9.482352941 | H39: =IF(OR(H38="---",N38="Yes"),"---",IF(G39>=E39,G39,IF(G39<E39,IF(G39<$E$26,$E$26,G39),"ERROR"))) -> 9.482352941 | I39: =IF(OR(I38="---",N38="Yes"),"---",IF(N39="NO",IF((G39-H38)>=0,G39-H38,0),"SOLD")) -> 0 | J39: 0 | K39: =IF(OR(K38="---",N38="Yes"),"---",IF(N39="YES","SOLD",IF(G39-H38<0,G39-H38,0))) -> -1.250980392 | L39: 0 | M39: =IF(OR(M38="---",N38="Yes"),"---",IF(N39="Yes",G39-H38,IF(G39-$E$26<0,G39-$E$26,0))) -> -25.99514431 | N39: NO
A40: =Q2 -> 2017 | B40: =B20/$Q$3 -> 1.014631579 | C40: =C20/$Q$3 -> 1.014631579 | D40: =D20/$Q$3 -> 8.484210526 | E40: 8.484210526 | F40: =F20/$Q$3 -> 8.494736842 | G40: 8.494736842 | H40: =IF(OR(H39="---",N39="Yes"),"---",IF(G40>=E40,G40,IF(G40<E40,IF(G40<$E$26,$E$26,G40),"ERROR"))) -> 8.494736842 | I40: =IF(OR(I39="---",N39="Yes"),"---",IF(N40="NO",IF((G40-H39)>=0,G40-H39,0),"SOLD")) -> 0 | J40: 0 | K40: =IF(OR(K39="---",N39="Yes"),"---",IF(N40="YES","SOLD",IF(G40-H39<0,G40-H39,0))) -> -0.9876160991 | L40: 0 | M40: =IF(OR(M39="---",N39="Yes"),"---",IF(N40="Yes",G40-H39,IF(G40-$E$26<0,G40-$E$26,0))) -> -26.98276041 | N40: NO
A41: =R2 -> 2018 | B41: =B21/$R$3 -> 0.9275238095 | C41: =C21/$R$3 -> 0.9275238095 | D41: =D21/$R$3 -> 7.685714286 | E41: 7.685714286 | F41: =F21/$R$3 -> 7.695238095 | G41: 7.695238095 | H41: =IF(OR(H40="---",N40="Yes"),"---",IF(G41>=E41,G41,IF(G41<E41,IF(G41<$E$26,$E$26,G41),"ERROR"))) -> 7.695238095 | I41: =IF(OR(I40="---",N40="Yes"),"---",IF(N41="NO",IF((G41-H40)>=0,G41-H40,0),"SOLD")) -> 0 | J41: 0 | K41: =IF(OR(K40="---",N40="Yes"),"---",IF(N41="YES","SOLD",IF(G41-H40<0,G41-H40,0))) -> -0.7994987469 | L41: 0 | M41: =IF(OR(M40="---",N40="Yes"),"---",IF(N41="Yes",G41-H40,IF(G41-$E$26<0,G41-$E$26,0))) -> -27.78225916 | N41: NO
A42: =S2 -> 2019 | B42: =B22/$S$3 -> 0.8555652174 | C42: =C22/$S$3 -> 0.8555652174 | D42: =D22/$S$3 -> 7.026086957 | E42: 7.026086957 | F42: =F22/$S$3 -> 7.034782609 | G42: 7.034782609 | H42: =IF(OR(H41="---",N41="Yes"),"---",IF(G42>=E42,G42,IF(G42<E42,IF(G42<$E$26,$E$26,G42),"ERROR"))) -> 7.034782609 | I42: =IF(OR(I41="---",N41="Yes"),"---",IF(N42="NO",IF((G42-H41)>=0,G42-H41,0),"SOLD")) -> 0 | J42: 0 | K42: =IF(OR(K41="---",N41="Yes"),"---",IF(N42="YES","SOLD",IF(G42-H41<0,G42-H41,0))) -> -0.6604554865 | L42: 0 | M42: =IF(OR(M41="---",N41="Yes"),"---",IF(N42="Yes",G42-H41,IF(G42-$E$26<0,G42-$E$26,0))) -> -28.44271465 | N42: NO
A43: =T2 -> 2020 | B43: =B23/$T$3 -> 0.79512 | C43: =C23/$T$3 -> 0.79512 | D43: =D23/$T$3 -> 6.472 | E43: =D43*$C$1 -> 6.472 | F43: =F23/$T$3 -> 6.48 | G43: 6.48 | H43: =IF(OR(H42="---",N42="Yes"),"---",IF(G43>=E43,G43,IF(G43<E43,IF(G43<$E$26,$E$26,G43),"ERROR"))) -> 6.48 | I43: =IF(OR(I42="---",N42="Yes"),"---",IF(N43="NO",IF((G43-H42)>=0,G43-H42,0),"SOLD")) -> 0 | J43: 0 | K43: =IF(OR(K42="---",N42="Yes"),"---",IF(N43="YES","SOLD",IF(G43-H42<0,G43-H42,0))) -> -0.5547826087 | L43: 0 | M43: =IF(OR(M42="---",N42="Yes"),"---",IF(N43="Yes",G43-H42,IF(G43-$E$26<0,G43-$E$26,0))) -> -28.99749726 | N43: NO
A46: FOREIGN FUND NAME (as on moneycontrol.com site) | B46: FOREIGN FUND SYMBOL (as on moneycontrol.com site) | C46: FUND'S REGISTERED ADDRESS (as on moneycontrol.com's site) | E46: FOLIO OR ACCOUNT NUMBER IF APPLICABLE | F46: IF FUND NOT HELD DIRECTLY, GIVE BROKERAGE NAME WHERE YOU HOLD IT | H46: IF YOU HAVE IT IN BROKERAGE, THEN GIVE BROKERAGE FULL ADDRESS | J46: Date which Mutual Fund Account Was Bought, OR if held in Brokerage, date which Brokerage Account was Opened | K46: Date which Mutual Fund Account Was Sold, OR if held in Brokerage, date which Brokerage Account was Closed
A47: Mutual Fund Name (Enter in A47)

Sheet Mutual Fund 5
B1: Units at Beginning of Period | C1: 1 | D1: DEFAULT EXCHANGE RATES ARE INDIAN RUPEES TO ONE DOLLAR, AS PER WWW.X-RATES.COM ON 12/31 OF EACH YEAR. CHANGE ACCORDINGLY FOR YOUR COUNTRY. ALL NUMERICAL FIELDS IN BLUE ARE CHANGEABLE BY YOU. FUTURE YEARS HAVE DUMMY VALUES. IF YOUR FUND HAS DIVIDENDS WHICH ARE REINVESTED, TREAT EACH BATCH OF UNITS NEWLY BOUGHT BY REINVESTED DIVIDENDS AS A NEW MUTUAL FUND TO PROPERLY KEEP TRACK OF THE COST BASIS OF THOSE REINVESTED DIVIDENDS. FILL FUND NAME AND STUFF IN ROW "A" AT BOTTOM OF SHEET.
C2: 2003 | D2: 2004 | E2: 2005 | F2: 2006 | G2: 2007 | H2: 2008 | I2: 2009 | J2: 2010 | K2: 2011 | L2: 2012 | M2: 2013 | N2: 2014 | O2: 2015 | P2: 2016 | Q2: 2017 | R2: 2018 | S2: 2019 | T2: 2020
A3: =A47 -> Mutual Fund Name (Enter in A47) | B3: Exc Rate 12/31 | C3: 45.55 | D3: 43.27 | E3: 44.95 | F3: 44.11 | G3: 39.37 | H3: 48.58 | I3: 46.41 | J3: 44.7 | K3: 53.061002 | L3: 54.850973 | M3: 61.859005 | N3: 65 | O3: 75 | P3: 85 | Q3: 95 | R3: 105 | S3: 115 | T3: 125
A5: Year | B5: Highest NAV Per Unit During Calendar Year (01-01-xx to 12-31-xx) | C5: Highest Value of Fund in Calendar Year (01-01-xx to 12-31-xx) | D5: NAV Per Unit on Opening of First Business Day of Current Year (Jan) | E5: Total Nav on First Business Day of Current Year | F5: NAV (FMV) Per Unit on at Close of Last Business Day of Year, or SALE PRICE per UNIT (Dec) | G5: Total Nav Last business day of Year | H5: Adjusted Basis at EOY (or Sale Price) | I5: Section 1296 MTM (Mark to Market) Gain for the Tax Year | J5: Cumulative Net (MTM) Gains (afer unrealized loss for year deducted) | K5: Unrealized Loss for year | L5: Deductible Loss for Year (Unreversed Inclusion) (Ordinary Loss Allowed Up to Prior MTM Gain) | M5: Potential Capital Gain/Loss (if any) | N5: Mutual Fund Sold?
A6: =C2 -> 2003 | B6: 0 | C6: =B6*$C$1 -> 0 | D6: 1616 | E6: =D6*$C$1 -> 1616 | F6: 3291 | G6: =F6*$C$1 -> 3291 | H6: =IF(G6>=E6,G6,IF(G6<E6,IF(G6<$E$6,$E$6,G6),"ERROR")) -> 3291 | I6: =IF(N6="NO",IF((G6-E6)>=0,G6-E6,0),"SOLD") -> 1675 | J6: =IF(N6="Yes","SOLD",I6) -> 1675 | K6: =IF(N6="Yes","SOLD",IF(G6-E6<0,G6-E6,0)) -> 0 | L6: =IF(N6="Yes","SOLD",IF(-K6>J6,-J6,K6)) -> 0 | M6: =IF(N6="Yes",H6-E6,IF(G6-$E$6<0,G6-$E$6,0)) -> 0 | N6: =IF(O6=FALSE,"NO",IF(O6=TRUE,"YES","NO")) -> NO | O6: FALSE
A7: =D2 -> 2004 | B7: 27.85 | C7: =B7*$C$1 -> 27.85 | D7: =G6 -> 3291 | E7: =D7*$C$1 -> 3291 | F7: 4389 | G7: =F7*$C$1 -> 4389 | H7: =IF(OR(H6="---",N6="Yes"),"---",IF(G7>=E7,G7,IF(G7<E7,IF(G7<$E$6,$E$6,G7),"ERROR"))) -> 4389 | I7: =IF(OR(I6="---",N6="Yes"),"---",IF(N7="NO",IF((G7-H6)>=0,G7-H6,0),"SOLD")) -> 1098 | J7: =IF(OR(J6="---",N6="Yes"),"---",IF(N7="No",J6+I7+L7,"CUM NET MTM IN ADJ BASIS")) -> 2773 | K7: =IF(OR(K6="---",N6="Yes"),"---",IF(N7="YES","SOLD",IF(G7-H6<0,G7-H6,0))) -> 0 | L7: =IF(OR(L6="---",N6="Yes"),"---",IF(N7="Yes","SOLD",IF(-K7>J6,-J6,K7))) -> 0 | M7: =IF(OR(M6="---",N6="Yes"),"---",IF(N7="Yes",G7-H6,IF(G7-$E$6<0,G7-$E$6,0))) -> 0 | N7: =IF(O7=FALSE,"NO",IF(O7=TRUE,"YES","NO")) -> NO | O7: FALSE
A8: =E2 -> 2005 | B8: 36.55 | C8: 36.55 | D8: =G7 -> 4389 | E8: 4389 | F8: 2823 | G8: 2823 | H8: =IF(OR(H7="---",N7="Yes"),"---",IF(G8>=E8,G8,IF(G8<E8,IF(G8<$E$6,$E$6,G8),"ERROR"))) -> 2823 | I8: =IF(OR(I7="---",N7="Yes"),"---",IF(N8="NO",IF((G8-H7)>=0,G8-H7,0),"SOLD")) -> 0 | J8: =IF(OR(J7="---",N7="Yes"),"---",IF(N8="No",J7+I8+L8,"CUM NET MTM IN ADJ BASIS")) -> 1207 | K8: =IF(OR(K7="---",N7="Yes"),"---",IF(N8="YES","SOLD",IF(G8-H7<0,G8-H7,0))) -> -1566 | L8: =IF(OR(L7="---",N7="Yes"),"---",IF(N8="Yes","SOLD",IF(-K8>J7,-J7,K8))) -> -1566 | M8: =IF(OR(M7="---",N7="Yes"),"---",IF(N8="Yes",G8-H7,IF(G8-$E$6<0,G8-$E$6,0))) -> 0 | N8: NO | O8: FALSE
A9: =F2 -> 2006 | B9: 49.57 | C9: 49.57 | D9: 2823 | E9: 2823 | F9: 3507 | G9: 3507 | H9: =IF(OR(H8="---",N8="Yes"),"---",IF(G9>=E9,G9,IF(G9<E9,IF(G9<$E$6,$E$6,G9),"ERROR"))) -> 3507 | I9: =IF(OR(I8="---",N8="Yes"),"---",IF(N9="NO",IF((G9-H8)>=0,G9-H8,0),"SOLD")) -> 684 | J9: 1891 | K9: =IF(OR(K8="---",N8="Yes"),"---",IF(N9="YES","SOLD",IF(G9-H8<0,G9-H8,0))) -> 0 | L9: 0 | M9: =IF(OR(M8="---",N8="Yes"),"---",IF(N9="Yes",G9-H8,IF(G9-$E$6<0,G9-$E$6,0))) -> 0 | N9: NO | O9: FALSE
A10: =G2 -> 2007 | B10: 76.64 | C10: 76.64 | D10: 3507 | E10: 3507 | F10: 3300 | G10: 3300 | H10: =IF(OR(H9="---",N9="Yes"),"---",IF(G10>=E10,G10,IF(G10<E10,IF(G10<$E$6,$E$6,G10),"ERROR"))) -> 3300 | I10: =IF(OR(I9="---",N9="Yes"),"---",IF(N10="NO",IF((G10-H9)>=0,G10-H9,0),"SOLD")) -> 0 | J10: 1684 | K10: =IF(OR(K9="---",N9="Yes"),"---",IF(N10="YES","SOLD",IF(G10-H9<0,G10-H9,0))) -> -207 | L10: -207 | M10: =IF(OR(M9="---",N9="Yes"),"---",IF(N10="Yes",G10-H9,IF(G10-$E$6<0,G10-$E$6,0))) -> 0 | N10: NO | O10: FALSE
A11: =H2 -> 2008 | B11: 78.91 | C11: 78.91 | D11: 3300 | E11: 3300 | F11: 2500 | G11: 2500 | H11: =IF(OR(H10="---",N10="Yes"),"---",IF(G11>=E11,G11,IF(G11<E11,IF(G11<$E$6,$E$6,G11),"ERROR"))) -> 2500 | I11: =IF(OR(I10="---",N10="Yes"),"---",IF(N11="NO",IF((G11-H10)>=0,G11-H10,0),"SOLD")) -> 0 | J11: 884 | K11: =IF(OR(K10="---",N10="Yes"),"---",IF(N11="YES","SOLD",IF(G11-H10<0,G11-H10,0))) -> -800 | L11: -800 | M11: =IF(OR(M10="---",N10="Yes"),"---",IF(N11="Yes",G11-H10,IF(G11-$E$6<0,G11-$E$6,0))) -> 0 | N11: NO | O11: FALSE
A12: =I2 -> 2009 | B12: 74.58 | C12: 74.58 | D12: 2500 | E12: 2500 | F12: 2600 | G12: 2600 | H12: =IF(OR(H11="---",N11="Yes"),"---",IF(G12>=E12,G12,IF(G12<E12,IF(G12<$E$6,$E$6,G12),"ERROR"))) -> 2600 | I12: =IF(OR(I11="---",N11="Yes"),"---",IF(N12="NO",IF((G12-H11)>=0,G12-H11,0),"SOLD")) -> 100 | J12: 984 | K12: =IF(OR(K11="---",N11="Yes"),"---",IF(N12="YES","SOLD",IF(G12-H11<0,G12-H11,0))) -> 0 | L12: 0 | M12: =IF(OR(M11="---",N11="Yes"),"---",IF(N12="Yes",G12-H11,IF(G12-$E$6<0,G12-$E$6,0))) -> 0 | N12: NO | O12: FALSE
A13: =J2 -> 2010 | B13: 89.39 | C13: 89.39 | D13: 2600 | E13: 2600 | F13: 800 | G13: 800 | H13: =IF(OR(H12="---",N12="Yes"),"---",IF(G13>=E13,G13,IF(G13<E13,IF(G13<$E$6,$E$6,G13),"ERROR"))) -> 1616 | I13: =IF(OR(I12="---",N12="Yes"),"---",IF(N13="NO",IF((G13-H12)>=0,G13-H12,0),"SOLD")) -> 0 | J13: 0 | K13: =IF(OR(K12="---",N12="Yes"),"---",IF(N13="YES","SOLD",IF(G13-H12<0,G13-H12,0))) -> -1800 | L13: -984 | M13: =IF(OR(M12="---",N12="Yes"),"---",IF(N13="Yes",G13-H12,IF(G13-$E$6<0,G13-$E$6,0))) -> -816 | N13: NO | O13: FALSE
A14: =K2 -> 2011 | B14: 90.39 | C14: 90.39 | D14: 800 | E14: 800 | F14: 801 | G14: 801 | H14: =IF(OR(H13="---",N13="Yes"),"---",IF(G14>=E14,G14,IF(G14<E14,IF(G14<$E$6,$E$6,G14),"ERROR"))) -> 801 | I14: =IF(OR(I13="---",N13="Yes"),"---",IF(N14="NO",IF((G14-H13)>=0,G14-H13,0),"SOLD")) -> 0 | J14: 0 | K14: =IF(OR(K13="---",N13="Yes"),"---",IF(N14="YES","SOLD",IF(G14-H13<0,G14-H13,0))) -> -815 | L14: 0 | M14: =IF(OR(M13="---",N13="Yes"),"---",IF(N14="Yes",G14-H13,IF(G14-$E$6<0,G14-$E$6,0))) -> -815 | N14: NO | O14: FALSE
A15: =L2 -> 2012 | B15: 91.39 | C15: 91.39 | D15: 801 | E15: 801 | F15: 802 | G15: 802 | H15: =IF(OR(H14="---",N14="Yes"),"---",IF(G15>=E15,G15,IF(G15<E15,IF(G15<$E$6,$E$6,G15),"ERROR"))) -> 802 | I15: =IF(OR(I14="---",N14="Yes"),"---",IF(N15="NO",IF((G15-H14)>=0,G15-H14,0),"SOLD")) -> 1 | J15: 1 | K15: =IF(OR(K14="---",N14="Yes"),"---",IF(N15="YES","SOLD",IF(G15-H14<0,G15-H14,0))) -> 0 | L15: 0 | M15: =IF(OR(M14="---",N14="Yes"),"---",IF(N15="Yes",G15-H14,IF(G15-$E$6<0,G15-$E$6,0))) -> -814 | N15: NO | O15: FALSE
A16: =M2 -> 2013 | B16: 92.39 | C16: 92.39 | D16: 802 | E16: 802 | F16: 803 | G16: 803 | H16: =IF(OR(H15="---",N15="Yes"),"---",IF(G16>=E16,G16,IF(G16<E16,IF(G16<$E$6,$E$6,G16),"ERROR"))) -> 803 | I16: =IF(OR(I15="---",N15="Yes"),"---",IF(N16="NO",IF((G16-H15)>=0,G16-H15,0),"SOLD")) -> 1 | J16: 2 | K16: =IF(OR(K15="---",N15="Yes"),"---",IF(N16="YES","SOLD",IF(G16-H15<0,G16-H15,0))) -> 0 | L16: 0 | M16: =IF(OR(M15="---",N15="Yes"),"---",IF(N16="Yes",G16-H15,IF(G16-$E$6<0,G16-$E$6,0))) -> -813 | N16: NO | O16: FALSE
A17: =N2 -> 2014 | B17: 93.39 | C17: 93.39 | D17: 803 | E17: 803 | F17: 804 | G17: 804 | H17: =IF(OR(H16="---",N16="Yes"),"---",IF(G17>=E17,G17,IF(G17<E17,IF(G17<$E$6,$E$6,G17),"ERROR"))) -> 804 | I17: =IF(OR(I16="---",N16="Yes"),"---",IF(N17="NO",IF((G17-H16)>=0,G17-H16,0),"SOLD")) -> 1 | J17: 3 | K17: =IF(OR(K16="---",N16="Yes"),"---",IF(N17="YES","SOLD",IF(G17-H16<0,G17-H16,0))) -> 0 | L17: 0 | M17: =IF(OR(M16="---",N16="Yes"),"---",IF(N17="Yes",G17-H16,IF(G17-$E$6<0,G17-$E$6,0))) -> -812 | N17: NO | O17: FALSE
A18: =O2 -> 2015 | B18: 94.39 | C18: 94.39 | D18: 804 | E18: 804 | F18: 805 | G18: 805 | H18: =IF(OR(H17="---",N17="Yes"),"---",IF(G18>=E18,G18,IF(G18<E18,IF(G18<$E$6,$E$6,G18),"ERROR"))) -> 805 | I18: =IF(OR(I17="---",N17="Yes"),"---",IF(N18="NO",IF((G18-H17)>=0,G18-H17,0),"SOLD")) -> 1 | J18: 4 | K18: =IF(OR(K17="---",N17="Yes"),"---",IF(N18="YES","SOLD",IF(G18-H17<0,G18-H17,0))) -> 0 | L18: 0 | M18: =IF(OR(M17="---",N17="Yes"),"---",IF(N18="Yes",G18-H17,IF(G18-$E$6<0,G18-$E$6,0))) -> -811 | N18: NO | O18: FALSE
A19: =P2 -> 2016 | B19: 95.39 | C19: 95.39 | D19: 805 | E19: 805 | F19: 806 | G19: 806 | H19: =IF(OR(H18="---",N18="Yes"),"---",IF(G19>=E19,G19,IF(G19<E19,IF(G19<$E$6,$E$6,G19),"ERROR"))) -> 806 | I19: =IF(OR(I18="---",N18="Yes"),"---",IF(N19="NO",IF((G19-H18)>=0,G19-H18,0),"SOLD")) -> 1 | J19: 5 | K19: =IF(OR(K18="---",N18="Yes"),"---",IF(N19="YES","SOLD",IF(G19-H18<0,G19-H18,0))) -> 0 | L19: 0 | M19: =IF(OR(M18="---",N18="Yes"),"---",IF(N19="Yes",G19-H18,IF(G19-$E$6<0,G19-$E$6,0))) -> -810 | N19: NO | O19: FALSE
A20: =Q2 -> 2017 | B20: 96.39 | C20: 96.39 | D20: 806 | E20: 806 | F20: 807 | G20: 807 | H20: =IF(OR(H19="---",N19="Yes"),"---",IF(G20>=E20,G20,IF(G20<E20,IF(G20<$E$6,$E$6,G20),"ERROR"))) -> 807 | I20: =IF(OR(I19="---",N19="Yes"),"---",IF(N20="NO",IF((G20-H19)>=0,G20-H19,0),"SOLD")) -> 1 | J20: 6 | K20: =IF(OR(K19="---",N19="Yes"),"---",IF(N20="YES","SOLD",IF(G20-H19<0,G20-H19,0))) -> 0 | L20: 0 | M20: =IF(OR(M19="---",N19="Yes"),"---",IF(N20="Yes",G20-H19,IF(G20-$E$6<0,G20-$E$6,0))) -> -809 | N20: NO | O20: FALSE
A21: =R2 -> 2018 | B21: 97.39 | C21: 97.39 | D21: 807 | E21: 807 | F21: 808 | G21: 808 | H21: =IF(OR(H20="---",N20="Yes"),"---",IF(G21>=E21,G21,IF(G21<E21,IF(G21<$E$6,$E$6,G21),"ERROR"))) -> 808 | I21: =IF(OR(I20="---",N20="Yes"),"---",IF(N21="NO",IF((G21-H20)>=0,G21-H20,0),"SOLD")) -> 1 | J21: 7 | K21: =IF(OR(K20="---",N20="Yes"),"---",IF(N21="YES","SOLD",IF(G21-H20<0,G21-H20,0))) -> 0 | L21: 0 | M21: =IF(OR(M20="---",N20="Yes"),"---",IF(N21="Yes",G21-H20,IF(G21-$E$6<0,G21-$E$6,0))) -> -808 | N21: NO | O21: FALSE
A22: =S2 -> 2019 | B22: 98.39 | C22: 98.39 | D22: 808 | E22: 808 | F22: 809 | G22: 809 | H22: =IF(OR(H21="---",N21="Yes"),"---",IF(G22>=E22,G22,IF(G22<E22,IF(G22<$E$6,$E$6,G22),"ERROR"))) -> 809 | I22: =IF(OR(I21="---",N21="Yes"),"---",IF(N22="NO",IF((G22-H21)>=0,G22-H21,0),"SOLD")) -> 1 | J22: 8 | K22: =IF(OR(K21="---",N21="Yes"),"---",IF(N22="YES","SOLD",IF(G22-H21<0,G22-H21,0))) -> 0 | L22: 0 | M22: =IF(OR(M21="---",N21="Yes"),"---",IF(N22="Yes",G22-H21,IF(G22-$E$6<0,G22-$E$6,0))) -> -807 | N22: NO | O22: FALSE
A23: =T2 -> 2020 | B23: 99.39 | C23: 99.39 | D23: 809 | E23: 809 | F23: 810 | G23: 810 | H23: =IF(OR(H22="---",N22="Yes"),"---",IF(G23>=E23,G23,IF(G23<E23,IF(G23<$E$6,$E$6,G23),"ERROR"))) -> 810 | I23: =IF(OR(I22="---",N22="Yes"),"---",IF(N23="NO",IF((G23-H22)>=0,G23-H22,0),"SOLD")) -> 1 | J23: 9 | K23: =IF(OR(K22="---",N22="Yes"),"---",IF(N23="YES","SOLD",IF(G23-H22<0,G23-H22,0))) -> 0 | L23: 0 | M23: =IF(OR(M22="---",N22="Yes"),"---",IF(N23="Yes",G23-H22,IF(G23-$E$6<0,G23-$E$6,0))) -> -806 | N23: NO | O23: FALSE
A25: Year | B25: Highest NAV Per Unit During Calendar Year (01-01-xx to 12-31-xx) | C25: Highest Value of Fund in Calendar Year (01-01-xx to 12-31-xx) | D25: NAV Per Unit on Opening of First Business Day of Current Year (Jan) | E25: Total Nav on First Business Day of Current Year | F25: NAV (FMV) Per Unit on at Close of Last Business Day of Year, or SALE PRICE per UNIT (Dec) | G25: Total Nav Last business day of Year | H25: Adjusted Basis at EOY (or Sale Price) | I25: Section 1296 MTM (Mark to Market) Gain for the Tax Year | J25: Cumulative Net (MTM) Gains | K25: Unrealized Loss for year | L25: Deductible Loss for Year (Unreversed Inclusion) (Ordinary Loss Allowed Up to Prior MTM Gain) | M25: Potential Capital Gain/Loss (if any) | N25: Mutual Fund Sold?
A26: =C2 -> 2003 | B26: =B6/$C$3 -> 0 | C26: =C6/$C$3 -> 0 | D26: =D6/$C$3 -> 35.47749726 | E26: =D26*$C$1 -> 35.47749726 | F26: =F6/$C$3 -> 72.25027442 | G26: =F26*$C$1 -> 72.25027442 | H26: =IF(G26>=E26,G26,IF(G26<E26,IF(G26<$E$26,$E$26,G26),"ERROR")) -> 72.25027442 | I26: =IF(N26="NO",IF((G26-E26)>=0,G26-E26,0),"SOLD") -> 36.77277717 | J26: =IF(N26="Yes","SOLD",I26) -> 36.77277717 | K26: =IF(N26="Yes","SOLD",IF(G26-E26<0,G26-E26,0)) -> 0 | L26: =IF(N26="Yes","SOLD",IF(-K26>J26,-J26,K26)) -> 0 | M26: =IF(N26="Yes",H26-E26,IF(G26-$E$26<0,G26-$E$26,0)) -> 0 | N26: =N6 -> NO
A27: =D2 -> 2004 | B27: =B7/$D$3 -> 0.6436330021 | C27: =C7/$D$3 -> 0.6436330021 | D27: =D7/$D$3 -> 76.05731454 | E27: =D27*$C$1 -> 76.05731454 | F27: =F7/$D$3 -> 101.4328634 | G27: 101.4328634 | H27: =IF(OR(H26="---",N26="Yes"),"---",IF(G27>=E27,G27,IF(G27<E27,IF(G27<$E$26,$E$26,G27),"ERROR"))) -> 101.4328634 | I27: =IF(OR(I26="---",N26="Yes"),"---",IF(N27="NO",IF((G27-H26)>=0,G27-H26,0),"SOLD")) -> 29.18258899 | J27: =IF(OR(J26="---",N26="Yes"),"---",IF(N27="No",J26+I27+L27,"CUM NET MTM IN ADJ BASIS")) -> 65.95536616 | K27: =IF(OR(K26="---",N26="Yes"),"---",IF(N27="YES","SOLD",IF(G27-H26<0,G27-H26,0))) -> 0 | L27: =IF(OR(L26="---",N26="Yes"),"---",IF(N27="Yes","SOLD",IF(-K27>J26,-J26,K27))) -> 0 | M27: =IF(OR(M26="---",N26="Yes"),"---",IF(N27="Yes",G27-H26,IF(G27-$E$26<0,G27-$E$26,0))) -> 0 | N27: =N7 -> NO
A28: =E2 -> 2005 | B28: =B8/$E$3 -> 0.8131256952 | C28: =C8/$E$3 -> 0.8131256952 | D28: =D8/$E$3 -> 97.64182425 | E28: 97.64182425 | F28: =F8/$E$3 -> 62.80311457 | G28: 62.80311457 | H28: =IF(OR(H27="---",N27="Yes"),"---",IF(G28>=E28,G28,IF(G28<E28,IF(G28<$E$26,$E$26,G28),"ERROR"))) -> 62.80311457 | I28: =IF(OR(I27="---",N27="Yes"),"---",IF(N28="NO",IF((G28-H27)>=0,G28-H27,0),"SOLD")) -> 0 | J28: =IF(OR(J27="---",N27="Yes"),"---",IF(N28="No",J27+I28+L28,"CUM NET MTM IN ADJ BASIS")) -> 27.32561732 | K28: =IF(OR(K27="---",N27="Yes"),"---",IF(N28="YES","SOLD",IF(G28-H27<0,G28-H27,0))) -> -38.62974884 | L28: =IF(OR(L27="---",N27="Yes"),"---",IF(N28="Yes","SOLD",IF(-K28>J27,-J27,K28))) -> -38.62974884 | M28: =IF(OR(M27="---",N27="Yes"),"---",IF(N28="Yes",G28-H27,IF(G28-$E$26<0,G28-$E$26,0))) -> 0 | N28: NO
A29: =F2 -> 2006 | B29: =B9/$F$3 -> 1.123781455 | C29: =C9/$F$3 -> 1.123781455 | D29: =D9/$F$3 -> 63.99909318 | E29: 63.99909318 | F29: =F9/$F$3 -> 79.505781 | G29: 79.505781 | H29: =IF(OR(H28="---",N28="Yes"),"---",IF(G29>=E29,G29,IF(G29<E29,IF(G29<$E$26,$E$26,G29),"ERROR"))) -> 79.505781 | I29: =IF(OR(I28="---",N28="Yes"),"---",IF(N29="NO",IF((G29-H28)>=0,G29-H28,0),"SOLD")) -> 16.70266643 | J29: 44.02828375 | K29: =IF(OR(K28="---",N28="Yes"),"---",IF(N29="YES","SOLD",IF(G29-H28<0,G29-H28,0))) -> 0 | L29: 0 | M29: =IF(OR(M28="---",N28="Yes"),"---",IF(N29="Yes",G29-H28,IF(G29-$E$26<0,G29-$E$26,0))) -> 0 | N29: NO
A30: =G2 -> 2007 | B30: =B10/$G$3 -> 1.946659893 | C30: =C10/$G$3 -> 1.946659893 | D30: =D10/$G$3 -> 89.07797816 | E30: 89.07797816 | F30: =F10/$G$3 -> 83.82016764 | G30: 83.82016764 | H30: =IF(OR(H29="---",N29="Yes"),"---",IF(G30>=E30,G30,IF(G30<E30,IF(G30<$E$26,$E$26,G30),"ERROR"))) -> 83.82016764 | I30: =IF(OR(I29="---",N29="Yes"),"---",IF(N30="NO",IF((G30-H29)>=0,G30-H29,0),"SOLD")) -> 4.314386638 | J30: 48.34267038 | K30: =IF(OR(K29="---",N29="Yes"),"---",IF(N30="YES","SOLD",IF(G30-H29<0,G30-H29,0))) -> 0 | L30: 0 | M30: =IF(OR(M29="---",N29="Yes"),"---",IF(N30="Yes",G30-H29,IF(G30-$E$26<0,G30-$E$26,0))) -> 0 | N30: NO
A31: =H2 -> 2008 | B31: =B11/$H$3 -> 1.624331 | C31: =C11/$H$3 -> 1.624331 | D31: =D11/$H$3 -> 67.92918897 | E31: 67.92918897 | F31: =F11/$H$3 -> 51.46150679 | G31: 51.46150679 | H31: =IF(OR(H30="---",N30="Yes"),"---",IF(G31>=E31,G31,IF(G31<E31,IF(G31<$E$26,$E$26,G31),"ERROR"))) -> 51.46150679 | I31: =IF(OR(I30="---",N30="Yes"),"---",IF(N31="NO",IF((G31-H30)>=0,G31-H30,0),"SOLD")) -> 0 | J31: 15.98400954 | K31: =IF(OR(K30="---",N30="Yes"),"---",IF(N31="YES","SOLD",IF(G31-H30<0,G31-H30,0))) -> -32.35866085 | L31: -32.35866085 | M31: =IF(OR(M30="---",N30="Yes"),"---",IF(N31="Yes",G31-H30,IF(G31-$E$26<0,G31-$E$26,0))) -> 0 | N31: NO
A32: =I2 -> 2009 | B32: =B12/$I$3 -> 1.606981254 | C32: =C12/$I$3 -> 1.606981254 | D32: =D12/$I$3 -> 53.86770093 | E32: 53.86770093 | F32: =F12/$I$3 -> 56.02240896 | G32: 56.02240896 | H32: =IF(OR(H31="---",N31="Yes"),"---",IF(G32>=E32,G32,IF(G32<E32,IF(G32<$E$26,$E$26,G32),"ERROR"))) -> 56.02240896 | I32: =IF(OR(I31="---",N31="Yes"),"---",IF(N32="NO",IF((G32-H31)>=0,G32-H31,0),"SOLD")) -> 4.560902171 | J32: 20.54491171 | K32: =IF(OR(K31="---",N31="Yes"),"---",IF(N32="YES","SOLD",IF(G32-H31<0,G32-H31,0))) -> 0 | L32: 0 | M32: =IF(OR(M31="---",N31="Yes"),"---",IF(N32="Yes",G32-H31,IF(G32-$E$26<0,G32-$E$26,0))) -> 0 | N32: NO
A33: =J2 -> 2010 | B33: =B13/$J$3 -> 1.999776286 | C33: =C13/$J$3 -> 1.999776286 | D33: =D13/$J$3 -> 58.1655481 | E33: 58.1655481 | F33: =F13/$J$3 -> 17.89709172 | G33: 17.89709172 | H33: =IF(OR(H32="---",N32="Yes"),"---",IF(G33>=E33,G33,IF(G33<E33,IF(G33<$E$26,$E$26,G33),"ERROR"))) -> 35.47749726 | I33: =IF(OR(I32="---",N32="Yes"),"---",IF(N33="NO",IF((G33-H32)>=0,G33-H32,0),"SOLD")) -> 0 | J33: 0 | K33: =IF(OR(K32="---",N32="Yes"),"---",IF(N33="YES","SOLD",IF(G33-H32<0,G33-H32,0))) -> -38.12531724 | L33: -20.54491171 | M33: =IF(OR(M32="---",N32="Yes"),"---",IF(N33="Yes",G33-H32,IF(G33-$E$26<0,G33-$E$26,0))) -> -17.58040553 | N33: NO
A34: =K2 -> 2011 | B34: =B14/$K$3 -> 1.703510989 | C34: =C14/$K$3 -> 1.703510989 | D34: =D14/$K$3 -> 15.0769863 | E34: 15.0769863 | F34: =F14/$K$3 -> 15.09583253 | G34: 15.09583253 | H34: =IF(OR(H33="---",N33="Yes"),"---",IF(G34>=E34,G34,IF(G34<E34,IF(G34<$E$26,$E$26,G34),"ERROR"))) -> 15.09583253 | I34: =IF(OR(I33="---",N33="Yes"),"---",IF(N34="NO",IF((G34-H33)>=0,G34-H33,0),"SOLD")) -> 0 | J34: 0 | K34: =IF(OR(K33="---",N33="Yes"),"---",IF(N34="YES","SOLD",IF(G34-H33<0,G34-H33,0))) -> -20.38166473 | L34: 0 | M34: =IF(OR(M33="---",N33="Yes"),"---",IF(N34="Yes",G34-H33,IF(G34-$E$26<0,G34-$E$26,0))) -> -20.38166473 | N34: NO
A35: =L2 -> 2012 | B35: =B15/$L$3 -> 1.666150936 | C35: =C15/$L$3 -> 1.666150936 | D35: =D15/$L$3 -> 14.60320494 | E35: 14.60320494 | F35: =F15/$L$3 -> 14.62143616 | G35: 14.62143616 | H35: =IF(OR(H34="---",N34="Yes"),"---",IF(G35>=E35,G35,IF(G35<E35,IF(G35<$E$26,$E$26,G35),"ERROR"))) -> 14.62143616 | I35: =IF(OR(I34="---",N34="Yes"),"---",IF(N35="NO",IF((G35-H34)>=0,G35-H34,0),"SOLD")) -> 0 | J35: 0 | K35: =IF(OR(K34="---",N34="Yes"),"---",IF(N35="YES","SOLD",IF(G35-H34<0,G35-H34,0))) -> -0.4743963694 | L35: 0 | M35: =IF(OR(M34="---",N34="Yes"),"---",IF(N35="Yes",G35-H34,IF(G35-$E$26<0,G35-$E$26,0))) -> -20.8560611 | N35: NO
A36: =M2 -> 2013 | B36: =B16/$M$3 -> 1.493557809 | C36: =C16/$M$3 -> 1.493557809 | D36: =D16/$M$3 -> 12.96496767 | E36: 12.96496767 | F36: =F16/$M$3 -> 12.98113347 | G36: 12.98113347 | H36: =IF(OR(H35="---",N35="Yes"),"---",IF(G36>=E36,G36,IF(G36<E36,IF(G36<$E$26,$E$26,G36),"ERROR"))) -> 12.98113347 | I36: =IF(OR(I35="---",N35="Yes"),"---",IF(N36="NO",IF((G36-H35)>=0,G36-H35,0),"SOLD")) -> 0 | J36: 0 | K36: =IF(OR(K35="---",N35="Yes"),"---",IF(N36="YES","SOLD",IF(G36-H35<0,G36-H35,0))) -> -1.640302693 | L36: 0 | M36: =IF(OR(M35="---",N35="Yes"),"---",IF(N36="Yes",G36-H35,IF(G36-$E$26<0,G36-$E$26,0))) -> -22.49636379 | N36: NO
A37: =N2 -> 2014 | B37: =B17/$N$3 -> 1.436769231 | C37: =C17/$N$3 -> 1.436769231 | D37: =D17/$N$3 -> 12.35384615 | E37: 12.35384615 | F37: =F17/$N$3 -> 12.36923077 | G37: 12.36923077 | H37: =IF(OR(H36="---",N36="Yes"),"---",IF(G37>=E37,G37,IF(G37<E37,IF(G37<$E$26,$E$26,G37),"ERROR"))) -> 12.36923077 | I37: =IF(OR(I36="---",N36="Yes"),"---",IF(N37="NO",IF((G37-H36)>=0,G37-H36,0),"SOLD")) -> 0 | J37: 0 | K37: =IF(OR(K36="---",N36="Yes"),"---",IF(N37="YES","SOLD",IF(G37-H36<0,G37-H36,0))) -> -0.6119026971 | L37: 0 | M37: =IF(OR(M36="---",N36="Yes"),"---",IF(N37="Yes",G37-H36,IF(G37-$E$26<0,G37-$E$26,0))) -> -23.10826649 | N37: NO
A38: =O2 -> 2015 | B38: =B18/$O$3 -> 1.258533333 | C38: =C18/$O$3 -> 1.258533333 | D38: =D18/$O$3 -> 10.72 | E38: 10.72 | F38: =F18/$O$3 -> 10.73333333 | G38: 10.73333333 | H38: =IF(OR(H37="---",N37="Yes"),"---",IF(G38>=E38,G38,IF(G38<E38,IF(G38<$E$26,$E$26,G38),"ERROR"))) -> 10.73333333 | I38: =IF(OR(I37="---",N37="Yes"),"---",IF(N38="NO",IF((G38-H37)>=0,G38-H37,0),"SOLD")) -> 0 | J38: 0 | K38: =IF(OR(K37="---",N37="Yes"),"---",IF(N38="YES","SOLD",IF(G38-H37<0,G38-H37,0))) -> -1.635897436 | L38: 0 | M38: =IF(OR(M37="---",N37="Yes"),"---",IF(N38="Yes",G38-H37,IF(G38-$E$26<0,G38-$E$26,0))) -> -24.74416392 | N38: NO
A39: =P2 -> 2016 | B39: =B19/$P$3 -> 1.122235294 | C39: =C19/$P$3 -> 1.122235294 | D39: =D19/$P$3 -> 9.470588235 | E39: 9.470588235 | F39: =F19/$P$3 -> 9.482352941 | G39: 9.482352941 | H39: =IF(OR(H38="---",N38="Yes"),"---",IF(G39>=E39,G39,IF(G39<E39,IF(G39<$E$26,$E$26,G39),"ERROR"))) -> 9.482352941 | I39: =IF(OR(I38="---",N38="Yes"),"---",IF(N39="NO",IF((G39-H38)>=0,G39-H38,0),"SOLD")) -> 0 | J39: 0 | K39: =IF(OR(K38="---",N38="Yes"),"---",IF(N39="YES","SOLD",IF(G39-H38<0,G39-H38,0))) -> -1.250980392 | L39: 0 | M39: =IF(OR(M38="---",N38="Yes"),"---",IF(N39="Yes",G39-H38,IF(G39-$E$26<0,G39-$E$26,0))) -> -25.99514431 | N39: NO
A40: =Q2 -> 2017 | B40: =B20/$Q$3 -> 1.014631579 | C40: =C20/$Q$3 -> 1.014631579 | D40: =D20/$Q$3 -> 8.484210526 | E40: 8.484210526 | F40: =F20/$Q$3 -> 8.494736842 | G40: 8.494736842 | H40: =IF(OR(H39="---",N39="Yes"),"---",IF(G40>=E40,G40,IF(G40<E40,IF(G40<$E$26,$E$26,G40),"ERROR"))) -> 8.494736842 | I40: =IF(OR(I39="---",N39="Yes"),"---",IF(N40="NO",IF((G40-H39)>=0,G40-H39,0),"SOLD")) -> 0 | J40: 0 | K40: =IF(OR(K39="---",N39="Yes"),"---",IF(N40="YES","SOLD",IF(G40-H39<0,G40-H39,0))) -> -0.9876160991 | L40: 0 | M40: =IF(OR(M39="---",N39="Yes"),"---",IF(N40="Yes",G40-H39,IF(G40-$E$26<0,G40-$E$26,0))) -> -26.98276041 | N40: NO
A41: =R2 -> 2018 | B41: =B21/$R$3 -> 0.9275238095 | C41: =C21/$R$3 -> 0.9275238095 | D41: =D21/$R$3 -> 7.685714286 | E41: 7.685714286 | F41: =F21/$R$3 -> 7.695238095 | G41: 7.695238095 | H41: =IF(OR(H40="---",N40="Yes"),"---",IF(G41>=E41,G41,IF(G41<E41,IF(G41<$E$26,$E$26,G41),"ERROR"))) -> 7.695238095 | I41: =IF(OR(I40="---",N40="Yes"),"---",IF(N41="NO",IF((G41-H40)>=0,G41-H40,0),"SOLD")) -> 0 | J41: 0 | K41: =IF(OR(K40="---",N40="Yes"),"---",IF(N41="YES","SOLD",IF(G41-H40<0,G41-H40,0))) -> -0.7994987469 | L41: 0 | M41: =IF(OR(M40="---",N40="Yes"),"---",IF(N41="Yes",G41-H40,IF(G41-$E$26<0,G41-$E$26,0))) -> -27.78225916 | N41: NO
A42: =S2 -> 2019 | B42: =B22/$S$3 -> 0.8555652174 | C42: =C22/$S$3 -> 0.8555652174 | D42: =D22/$S$3 -> 7.026086957 | E42: 7.026086957 | F42: =F22/$S$3 -> 7.034782609 | G42: 7.034782609 | H42: =IF(OR(H41="---",N41="Yes"),"---",IF(G42>=E42,G42,IF(G42<E42,IF(G42<$E$26,$E$26,G42),"ERROR"))) -> 7.034782609 | I42: =IF(OR(I41="---",N41="Yes"),"---",IF(N42="NO",IF((G42-H41)>=0,G42-H41,0),"SOLD")) -> 0 | J42: 0 | K42: =IF(OR(K41="---",N41="Yes"),"---",IF(N42="YES","SOLD",IF(G42-H41<0,G42-H41,0))) -> -0.6604554865 | L42: 0 | M42: =IF(OR(M41="---",N41="Yes"),"---",IF(N42="Yes",G42-H41,IF(G42-$E$26<0,G42-$E$26,0))) -> -28.44271465 | N42: NO
A43: =T2 -> 2020 | B43: =B23/$T$3 -> 0.79512 | C43: =C23/$T$3 -> 0.79512 | D43: =D23/$T$3 -> 6.472 | E43: =D43*$C$1 -> 6.472 | F43: =F23/$T$3 -> 6.48 | G43: 6.48 | H43: =IF(OR(H42="---",N42="Yes"),"---",IF(G43>=E43,G43,IF(G43<E43,IF(G43<$E$26,$E$26,G43),"ERROR"))) -> 6.48 | I43: =IF(OR(I42="---",N42="Yes"),"---",IF(N43="NO",IF((G43-H42)>=0,G43-H42,0),"SOLD")) -> 0 | J43: 0 | K43: =IF(OR(K42="---",N42="Yes"),"---",IF(N43="YES","SOLD",IF(G43-H42<0,G43-H42,0))) -> -0.5547826087 | L43: 0 | M43: =IF(OR(M42="---",N42="Yes"),"---",IF(N43="Yes",G43-H42,IF(G43-$E$26<0,G43-$E$26,0))) -> -28.99749726 | N43: NO
A46: FOREIGN FUND NAME (as on moneycontrol.com site) | B46: FOREIGN FUND SYMBOL (as on moneycontrol.com site) | C46: FUND'S REGISTERED ADDRESS (as on moneycontrol.com's site) | E46: FOLIO OR ACCOUNT NUMBER IF APPLICABLE | F46: IF FUND NOT HELD DIRECTLY, GIVE BROKERAGE NAME WHERE YOU HOLD IT | H46: IF YOU HAVE IT IN BROKERAGE, THEN GIVE BROKERAGE FULL ADDRESS | J46: Date which Mutual Fund Account Was Bought, OR if held in Brokerage, date which Brokerage Account was Opened | K46: Date which Mutual Fund Account Was Sold, OR if held in Brokerage, date which Brokerage Account was Closed
A47: Mutual Fund Name (Enter in A47)

Sheet Mutual Fund 6
B1: Units at Beginning of Period | C1: 1 | D1: DEFAULT EXCHANGE RATES ARE INDIAN RUPEES TO ONE DOLLAR, AS PER WWW.X-RATES.COM ON 12/31 OF EACH YEAR. CHANGE ACCORDINGLY FOR YOUR COUNTRY. ALL NUMERICAL FIELDS IN BLUE ARE CHANGEABLE BY YOU. FUTURE YEARS HAVE DUMMY VALUES. IF YOUR FUND HAS DIVIDENDS WHICH ARE REINVESTED, TREAT EACH BATCH OF UNITS NEWLY BOUGHT BY REINVESTED DIVIDENDS AS A NEW MUTUAL FUND TO PROPERLY KEEP TRACK OF THE COST BASIS OF THOSE REINVESTED DIVIDENDS. FILL FUND NAME AND STUFF IN ROW "A" AT BOTTOM OF SHEET.
C2: 2003 | D2: 2004 | E2: 2005 | F2: 2006 | G2: 2007 | H2: 2008 | I2: 2009 | J2: 2010 | K2: 2011 | L2: 2012 | M2: 2013 | N2: 2014 | O2: 2015 | P2: 2016 | Q2: 2017 | R2: 2018 | S2: 2019 | T2: 2020
A3: =A47 -> Mutual Fund Name (Enter in A47) | B3: Exc Rate 12/31 | C3: 45.55 | D3: 43.27 | E3: 44.95 | F3: 44.11 | G3: 39.37 | H3: 48.58 | I3: 46.41 | J3: 44.7 | K3: 53.061002 | L3: 54.850973 | M3: 61.859005 | N3: 65 | O3: 75 | P3: 85 | Q3: 95 | R3: 105 | S3: 115 | T3: 125
A5: Year | B5: Highest NAV Per Unit During Calendar Year (01-01-xx to 12-31-xx) | C5: Highest Value of Fund in Calendar Year (01-01-xx to 12-31-xx) | D5: NAV Per Unit on Opening of First Business Day of Current Year (Jan) | E5: Total Nav on First Business Day of Current Year | F5: NAV (FMV) Per Unit on at Close of Last Business Day of Year, or SALE PRICE per UNIT (Dec) | G5: Total Nav Last business day of Year | H5: Adjusted Basis at EOY (or Sale Price) | I5: Section 1296 MTM (Mark to Market) Gain for the Tax Year | J5: Cumulative Net (MTM) Gains (afer unrealized loss for year deducted) | K5: Unrealized Loss for year | L5: Deductible Loss for Year (Unreversed Inclusion) (Ordinary Loss Allowed Up to Prior MTM Gain) | M5: Potential Capital Gain/Loss (if any) | N5: Mutual Fund Sold?
A6: =C2 -> 2003 | B6: 0 | C6: =B6*$C$1 -> 0 | D6: 1616 | E6: =D6*$C$1 -> 1616 | F6: 3291 | G6: =F6*$C$1 -> 3291 | H6: =IF(G6>=E6,G6,IF(G6<E6,IF(G6<$E$6,$E$6,G6),"ERROR")) -> 3291 | I6: =IF(N6="NO",IF((G6-E6)>=0,G6-E6,0),"SOLD") -> 1675 | J6: =IF(N6="Yes","SOLD",I6) -> 1675 | K6: =IF(N6="Yes","SOLD",IF(G6-E6<0,G6-E6,0)) -> 0 | L6: =IF(N6="Yes","SOLD",IF(-K6>J6,-J6,K6)) -> 0 | M6: =IF(N6="Yes",H6-E6,IF(G6-$E$6<0,G6-$E$6,0)) -> 0 | N6: =IF(O6=FALSE,"NO",IF(O6=TRUE,"YES","NO")) -> NO | O6: FALSE
A7: =D2 -> 2004 | B7: 27.85 | C7: =B7*$C$1 -> 27.85 | D7: =G6 -> 3291 | E7: =D7*$C$1 -> 3291 | F7: 4389 | G7: =F7*$C$1 -> 4389 | H7: =IF(OR(H6="---",N6="Yes"),"---",IF(G7>=E7,G7,IF(G7<E7,IF(G7<$E$6,$E$6,G7),"ERROR"))) -> 4389 | I7: =IF(OR(I6="---",N6="Yes"),"---",IF(N7="NO",IF((G7-H6)>=0,G7-H6,0),"SOLD")) -> 1098 | J7: =IF(OR(J6="---",N6="Yes"),"---",IF(N7="No",J6+I7+L7,"CUM NET MTM IN ADJ BASIS")) -> 2773 | K7: =IF(OR(K6="---",N6="Yes"),"---",IF(N7="YES","SOLD",IF(G7-H6<0,G7-H6,0))) -> 0 | L7: =IF(OR(L6="---",N6="Yes"),"---",IF(N7="Yes","SOLD",IF(-K7>J6,-J6,K7))) -> 0 | M7: =IF(OR(M6="---",N6="Yes"),"---",IF(N7="Yes",G7-H6,IF(G7-$E$6<0,G7-$E$6,0))) -> 0 | N7: =IF(O7=FALSE,"NO",IF(O7=TRUE,"YES","NO")) -> NO | O7: FALSE
A8: =E2 -> 2005 | B8: 36.55 | C8: 36.55 | D8: =G7 -> 4389 | E8: 4389 | F8: 2823 | G8: 2823 | H8: =IF(OR(H7="---",N7="Yes"),"---",IF(G8>=E8,G8,IF(G8<E8,IF(G8<$E$6,$E$6,G8),"ERROR"))) -> 2823 | I8: =IF(OR(I7="---",N7="Yes"),"---",IF(N8="NO",IF((G8-H7)>=0,G8-H7,0),"SOLD")) -> 0 | J8: =IF(OR(J7="---",N7="Yes"),"---",IF(N8="No",J7+I8+L8,"CUM NET MTM IN ADJ BASIS")) -> 1207 | K8: =IF(OR(K7="---",N7="Yes"),"---",IF(N8="YES","SOLD",IF(G8-H7<0,G8-H7,0))) -> -1566 | L8: =IF(OR(L7="---",N7="Yes"),"---",IF(N8="Yes","SOLD",IF(-K8>J7,-J7,K8))) -> -1566 | M8: =IF(OR(M7="---",N7="Yes"),"---",IF(N8="Yes",G8-H7,IF(G8-$E$6<0,G8-$E$6,0))) -> 0 | N8: NO | O8: FALSE
A9: =F2 -> 2006 | B9: 49.57 | C9: 49.57 | D9: 2823 | E9: 2823 | F9: 3507 | G9: 3507 | H9: =IF(OR(H8="---",N8="Yes"),"---",IF(G9>=E9,G9,IF(G9<E9,IF(G9<$E$6,$E$6,G9),"ERROR"))) -> 3507 | I9: =IF(OR(I8="---",N8="Yes"),"---",IF(N9="NO",IF((G9-H8)>=0,G9-H8,0),"SOLD")) -> 684 | J9: 1891 | K9: =IF(OR(K8="---",N8="Yes"),"---",IF(N9="YES","SOLD",IF(G9-H8<0,G9-H8,0))) -> 0 | L9: 0 | M9: =IF(OR(M8="---",N8="Yes"),"---",IF(N9="Yes",G9-H8,IF(G9-$E$6<0,G9-$E$6,0))) -> 0 | N9: NO | O9: FALSE
A10: =G2 -> 2007 | B10: 76.64 | C10: 76.64 | D10: 3507 | E10: 3507 | F10: 3300 | G10: 3300 | H10: =IF(OR(H9="---",N9="Yes"),"---",IF(G10>=E10,G10,IF(G10<E10,IF(G10<$E$6,$E$6,G10),"ERROR"))) -> 3300 | I10: =IF(OR(I9="---",N9="Yes"),"---",IF(N10="NO",IF((G10-H9)>=0,G10-H9,0),"SOLD")) -> 0 | J10: 1684 | K10: =IF(OR(K9="---",N9="Yes"),"---",IF(N10="YES","SOLD",IF(G10-H9<0,G10-H9,0))) -> -207 | L10: -207 | M10: =IF(OR(M9="---",N9="Yes"),"---",IF(N10="Yes",G10-H9,IF(G10-$E$6<0,G10-$E$6,0))) -> 0 | N10: NO | O10: FALSE
A11: =H2 -> 2008 | B11: 78.91 | C11: 78.91 | D11: 3300 | E11: 3300 | F11: 2500 | G11: 2500 | H11: =IF(OR(H10="---",N10="Yes"),"---",IF(G11>=E11,G11,IF(G11<E11,IF(G11<$E$6,$E$6,G11),"ERROR"))) -> 2500 | I11: =IF(OR(I10="---",N10="Yes"),"---",IF(N11="NO",IF((G11-H10)>=0,G11-H10,0),"SOLD")) -> 0 | J11: 884 | K11: =IF(OR(K10="---",N10="Yes"),"---",IF(N11="YES","SOLD",IF(G11-H10<0,G11-H10,0))) -> -800 | L11: -800 | M11: =IF(OR(M10="---",N10="Yes"),"---",IF(N11="Yes",G11-H10,IF(G11-$E$6<0,G11-$E$6,0))) -> 0 | N11: NO | O11: FALSE
A12: =I2 -> 2009 | B12: 74.58 | C12: 74.58 | D12: 2500 | E12: 2500 | F12: 2600 | G12: 2600 | H12: =IF(OR(H11="---",N11="Yes"),"---",IF(G12>=E12,G12,IF(G12<E12,IF(G12<$E$6,$E$6,G12),"ERROR"))) -> 2600 | I12: =IF(OR(I11="---",N11="Yes"),"---",IF(N12="NO",IF((G12-H11)>=0,G12-H11,0),"SOLD")) -> 100 | J12: 984 | K12: =IF(OR(K11="---",N11="Yes"),"---",IF(N12="YES","SOLD",IF(G12-H11<0,G12-H11,0))) -> 0 | L12: 0 | M12: =IF(OR(M11="---",N11="Yes"),"---",IF(N12="Yes",G12-H11,IF(G12-$E$6<0,G12-$E$6,0))) -> 0 | N12: NO | O12: FALSE
A13: =J2 -> 2010 | B13: 89.39 | C13: 89.39 | D13: 2600 | E13: 2600 | F13: 800 | G13: 800 | H13: =IF(OR(H12="---",N12="Yes"),"---",IF(G13>=E13,G13,IF(G13<E13,IF(G13<$E$6,$E$6,G13),"ERROR"))) -> 1616 | I13: =IF(OR(I12="---",N12="Yes"),"---",IF(N13="NO",IF((G13-H12)>=0,G13-H12,0),"SOLD")) -> 0 | J13: 0 | K13: =IF(OR(K12="---",N12="Yes"),"---",IF(N13="YES","SOLD",IF(G13-H12<0,G13-H12,0))) -> -1800 | L13: -984 | M13: =IF(OR(M12="---",N12="Yes"),"---",IF(N13="Yes",G13-H12,IF(G13-$E$6<0,G13-$E$6,0))) -> -816 | N13: NO | O13: FALSE
A14: =K2 -> 2011 | B14: 90.39 | C14: 90.39 | D14: 800 | E14: 800 | F14: 801 | G14: 801 | H14: =IF(OR(H13="---",N13="Yes"),"---",IF(G14>=E14,G14,IF(G14<E14,IF(G14<$E$6,$E$6,G14),"ERROR"))) -> 801 | I14: =IF(OR(I13="---",N13="Yes"),"---",IF(N14="NO",IF((G14-H13)>=0,G14-H13,0),"SOLD")) -> 0 | J14: 0 | K14: =IF(OR(K13="---",N13="Yes"),"---",IF(N14="YES","SOLD",IF(G14-H13<0,G14-H13,0))) -> -815 | L14: 0 | M14: =IF(OR(M13="---",N13="Yes"),"---",IF(N14="Yes",G14-H13,IF(G14-$E$6<0,G14-$E$6,0))) -> -815 | N14: NO | O14: FALSE
A15: =L2 -> 2012 | B15: 91.39 | C15: 91.39 | D15: 801 | E15: 801 | F15: 802 | G15: 802 | H15: =IF(OR(H14="---",N14="Yes"),"---",IF(G15>=E15,G15,IF(G15<E15,IF(G15<$E$6,$E$6,G15),"ERROR"))) -> 802 | I15: =IF(OR(I14="---",N14="Yes"),"---",IF(N15="NO",IF((G15-H14)>=0,G15-H14,0),"SOLD")) -> 1 | J15: 1 | K15: =IF(OR(K14="---",N14="Yes"),"---",IF(N15="YES","SOLD",IF(G15-H14<0,G15-H14,0))) -> 0 | L15: 0 | M15: =IF(OR(M14="---",N14="Yes"),"---",IF(N15="Yes",G15-H14,IF(G15-$E$6<0,G15-$E$6,0))) -> -814 | N15: NO | O15: FALSE
A16: =M2 -> 2013 | B16: 92.39 | C16: 92.39 | D16: 802 | E16: 802 | F16: 803 | G16: 803 | H16: =IF(OR(H15="---",N15="Yes"),"---",IF(G16>=E16,G16,IF(G16<E16,IF(G16<$E$6,$E$6,G16),"ERROR"))) -> 803 | I16: =IF(OR(I15="---",N15="Yes"),"---",IF(N16="NO",IF((G16-H15)>=0,G16-H15,0),"SOLD")) -> 1 | J16: 2 | K16: =IF(OR(K15="---",N15="Yes"),"---",IF(N16="YES","SOLD",IF(G16-H15<0,G16-H15,0))) -> 0 | L16: 0 | M16: =IF(OR(M15="---",N15="Yes"),"---",IF(N16="Yes",G16-H15,IF(G16-$E$6<0,G16-$E$6,0))) -> -813 | N16: NO | O16: FALSE
A17: =N2 -> 2014 | B17: 93.39 | C17: 93.39 | D17: 803 | E17: 803 | F17: 804 | G17: 804 | H17: =IF(OR(H16="---",N16="Yes"),"---",IF(G17>=E17,G17,IF(G17<E17,IF(G17<$E$6,$E$6,G17),"ERROR"))) -> 804 | I17: =IF(OR(I16="---",N16="Yes"),"---",IF(N17="NO",IF((G17-H16)>=0,G17-H16,0),"SOLD")) -> 1 | J17: 3 | K17: =IF(OR(K16="---",N16="Yes"),"---",IF(N17="YES","SOLD",IF(G17-H16<0,G17-H16,0))) -> 0 | L17: 0 | M17: =IF(OR(M16="---",N16="Yes"),"---",IF(N17="Yes",G17-H16,IF(G17-$E$6<0,G17-$E$6,0))) -> -812 | N17: NO | O17: FALSE
A18: =O2 -> 2015 | B18: 94.39 | C18: 94.39 | D18: 804 | E18: 804 | F18: 805 | G18: 805 | H18: =IF(OR(H17="---",N17="Yes"),"---",IF(G18>=E18,G18,IF(G18<E18,IF(G18<$E$6,$E$6,G18),"ERROR"))) -> 805 | I18: =IF(OR(I17="---",N17="Yes"),"---",IF(N18="NO",IF((G18-H17)>=0,G18-H17,0),"SOLD")) -> 1 | J18: 4 | K18: =IF(OR(K17="---",N17="Yes"),"---",IF(N18="YES","SOLD",IF(G18-H17<0,G18-H17,0))) -> 0 | L18: 0 | M18: =IF(OR(M17="---",N17="Yes"),"---",IF(N18="Yes",G18-H17,IF(G18-$E$6<0,G18-$E$6,0))) -> -811 | N18: NO | O18: FALSE
A19: =P2 -> 2016 | B19: 95.39 | C19: 95.39 | D19: 805 | E19: 805 | F19: 806 | G19: 806 | H19: =IF(OR(H18="---",N18="Yes"),"---",IF(G19>=E19,G19,IF(G19<E19,IF(G19<$E$6,$E$6,G19),"ERROR"))) -> 806 | I19: =IF(OR(I18="---",N18="Yes"),"---",IF(N19="NO",IF((G19-H18)>=0,G19-H18,0),"SOLD")) -> 1 | J19: 5 | K19: =IF(OR(K18="---",N18="Yes"),"---",IF(N19="YES","SOLD",IF(G19-H18<0,G19-H18,0))) -> 0 | L19: 0 | M19: =IF(OR(M18="---",N18="Yes"),"---",IF(N19="Yes",G19-H18,IF(G19-$E$6<0,G19-$E$6,0))) -> -810 | N19: NO | O19: FALSE
A20: =Q2 -> 2017 | B20: 96.39 | C20: 96.39 | D20: 806 | E20: 806 | F20: 807 | G20: 807 | H20: =IF(OR(H19="---",N19="Yes"),"---",IF(G20>=E20,G20,IF(G20<E20,IF(G20<$E$6,$E$6,G20),"ERROR"))) -> 807 | I20: =IF(OR(I19="---",N19="Yes"),"---",IF(N20="NO",IF((G20-H19)>=0,G20-H19,0),"SOLD")) -> 1 | J20: 6 | K20: =IF(OR(K19="---",N19="Yes"),"---",IF(N20="YES","SOLD",IF(G20-H19<0,G20-H19,0))) -> 0 | L20: 0 | M20: =IF(OR(M19="---",N19="Yes"),"---",IF(N20="Yes",G20-H19,IF(G20-$E$6<0,G20-$E$6,0))) -> -809 | N20: NO | O20: FALSE
A21: =R2 -> 2018 | B21: 97.39 | C21: 97.39 | D21: 807 | E21: 807 | F21: 808 | G21: 808 | H21: =IF(OR(H20="---",N20="Yes"),"---",IF(G21>=E21,G21,IF(G21<E21,IF(G21<$E$6,$E$6,G21),"ERROR"))) -> 808 | I21: =IF(OR(I20="---",N20="Yes"),"---",IF(N21="NO",IF((G21-H20)>=0,G21-H20,0),"SOLD")) -> 1 | J21: 7 | K21: =IF(OR(K20="---",N20="Yes"),"---",IF(N21="YES","SOLD",IF(G21-H20<0,G21-H20,0))) -> 0 | L21: 0 | M21: =IF(OR(M20="---",N20="Yes"),"---",IF(N21="Yes",G21-H20,IF(G21-$E$6<0,G21-$E$6,0))) -> -808 | N21: NO | O21: FALSE
A22: =S2 -> 2019 | B22: 98.39 | C22: 98.39 | D22: 808 | E22: 808 | F22: 809 | G22: 809 | H22: =IF(OR(H21="---",N21="Yes"),"---",IF(G22>=E22,G22,IF(G22<E22,IF(G22<$E$6,$E$6,G22),"ERROR"))) -> 809 | I22: =IF(OR(I21="---",N21="Yes"),"---",IF(N22="NO",IF((G22-H21)>=0,G22-H21,0),"SOLD")) -> 1 | J22: 8 | K22: =IF(OR(K21="---",N21="Yes"),"---",IF(N22="YES","SOLD",IF(G22-H21<0,G22-H21,0))) -> 0 | L22: 0 | M22: =IF(OR(M21="---",N21="Yes"),"---",IF(N22="Yes",G22-H21,IF(G22-$E$6<0,G22-$E$6,0))) -> -807 | N22: NO | O22: FALSE
A23: =T2 -> 2020 | B23: 99.39 | C23: 99.39 | D23: 809 | E23: 809 | F23: 810 | G23: 810 | H23: =IF(OR(H22="---",N22="Yes"),"---",IF(G23>=E23,G23,IF(G23<E23,IF(G23<$E$6,$E$6,G23),"ERROR"))) -> 810 | I23: =IF(OR(I22="---",N22="Yes"),"---",IF(N23="NO",IF((G23-H22)>=0,G23-H22,0),"SOLD")) -> 1 | J23: 9 | K23: =IF(OR(K22="---",N22="Yes"),"---",IF(N23="YES","SOLD",IF(G23-H22<0,G23-H22,0))) -> 0 | L23: 0 | M23: =IF(OR(M22="---",N22="Yes"),"---",IF(N23="Yes",G23-H22,IF(G23-$E$6<0,G23-$E$6,0))) -> -806 | N23: NO | O23: FALSE
A25: Year | B25: Highest NAV Per Unit During Calendar Year (01-01-xx to 12-31-xx) | C25: Highest Value of Fund in Calendar Year (01-01-xx to 12-31-xx) | D25: NAV Per Unit on Opening of First Business Day of Current Year (Jan) | E25: Total Nav on First Business Day of Current Year | F25: NAV (FMV) Per Unit on at Close of Last Business Day of Year, or SALE PRICE per UNIT (Dec) | G25: Total Nav Last business day of Year | H25: Adjusted Basis at EOY (or Sale Price) | I25: Section 1296 MTM (Mark to Market) Gain for the Tax Year | J25: Cumulative Net (MTM) Gains | K25: Unrealized Loss for year | L25: Deductible Loss for Year (Unreversed Inclusion) (Ordinary Loss Allowed Up to Prior MTM Gain) | M25: Potential Capital Gain/Loss (if any) | N25: Mutual Fund Sold?
A26: =C2 -> 2003 | B26: =B6/$C$3 -> 0 | C26: =C6/$C$3 -> 0 | D26: =D6/$C$3 -> 35.47749726 | E26: =D26*$C$1 -> 35.47749726 | F26: =F6/$C$3 -> 72.25027442 | G26: =F26*$C$1 -> 72.25027442 | H26: =IF(G26>=E26,G26,IF(G26<E26,IF(G26<$E$26,$E$26,G26),"ERROR")) -> 72.25027442 | I26: =IF(N26="NO",IF((G26-E26)>=0,G26-E26,0),"SOLD") -> 36.77277717 | J26: =IF(N26="Yes","SOLD",I26) -> 36.77277717 | K26: =IF(N26="Yes","SOLD",IF(G26-E26<0,G26-E26,0)) -> 0 | L26: =IF(N26="Yes","SOLD",IF(-K26>J26,-J26,K26)) -> 0 | M26: =IF(N26="Yes",H26-E26,IF(G26-$E$26<0,G26-$E$26,0)) -> 0 | N26: =N6 -> NO
A27: =D2 -> 2004 | B27: =B7/$D$3 -> 0.6436330021 | C27: =C7/$D$3 -> 0.6436330021 | D27: =D7/$D$3 -> 76.05731454 | E27: =D27*$C$1 -> 76.05731454 | F27: =F7/$D$3 -> 101.4328634 | G27: 101.4328634 | H27: =IF(OR(H26="---",N26="Yes"),"---",IF(G27>=E27,G27,IF(G27<E27,IF(G27<$E$26,$E$26,G27),"ERROR"))) -> 101.4328634 | I27: =IF(OR(I26="---",N26="Yes"),"---",IF(N27="NO",IF((G27-H26)>=0,G27-H26,0),"SOLD")) -> 29.18258899 | J27: =IF(OR(J26="---",N26="Yes"),"---",IF(N27="No",J26+I27+L27,"CUM NET MTM IN ADJ BASIS")) -> 65.95536616 | K27: =IF(OR(K26="---",N26="Yes"),"---",IF(N27="YES","SOLD",IF(G27-H26<0,G27-H26,0))) -> 0 | L27: =IF(OR(L26="---",N26="Yes"),"---",IF(N27="Yes","SOLD",IF(-K27>J26,-J26,K27))) -> 0 | M27: =IF(OR(M26="---",N26="Yes"),"---",IF(N27="Yes",G27-H26,IF(G27-$E$26<0,G27-$E$26,0))) -> 0 | N27: =N7 -> NO
A28: =E2 -> 2005 | B28: =B8/$E$3 -> 0.8131256952 | C28: =C8/$E$3 -> 0.8131256952 | D28: =D8/$E$3 -> 97.64182425 | E28: 97.64182425 | F28: =F8/$E$3 -> 62.80311457 | G28: 62.80311457 | H28: =IF(OR(H27="---",N27="Yes"),"---",IF(G28>=E28,G28,IF(G28<E28,IF(G28<$E$26,$E$26,G28),"ERROR"))) -> 62.80311457 | I28: =IF(OR(I27="---",N27="Yes"),"---",IF(N28="NO",IF((G28-H27)>=0,G28-H27,0),"SOLD")) -> 0 | J28: =IF(OR(J27="---",N27="Yes"),"---",IF(N28="No",J27+I28+L28,"CUM NET MTM IN ADJ BASIS")) -> 27.32561732 | K28: =IF(OR(K27="---",N27="Yes"),"---",IF(N28="YES","SOLD",IF(G28-H27<0,G28-H27,0))) -> -38.62974884 | L28: =IF(OR(L27="---",N27="Yes"),"---",IF(N28="Yes","SOLD",IF(-K28>J27,-J27,K28))) -> -38.62974884 | M28: =IF(OR(M27="---",N27="Yes"),"---",IF(N28="Yes",G28-H27,IF(G28-$E$26<0,G28-$E$26,0))) -> 0 | N28: NO
A29: =F2 -> 2006 | B29: =B9/$F$3 -> 1.123781455 | C29: =C9/$F$3 -> 1.123781455 | D29: =D9/$F$3 -> 63.99909318 | E29: 63.99909318 | F29: =F9/$F$3 -> 79.505781 | G29: 79.505781 | H29: =IF(OR(H28="---",N28="Yes"),"---",IF(G29>=E29,G29,IF(G29<E29,IF(G29<$E$26,$E$26,G29),"ERROR"))) -> 79.505781 | I29: =IF(OR(I28="---",N28="Yes"),"---",IF(N29="NO",IF((G29-H28)>=0,G29-H28,0),"SOLD")) -> 16.70266643 | J29: 44.02828375 | K29: =IF(OR(K28="---",N28="Yes"),"---",IF(N29="YES","SOLD",IF(G29-H28<0,G29-H28,0))) -> 0 | L29: 0 | M29: =IF(OR(M28="---",N28="Yes"),"---",IF(N29="Yes",G29-H28,IF(G29-$E$26<0,G29-$E$26,0))) -> 0 | N29: NO
A30: =G2 -> 2007 | B30: =B10/$G$3 -> 1.946659893 | C30: =C10/$G$3 -> 1.946659893 | D30: =D10/$G$3 -> 89.07797816 | E30: 89.07797816 | F30: =F10/$G$3 -> 83.82016764 | G30: 83.82016764 | H30: =IF(OR(H29="---",N29="Yes"),"---",IF(G30>=E30,G30,IF(G30<E30,IF(G30<$E$26,$E$26,G30),"ERROR"))) -> 83.82016764 | I30: =IF(OR(I29="---",N29="Yes"),"---",IF(N30="NO",IF((G30-H29)>=0,G30-H29,0),"SOLD")) -> 4.314386638 | J30: 48.34267038 | K30: =IF(OR(K29="---",N29="Yes"),"---",IF(N30="YES","SOLD",IF(G30-H29<0,G30-H29,0))) -> 0 | L30: 0 | M30: =IF(OR(M29="---",N29="Yes"),"---",IF(N30="Yes",G30-H29,IF(G30-$E$26<0,G30-$E$26,0))) -> 0 | N30: NO
A31: =H2 -> 2008 | B31: =B11/$H$3 -> 1.624331 | C31: =C11/$H$3 -> 1.624331 | D31: =D11/$H$3 -> 67.92918897 | E31: 67.92918897 | F31: =F11/$H$3 -> 51.46150679 | G31: 51.46150679 | H31: =IF(OR(H30="---",N30="Yes"),"---",IF(G31>=E31,G31,IF(G31<E31,IF(G31<$E$26,$E$26,G31),"ERROR"))) -> 51.46150679 | I31: =IF(OR(I30="---",N30="Yes"),"---",IF(N31="NO",IF((G31-H30)>=0,G31-H30,0),"SOLD")) -> 0 | J31: 15.98400954 | K31: =IF(OR(K30="---",N30="Yes"),"---",IF(N31="YES","SOLD",IF(G31-H30<0,G31-H30,0))) -> -32.35866085 | L31: -32.35866085 | M31: =IF(OR(M30="---",N30="Yes"),"---",IF(N31="Yes",G31-H30,IF(G31-$E$26<0,G31-$E$26,0))) -> 0 | N31: NO
A32: =I2 -> 2009 | B32: =B12/$I$3 -> 1.606981254 | C32: =C12/$I$3 -> 1.606981254 | D32: =D12/$I$3 -> 53.86770093 | E32: 53.86770093 | F32: =F12/$I$3 -> 56.02240896 | G32: 56.02240896 | H32: =IF(OR(H31="---",N31="Yes"),"---",IF(G32>=E32,G32,IF(G32<E32,IF(G32<$E$26,$E$26,G32),"ERROR"))) -> 56.02240896 | I32: =IF(OR(I31="---",N31="Yes"),"---",IF(N32="NO",IF((G32-H31)>=0,G32-H31,0),"SOLD")) -> 4.560902171 | J32: 20.54491171 | K32: =IF(OR(K31="---",N31="Yes"),"---",IF(N32="YES","SOLD",IF(G32-H31<0,G32-H31,0))) -> 0 | L32: 0 | M32: =IF(OR(M31="---",N31="Yes"),"---",IF(N32="Yes",G32-H31,IF(G32-$E$26<0,G32-$E$26,0))) -> 0 | N32: NO
A33: =J2 -> 2010 | B33: =B13/$J$3 -> 1.999776286 | C33: =C13/$J$3 -> 1.999776286 | D33: =D13/$J$3 -> 58.1655481 | E33: 58.1655481 | F33: =F13/$J$3 -> 17.89709172 | G33: 17.89709172 | H33: =IF(OR(H32="---",N32="Yes"),"---",IF(G33>=E33,G33,IF(G33<E33,IF(G33<$E$26,$E$26,G33),"ERROR"))) -> 35.47749726 | I33: =IF(OR(I32="---",N32="Yes"),"---",IF(N33="NO",IF((G33-H32)>=0,G33-H32,0),"SOLD")) -> 0 | J33: 0 | K33: =IF(OR(K32="---",N32="Yes"),"---",IF(N33="YES","SOLD",IF(G33-H32<0,G33-H32,0))) -> -38.12531724 | L33: -20.54491171 | M33: =IF(OR(M32="---",N32="Yes"),"---",IF(N33="Yes",G33-H32,IF(G33-$E$26<0,G33-$E$26,0))) -> -17.58040553 | N33: NO
A34: =K2 -> 2011 | B34: =B14/$K$3 -> 1.703510989 | C34: =C14/$K$3 -> 1.703510989 | D34: =D14/$K$3 -> 15.0769863 | E34: 15.0769863 | F34: =F14/$K$3 -> 15.09583253 | G34: 15.09583253 | H34: =IF(OR(H33="---",N33="Yes"),"---",IF(G34>=E34,G34,IF(G34<E34,IF(G34<$E$26,$E$26,G34),"ERROR"))) -> 15.09583253 | I34: =IF(OR(I33="---",N33="Yes"),"---",IF(N34="NO",IF((G34-H33)>=0,G34-H33,0),"SOLD")) -> 0 | J34: 0 | K34: =IF(OR(K33="---",N33="Yes"),"---",IF(N34="YES","SOLD",IF(G34-H33<0,G34-H33,0))) -> -20.38166473 | L34: 0 | M34: =IF(OR(M33="---",N33="Yes"),"---",IF(N34="Yes",G34-H33,IF(G34-$E$26<0,G34-$E$26,0))) -> -20.38166473 | N34: NO
A35: =L2 -> 2012 | B35: =B15/$L$3 -> 1.666150936 | C35: =C15/$L$3 -> 1.666150936 | D35: =D15/$L$3 -> 14.60320494 | E35: 14.60320494 | F35: =F15/$L$3 -> 14.62143616 | G35: 14.62143616 | H35: =IF(OR(H34="---",N34="Yes"),"---",IF(G35>=E35,G35,IF(G35<E35,IF(G35<$E$26,$E$26,G35),"ERROR"))) -> 14.62143616 | I35: =IF(OR(I34="---",N34="Yes"),"---",IF(N35="NO",IF((G35-H34)>=0,G35-H34,0),"SOLD")) -> 0 | J35: 0 | K35: =IF(OR(K34="---",N34="Yes"),"---",IF(N35="YES","SOLD",IF(G35-H34<0,G35-H34,0))) -> -0.4743963694 | L35: 0 | M35: =IF(OR(M34="---",N34="Yes"),"---",IF(N35="Yes",G35-H34,IF(G35-$E$26<0,G35-$E$26,0))) -> -20.8560611 | N35: NO
A36: =M2 -> 2013 | B36: =B16/$M$3 -> 1.493557809 | C36: =C16/$M$3 -> 1.493557809 | D36: =D16/$M$3 -> 12.96496767 | E36: 12.96496767 | F36: =F16/$M$3 -> 12.98113347 | G36: 12.98113347 | H36: =IF(OR(H35="---",N35="Yes"),"---",IF(G36>=E36,G36,IF(G36<E36,IF(G36<$E$26,$E$26,G36),"ERROR"))) -> 12.98113347 | I36: =IF(OR(I35="---",N35="Yes"),"---",IF(N36="NO",IF((G36-H35)>=0,G36-H35,0),"SOLD")) -> 0 | J36: 0 | K36: =IF(OR(K35="---",N35="Yes"),"---",IF(N36="YES","SOLD",IF(G36-H35<0,G36-H35,0))) -> -1.640302693 | L36: 0 | M36: =IF(OR(M35="---",N35="Yes"),"---",IF(N36="Yes",G36-H35,IF(G36-$E$26<0,G36-$E$26,0))) -> -22.49636379 | N36: NO
A37: =N2 -> 2014 | B37: =B17/$N$3 -> 1.436769231 | C37: =C17/$N$3 -> 1.436769231 | D37: =D17/$N$3 -> 12.35384615 | E37: 12.35384615 | F37: =F17/$N$3 -> 12.36923077 | G37: 12.36923077 | H37: =IF(OR(H36="---",N36="Yes"),"---",IF(G37>=E37,G37,IF(G37<E37,IF(G37<$E$26,$E$26,G37),"ERROR"))) -> 12.36923077 | I37: =IF(OR(I36="---",N36="Yes"),"---",IF(N37="NO",IF((G37-H36)>=0,G37-H36,0),"SOLD")) -> 0 | J37: 0 | K37: =IF(OR(K36="---",N36="Yes"),"---",IF(N37="YES","SOLD",IF(G37-H36<0,G37-H36,0))) -> -0.6119026971 | L37: 0 | M37: =IF(OR(M36="---",N36="Yes"),"---",IF(N37="Yes",G37-H36,IF(G37-$E$26<0,G37-$E$26,0))) -> -23.10826649 | N37: NO
A38: =O2 -> 2015 | B38: =B18/$O$3 -> 1.258533333 | C38: =C18/$O$3 -> 1.258533333 | D38: =D18/$O$3 -> 10.72 | E38: 10.72 | F38: =F18/$O$3 -> 10.73333333 | G38: 10.73333333 | H38: =IF(OR(H37="---",N37="Yes"),"---",IF(G38>=E38,G38,IF(G38<E38,IF(G38<$E$26,$E$26,G38),"ERROR"))) -> 10.73333333 | I38: =IF(OR(I37="---",N37="Yes"),"---",IF(N38="NO",IF((G38-H37)>=0,G38-H37,0),"SOLD")) -> 0 | J38: 0 | K38: =IF(OR(K37="---",N37="Yes"),"---",IF(N38="YES","SOLD",IF(G38-H37<0,G38-H37,0))) -> -1.635897436 | L38: 0 | M38: =IF(OR(M37="---",N37="Yes"),"---",IF(N38="Yes",G38-H37,IF(G38-$E$26<0,G38-$E$26,0))) -> -24.74416392 | N38: NO
A39: =P2 -> 2016 | B39: =B19/$P$3 -> 1.122235294 | C39: =C19/$P$3 -> 1.122235294 | D39: =D19/$P$3 -> 9.470588235 | E39: 9.470588235 | F39: =F19/$P$3 -> 9.482352941 | G39: 9.482352941 | H39: =IF(OR(H38="---",N38="Yes"),"---",IF(G39>=E39,G39,IF(G39<E39,IF(G39<$E$26,$E$26,G39),"ERROR"))) -> 9.482352941 | I39: =IF(OR(I38="---",N38="Yes"),"---",IF(N39="NO",IF((G39-H38)>=0,G39-H38,0),"SOLD")) -> 0 | J39: 0 | K39: =IF(OR(K38="---",N38="Yes"),"---",IF(N39="YES","SOLD",IF(G39-H38<0,G39-H38,0))) -> -1.250980392 | L39: 0 | M39: =IF(OR(M38="---",N38="Yes"),"---",IF(N39="Yes",G39-H38,IF(G39-$E$26<0,G39-$E$26,0))) -> -25.99514431 | N39: NO
A40: =Q2 -> 2017 | B40: =B20/$Q$3 -> 1.014631579 | C40: =C20/$Q$3 -> 1.014631579 | D40: =D20/$Q$3 -> 8.484210526 | E40: 8.484210526 | F40: =F20/$Q$3 -> 8.494736842 | G40: 8.494736842 | H40: =IF(OR(H39="---",N39="Yes"),"---",IF(G40>=E40,G40,IF(G40<E40,IF(G40<$E$26,$E$26,G40),"ERROR"))) -> 8.494736842 | I40: =IF(OR(I39="---",N39="Yes"),"---",IF(N40="NO",IF((G40-H39)>=0,G40-H39,0),"SOLD")) -> 0 | J40: 0 | K40: =IF(OR(K39="---",N39="Yes"),"---",IF(N40="YES","SOLD",IF(G40-H39<0,G40-H39,0))) -> -0.9876160991 | L40: 0 | M40: =IF(OR(M39="---",N39="Yes"),"---",IF(N40="Yes",G40-H39,IF(G40-$E$26<0,G40-$E$26,0))) -> -26.98276041 | N40: NO
A41: =R2 -> 2018 | B41: =B21/$R$3 -> 0.9275238095 | C41: =C21/$R$3 -> 0.9275238095 | D41: =D21/$R$3 -> 7.685714286 | E41: 7.685714286 | F41: =F21/$R$3 -> 7.695238095 | G41: 7.695238095 | H41: =IF(OR(H40="---",N40="Yes"),"---",IF(G41>=E41,G41,IF(G41<E41,IF(G41<$E$26,$E$26,G41),"ERROR"))) -> 7.695238095 | I41: =IF(OR(I40="---",N40="Yes"),"---",IF(N41="NO",IF((G41-H40)>=0,G41-H40,0),"SOLD")) -> 0 | J41: 0 | K41: =IF(OR(K40="---",N40="Yes"),"---",IF(N41="YES","SOLD",IF(G41-H40<0,G41-H40,0))) -> -0.7994987469 | L41: 0 | M41: =IF(OR(M40="---",N40="Yes"),"---",IF(N41="Yes",G41-H40,IF(G41-$E$26<0,G41-$E$26,0))) -> -27.78225916 | N41: NO
A42: =S2 -> 2019 | B42: =B22/$S$3 -> 0.8555652174 | C42: =C22/$S$3 -> 0.8555652174 | D42: =D22/$S$3 -> 7.026086957 | E42: 7.026086957 | F42: =F22/$S$3 -> 7.034782609 | G42: 7.034782609 | H42: =IF(OR(H41="---",N41="Yes"),"---",IF(G42>=E42,G42,IF(G42<E42,IF(G42<$E$26,$E$26,G42),"ERROR"))) -> 7.034782609 | I42: =IF(OR(I41="---",N41="Yes"),"---",IF(N42="NO",IF((G42-H41)>=0,G42-H41,0),"SOLD")) -> 0 | J42: 0 | K42: =IF(OR(K41="---",N41="Yes"),"---",IF(N42="YES","SOLD",IF(G42-H41<0,G42-H41,0))) -> -0.6604554865 | L42: 0 | M42: =IF(OR(M41="---",N41="Yes"),"---",IF(N42="Yes",G42-H41,IF(G42-$E$26<0,G42-$E$26,0))) -> -28.44271465 | N42: NO
A43: =T2 -> 2020 | B43: =B23/$T$3 -> 0.79512 | C43: =C23/$T$3 -> 0.79512 | D43: =D23/$T$3 -> 6.472 | E43: =D43*$C$1 -> 6.472 | F43: =F23/$T$3 -> 6.48 | G43: 6.48 | H43: =IF(OR(H42="---",N42="Yes"),"---",IF(G43>=E43,G43,IF(G43<E43,IF(G43<$E$26,$E$26,G43),"ERROR"))) -> 6.48 | I43: =IF(OR(I42="---",N42="Yes"),"---",IF(N43="NO",IF((G43-H42)>=0,G43-H42,0),"SOLD")) -> 0 | J43: 0 | K43: =IF(OR(K42="---",N42="Yes"),"---",IF(N43="YES","SOLD",IF(G43-H42<0,G43-H42,0))) -> -0.5547826087 | L43: 0 | M43: =IF(OR(M42="---",N42="Yes"),"---",IF(N43="Yes",G43-H42,IF(G43-$E$26<0,G43-$E$26,0))) -> -28.99749726 | N43: NO
A46: FOREIGN FUND NAME (as on moneycontrol.com site) | B46: FOREIGN FUND SYMBOL (as on moneycontrol.com site) | C46: FUND'S REGISTERED ADDRESS (as on moneycontrol.com's site) | E46: FOLIO OR ACCOUNT NUMBER IF APPLICABLE | F46: IF FUND NOT HELD DIRECTLY, GIVE BROKERAGE NAME WHERE YOU HOLD IT | H46: IF YOU HAVE IT IN BROKERAGE, THEN GIVE BROKERAGE FULL ADDRESS | J46: Date which Mutual Fund Account Was Bought, OR if held in Brokerage, date which Brokerage Account was Opened | K46: Date which Mutual Fund Account Was Sold, OR if held in Brokerage, date which Brokerage Account was Closed
A47: Mutual Fund Name (Enter in A47)

Sheet Mutual Fund 7
B1: Units at Beginning of Period | C1: 1 | D1: DEFAULT EXCHANGE RATES ARE INDIAN RUPEES TO ONE DOLLAR, AS PER WWW.X-RATES.COM ON 12/31 OF EACH YEAR. CHANGE ACCORDINGLY FOR YOUR COUNTRY. ALL NUMERICAL FIELDS IN BLUE ARE CHANGEABLE BY YOU. FUTURE YEARS HAVE DUMMY VALUES. IF YOUR FUND HAS DIVIDENDS WHICH ARE REINVESTED, TREAT EACH BATCH OF UNITS NEWLY BOUGHT BY REINVESTED DIVIDENDS AS A NEW MUTUAL FUND TO PROPERLY KEEP TRACK OF THE COST BASIS OF THOSE REINVESTED DIVIDENDS. FILL FUND NAME AND STUFF IN ROW "A" AT BOTTOM OF SHEET.
C2: 2003 | D2: 2004 | E2: 2005 | F2: 2006 | G2: 2007 | H2: 2008 | I2: 2009 | J2: 2010 | K2: 2011 | L2: 2012 | M2: 2013 | N2: 2014 | O2: 2015 | P2: 2016 | Q2: 2017 | R2: 2018 | S2: 2019 | T2: 2020
A3: =A47 -> Mutual Fund Name (Enter in A47) | B3: Exc Rate 12/31 | C3: 45.55 | D3: 43.27 | E3: 44.95 | F3: 44.11 | G3: 39.37 | H3: 48.58 | I3: 46.41 | J3: 44.7 | K3: 53.061002 | L3: 54.850973 | M3: 61.859005 | N3: 65 | O3: 75 | P3: 85 | Q3: 95 | R3: 105 | S3: 115 | T3: 125
A5: Year | B5: Highest NAV Per Unit During Calendar Year (01-01-xx to 12-31-xx) | C5: Highest Value of Fund in Calendar Year (01-01-xx to 12-31-xx) | D5: NAV Per Unit on Opening of First Business Day of Current Year (Jan) | E5: Total Nav on First Business Day of Current Year | F5: NAV (FMV) Per Unit on at Close of Last Business Day of Year, or SALE PRICE per UNIT (Dec) | G5: Total Nav Last business day of Year | H5: Adjusted Basis at EOY (or Sale Price) | I5: Section 1296 MTM (Mark to Market) Gain for the Tax Year | J5: Cumulative Net (MTM) Gains (afer unrealized loss for year deducted) | K5: Unrealized Loss for year | L5: Deductible Loss for Year (Unreversed Inclusion) (Ordinary Loss Allowed Up to Prior MTM Gain) | M5: Potential Capital Gain/Loss (if any) | N5: Mutual Fund Sold?
A6: =C2 -> 2003 | B6: 0 | C6: =B6*$C$1 -> 0 | D6: 1616 | E6: =D6*$C$1 -> 1616 | F6: 3291 | G6: =F6*$C$1 -> 3291 | H6: =IF(G6>=E6,G6,IF(G6<E6,IF(G6<$E$6,$E$6,G6),"ERROR")) -> 3291 | I6: =IF(N6="NO",IF((G6-E6)>=0,G6-E6,0),"SOLD") -> 1675 | J6: =IF(N6="Yes","SOLD",I6) -> 1675 | K6: =IF(N6="Yes","SOLD",IF(G6-E6<0,G6-E6,0)) -> 0 | L6: =IF(N6="Yes","SOLD",IF(-K6>J6,-J6,K6)) -> 0 | M6: =IF(N6="Yes",H6-E6,IF(G6-$E$6<0,G6-$E$6,0)) -> 0 | N6: =IF(O6=FALSE,"NO",IF(O6=TRUE,"YES","NO")) -> NO | O6: FALSE
A7: =D2 -> 2004 | B7: 27.85 | C7: =B7*$C$1 -> 27.85 | D7: =G6 -> 3291 | E7: =D7*$C$1 -> 3291 | F7: 4389 | G7: =F7*$C$1 -> 4389 | H7: =IF(OR(H6="---",N6="Yes"),"---",IF(G7>=E7,G7,IF(G7<E7,IF(G7<$E$6,$E$6,G7),"ERROR"))) -> 4389 | I7: =IF(OR(I6="---",N6="Yes"),"---",IF(N7="NO",IF((G7-H6)>=0,G7-H6,0),"SOLD")) -> 1098 | J7: =IF(OR(J6="---",N6="Yes"),"---",IF(N7="No",J6+I7+L7,"CUM NET MTM IN ADJ BASIS")) -> 2773 | K7: =IF(OR(K6="---",N6="Yes"),"---",IF(N7="YES","SOLD",IF(G7-H6<0,G7-H6,0))) -> 0 | L7: =IF(OR(L6="---",N6="Yes"),"---",IF(N7="Yes","SOLD",IF(-K7>J6,-J6,K7))) -> 0 | M7: =IF(OR(M6="---",N6="Yes"),"---",IF(N7="Yes",G7-H6,IF(G7-$E$6<0,G7-$E$6,0))) -> 0 | N7: =IF(O7=FALSE,"NO",IF(O7=TRUE,"YES","NO")) -> NO | O7: FALSE
A8: =E2 -> 2005 | B8: 36.55 | C8: 36.55 | D8: =G7 -> 4389 | E8: 4389 | F8: 2823 | G8: 2823 | H8: =IF(OR(H7="---",N7="Yes"),"---",IF(G8>=E8,G8,IF(G8<E8,IF(G8<$E$6,$E$6,G8),"ERROR"))) -> 2823 | I8: =IF(OR(I7="---",N7="Yes"),"---",IF(N8="NO",IF((G8-H7)>=0,G8-H7,0),"SOLD")) -> 0 | J8: =IF(OR(J7="---",N7="Yes"),"---",IF(N8="No",J7+I8+L8,"CUM NET MTM IN ADJ BASIS")) -> 1207 | K8: =IF(OR(K7="---",N7="Yes"),"---",IF(N8="YES","SOLD",IF(G8-H7<0,G8-H7,0))) -> -1566 | L8: =IF(OR(L7="---",N7="Yes"),"---",IF(N8="Yes","SOLD",IF(-K8>J7,-J7,K8))) -> -1566 | M8: =IF(OR(M7="---",N7="Yes"),"---",IF(N8="Yes",G8-H7,IF(G8-$E$6<0,G8-$E$6,0))) -> 0 | N8: NO | O8: FALSE
A9: =F2 -> 2006 | B9: 49.57 | C9: 49.57 | D9: 2823 | E9: 2823 | F9: 3507 | G9: 3507 | H9: =IF(OR(H8="---",N8="Yes"),"---",IF(G9>=E9,G9,IF(G9<E9,IF(G9<$E$6,$E$6,G9),"ERROR"))) -> 3507 | I9: =IF(OR(I8="---",N8="Yes"),"---",IF(N9="NO",IF((G9-H8)>=0,G9-H8,0),"SOLD")) -> 684 | J9: 1891 | K9: =IF(OR(K8="---",N8="Yes"),"---",IF(N9="YES","SOLD",IF(G9-H8<0,G9-H8,0))) -> 0 | L9: 0 | M9: =IF(OR(M8="---",N8="Yes"),"---",IF(N9="Yes",G9-H8,IF(G9-$E$6<0,G9-$E$6,0))) -> 0 | N9: NO | O9: FALSE
A10: =G2 -> 2007 | B10: 76.64 | C10: 76.64 | D10: 3507 | E10: 3507 | F10: 3300 | G10: 3300 | H10: =IF(OR(H9="---",N9="Yes"),"---",IF(G10>=E10,G10,IF(G10<E10,IF(G10<$E$6,$E$6,G10),"ERROR"))) -> 3300 | I10: =IF(OR(I9="---",N9="Yes"),"---",IF(N10="NO",IF((G10-H9)>=0,G10-H9,0),"SOLD")) -> 0 | J10: 1684 | K10: =IF(OR(K9="---",N9="Yes"),"---",IF(N10="YES","SOLD",IF(G10-H9<0,G10-H9,0))) -> -207 | L10: -207 | M10: =IF(OR(M9="---",N9="Yes"),"---",IF(N10="Yes",G10-H9,IF(G10-$E$6<0,G10-$E$6,0))) -> 0 | N10: NO | O10: FALSE
A11: =H2 -> 2008 | B11: 78.91 | C11: 78.91 | D11: 3300 | E11: 3300 | F11: 2500 | G11: 2500 | H11: =IF(OR(H10="---",N10="Yes"),"---",IF(G11>=E11,G11,IF(G11<E11,IF(G11<$E$6,$E$6,G11),"ERROR"))) -> 2500 | I11: =IF(OR(I10="---",N10="Yes"),"---",IF(N11="NO",IF((G11-H10)>=0,G11-H10,0),"SOLD")) -> 0 | J11: 884 | K11: =IF(OR(K10="---",N10="Yes"),"---",IF(N11="YES","SOLD",IF(G11-H10<0,G11-H10,0))) -> -800 | L11: -800 | M11: =IF(OR(M10="---",N10="Yes"),"---",IF(N11="Yes",G11-H10,IF(G11-$E$6<0,G11-$E$6,0))) -> 0 | N11: NO | O11: FALSE
A12: =I2 -> 2009 | B12: 74.58 | C12: 74.58 | D12: 2500 | E12: 2500 | F12: 2600 | G12: 2600 | H12: =IF(OR(H11="---",N11="Yes"),"---",IF(G12>=E12,G12,IF(G12<E12,IF(G12<$E$6,$E$6,G12),"ERROR"))) -> 2600 | I12: =IF(OR(I11="---",N11="Yes"),"---",IF(N12="NO",IF((G12-H11)>=0,G12-H11,0),"SOLD")) -> 100 | J12: 984 | K12: =IF(OR(K11="---",N11="Yes"),"---",IF(N12="YES","SOLD",IF(G12-H11<0,G12-H11,0))) -> 0 | L12: 0 | M12: =IF(OR(M11="---",N11="Yes"),"---",IF(N12="Yes",G12-H11,IF(G12-$E$6<0,G12-$E$6,0))) -> 0 | N12: NO | O12: FALSE
A13: =J2 -> 2010 | B13: 89.39 | C13: 89.39 | D13: 2600 | E13: 2600 | F13: 800 | G13: 800 | H13: =IF(OR(H12="---",N12="Yes"),"---",IF(G13>=E13,G13,IF(G13<E13,IF(G13<$E$6,$E$6,G13),"ERROR"))) -> 1616 | I13: =IF(OR(I12="---",N12="Yes"),"---",IF(N13="NO",IF((G13-H12)>=0,G13-H12,0),"SOLD")) -> 0 | J13: 0 | K13: =IF(OR(K12="---",N12="Yes"),"---",IF(N13="YES","SOLD",IF(G13-H12<0,G13-H12,0))) -> -1800 | L13: -984 | M13: =IF(OR(M12="---",N12="Yes"),"---",IF(N13="Yes",G13-H12,IF(G13-$E$6<0,G13-$E$6,0))) -> -816 | N13: NO | O13: FALSE
A14: =K2 -> 2011 | B14: 90.39 | C14: 90.39 | D14: 800 | E14: 800 | F14: 801 | G14: 801 | H14: =IF(OR(H13="---",N13="Yes"),"---",IF(G14>=E14,G14,IF(G14<E14,IF(G14<$E$6,$E$6,G14),"ERROR"))) -> 801 | I14: =IF(OR(I13="---",N13="Yes"),"---",IF(N14="NO",IF((G14-H13)>=0,G14-H13,0),"SOLD")) -> 0 | J14: 0 | K14: =IF(OR(K13="---",N13="Yes"),"---",IF(N14="YES","SOLD",IF(G14-H13<0,G14-H13,0))) -> -815 | L14: 0 | M14: =IF(OR(M13="---",N13="Yes"),"---",IF(N14="Yes",G14-H13,IF(G14-$E$6<0,G14-$E$6,0))) -> -815 | N14: NO | O14: FALSE
A15: =L2 -> 2012 | B15: 91.39 | C15: 91.39 | D15: 801 | E15: 801 | F15: 802 | G15: 802 | H15: =IF(OR(H14="---",N14="Yes"),"---",IF(G15>=E15,G15,IF(G15<E15,IF(G15<$E$6,$E$6,G15),"ERROR"))) -> 802 | I15: =IF(OR(I14="---",N14="Yes"),"---",IF(N15="NO",IF((G15-H14)>=0,G15-H14,0),"SOLD")) -> 1 | J15: 1 | K15: =IF(OR(K14="---",N14="Yes"),"---",IF(N15="YES","SOLD",IF(G15-H14<0,G15-H14,0))) -> 0 | L15: 0 | M15: =IF(OR(M14="---",N14="Yes"),"---",IF(N15="Yes",G15-H14,IF(G15-$E$6<0,G15-$E$6,0))) -> -814 | N15: NO | O15: FALSE
A16: =M2 -> 2013 | B16: 92.39 | C16: 92.39 | D16: 802 | E16: 802 | F16: 803 | G16: 803 | H16: =IF(OR(H15="---",N15="Yes"),"---",IF(G16>=E16,G16,IF(G16<E16,IF(G16<$E$6,$E$6,G16),"ERROR"))) -> 803 | I16: =IF(OR(I15="---",N15="Yes"),"---",IF(N16="NO",IF((G16-H15)>=0,G16-H15,0),"SOLD")) -> 1 | J16: 2 | K16: =IF(OR(K15="---",N15="Yes"),"---",IF(N16="YES","SOLD",IF(G16-H15<0,G16-H15,0))) -> 0 | L16: 0 | M16: =IF(OR(M15="---",N15="Yes"),"---",IF(N16="Yes",G16-H15,IF(G16-$E$6<0,G16-$E$6,0))) -> -813 | N16: NO | O16: FALSE
A17: =N2 -> 2014 | B17: 93.39 | C17: 93.39 | D17: 803 | E17: 803 | F17: 804 | G17: 804 | H17: =IF(OR(H16="---",N16="Yes"),"---",IF(G17>=E17,G17,IF(G17<E17,IF(G17<$E$6,$E$6,G17),"ERROR"))) -> 804 | I17: =IF(OR(I16="---",N16="Yes"),"---",IF(N17="NO",IF((G17-H16)>=0,G17-H16,0),"SOLD")) -> 1 | J17: 3 | K17: =IF(OR(K16="---",N16="Yes"),"---",IF(N17="YES","SOLD",IF(G17-H16<0,G17-H16,0))) -> 0 | L17: 0 | M17: =IF(OR(M16="---",N16="Yes"),"---",IF(N17="Yes",G17-H16,IF(G17-$E$6<0,G17-$E$6,0))) -> -812 | N17: NO | O17: FALSE
A18: =O2 -> 2015 | B18: 94.39 | C18: 94.39 | D18: 804 | E18: 804 | F18: 805 | G18: 805 | H18: =IF(OR(H17="---",N17="Yes"),"---",IF(G18>=E18,G18,IF(G18<E18,IF(G18<$E$6,$E$6,G18),"ERROR"))) -> 805 | I18: =IF(OR(I17="---",N17="Yes"),"---",IF(N18="NO",IF((G18-H17)>=0,G18-H17,0),"SOLD")) -> 1 | J18: 4 | K18: =IF(OR(K17="---",N17="Yes"),"---",IF(N18="YES","SOLD",IF(G18-H17<0,G18-H17,0))) -> 0 | L18: 0 | M18: =IF(OR(M17="---",N17="Yes"),"---",IF(N18="Yes",G18-H17,IF(G18-$E$6<0,G18-$E$6,0))) -> -811 | N18: NO | O18: FALSE
A19: =P2 -> 2016 | B19: 95.39 | C19: 95.39 | D19: 805 | E19: 805 | F19: 806 | G19: 806 | H19: =IF(OR(H18="---",N18="Yes"),"---",IF(G19>=E19,G19,IF(G19<E19,IF(G19<$E$6,$E$6,G19),"ERROR"))) -> 806 | I19: =IF(OR(I18="---",N18="Yes"),"---",IF(N19="NO",IF((G19-H18)>=0,G19-H18,0),"SOLD")) -> 1 | J19: 5 | K19: =IF(OR(K18="---",N18="Yes"),"---",IF(N19="YES","SOLD",IF(G19-H18<0,G19-H18,0))) -> 0 | L19: 0 | M19: =IF(OR(M18="---",N18="Yes"),"---",IF(N19="Yes",G19-H18,IF(G19-$E$6<0,G19-$E$6,0))) -> -810 | N19: NO | O19: FALSE
A20: =Q2 -> 2017 | B20: 96.39 | C20: 96.39 | D20: 806 | E20: 806 | F20: 807 | G20: 807 | H20: =IF(OR(H19="---",N19="Yes"),"---",IF(G20>=E20,G20,IF(G20<E20,IF(G20<$E$6,$E$6,G20),"ERROR"))) -> 807 | I20: =IF(OR(I19="---",N19="Yes"),"---",IF(N20="NO",IF((G20-H19)>=0,G20-H19,0),"SOLD")) -> 1 | J20: 6 | K20: =IF(OR(K19="---",N19="Yes"),"---",IF(N20="YES","SOLD",IF(G20-H19<0,G20-H19,0))) -> 0 | L20: 0 | M20: =IF(OR(M19="---",N19="Yes"),"---",IF(N20="Yes",G20-H19,IF(G20-$E$6<0,G20-$E$6,0))) -> -809 | N20: NO | O20: FALSE
A21: =R2 -> 2018 | B21: 97.39 | C21: 97.39 | D21: 807 | E21: 807 | F21: 808 | G21: 808 | H21: =IF(OR(H20="---",N20="Yes"),"---",IF(G21>=E21,G21,IF(G21<E21,IF(G21<$E$6,$E$6,G21),"ERROR"))) -> 808 | I21: =IF(OR(I20="---",N20="Yes"),"---",IF(N21="NO",IF((G21-H20)>=0,G21-H20,0),"SOLD")) -> 1 | J21: 7 | K21: =IF(OR(K20="---",N20="Yes"),"---",IF(N21="YES","SOLD",IF(G21-H20<0,G21-H20,0))) -> 0 | L21: 0 | M21: =IF(OR(M20="---",N20="Yes"),"---",IF(N21="Yes",G21-H20,IF(G21-$E$6<0,G21-$E$6,0))) -> -808 | N21: NO | O21: FALSE
A22: =S2 -> 2019 | B22: 98.39 | C22: 98.39 | D22: 808 | E22: 808 | F22: 809 | G22: 809 | H22: =IF(OR(H21="---",N21="Yes"),"---",IF(G22>=E22,G22,IF(G22<E22,IF(G22<$E$6,$E$6,G22),"ERROR"))) -> 809 | I22: =IF(OR(I21="---",N21="Yes"),"---",IF(N22="NO",IF((G22-H21)>=0,G22-H21,0),"SOLD")) -> 1 | J22: 8 | K22: =IF(OR(K21="---",N21="Yes"),"---",IF(N22="YES","SOLD",IF(G22-H21<0,G22-H21,0))) -> 0 | L22: 0 | M22: =IF(OR(M21="---",N21="Yes"),"---",IF(N22="Yes",G22-H21,IF(G22-$E$6<0,G22-$E$6,0))) -> -807 | N22: NO | O22: FALSE
A23: =T2 -> 2020 | B23: 99.39 | C23: 99.39 | D23: 809 | E23: 809 | F23: 810 | G23: 810 | H23: =IF(OR(H22="---",N22="Yes"),"---",IF(G23>=E23,G23,IF(G23<E23,IF(G23<$E$6,$E$6,G23),"ERROR"))) -> 810 | I23: =IF(OR(I22="---",N22="Yes"),"---",IF(N23="NO",IF((G23-H22)>=0,G23-H22,0),"SOLD")) -> 1 | J23: 9 | K23: =IF(OR(K22="---",N22="Yes"),"---",IF(N23="YES","SOLD",IF(G23-H22<0,G23-H22,0))) -> 0 | L23: 0 | M23: =IF(OR(M22="---",N22="Yes"),"---",IF(N23="Yes",G23-H22,IF(G23-$E$6<0,G23-$E$6,0))) -> -806 | N23: NO | O23: FALSE
A25: Year | B25: Highest NAV Per Unit During Calendar Year (01-01-xx to 12-31-xx) | C25: Highest Value of Fund in Calendar Year (01-01-xx to 12-31-xx) | D25: NAV Per Unit on Opening of First Business Day of Current Year (Jan) | E25: Total Nav on First Business Day of Current Year | F25: NAV (FMV) Per Unit on at Close of Last Business Day of Year, or SALE PRICE per UNIT (Dec) | G25: Total Nav Last business day of Year | H25: Adjusted Basis at EOY (or Sale Price) | I25: Section 1296 MTM (Mark to Market) Gain for the Tax Year | J25: Cumulative Net (MTM) Gains | K25: Unrealized Loss for year | L25: Deductible Loss for Year (Unreversed Inclusion) (Ordinary Loss Allowed Up to Prior MTM Gain) | M25: Potential Capital Gain/Loss (if any) | N25: Mutual Fund Sold?
A26: =C2 -> 2003 | B26: =B6/$C$3 -> 0 | C26: =C6/$C$3 -> 0 | D26: =D6/$C$3 -> 35.47749726 | E26: =D26*$C$1 -> 35.47749726 | F26: =F6/$C$3 -> 72.25027442 | G26: =F26*$C$1 -> 72.25027442 | H26: =IF(G26>=E26,G26,IF(G26<E26,IF(G26<$E$26,$E$26,G26),"ERROR")) -> 72.25027442 | I26: =IF(N26="NO",IF((G26-E26)>=0,G26-E26,0),"SOLD") -> 36.77277717 | J26: =IF(N26="Yes","SOLD",I26) -> 36.77277717 | K26: =IF(N26="Yes","SOLD",IF(G26-E26<0,G26-E26,0)) -> 0 | L26: =IF(N26="Yes","SOLD",IF(-K26>J26,-J26,K26)) -> 0 | M26: =IF(N26="Yes",H26-E26,IF(G26-$E$26<0,G26-$E$26,0)) -> 0 | N26: =N6 -> NO
A27: =D2 -> 2004 | B27: =B7/$D$3 -> 0.6436330021 | C27: =C7/$D$3 -> 0.6436330021 | D27: =D7/$D$3 -> 76.05731454 | E27: =D27*$C$1 -> 76.05731454 | F27: =F7/$D$3 -> 101.4328634 | G27: 101.4328634 | H27: =IF(OR(H26="---",N26="Yes"),"---",IF(G27>=E27,G27,IF(G27<E27,IF(G27<$E$26,$E$26,G27),"ERROR"))) -> 101.4328634 | I27: =IF(OR(I26="---",N26="Yes"),"---",IF(N27="NO",IF((G27-H26)>=0,G27-H26,0),"SOLD")) -> 29.18258899 | J27: =IF(OR(J26="---",N26="Yes"),"---",IF(N27="No",J26+I27+L27,"CUM NET MTM IN ADJ BASIS")) -> 65.95536616 | K27: =IF(OR(K26="---",N26="Yes"),"---",IF(N27="YES","SOLD",IF(G27-H26<0,G27-H26,0))) -> 0 | L27: =IF(OR(L26="---",N26="Yes"),"---",IF(N27="Yes","SOLD",IF(-K27>J26,-J26,K27))) -> 0 | M27: =IF(OR(M26="---",N26="Yes"),"---",IF(N27="Yes",G27-H26,IF(G27-$E$26<0,G27-$E$26,0))) -> 0 | N27: =N7 -> NO
A28: =E2 -> 2005 | B28: =B8/$E$3 -> 0.8131256952 | C28: =C8/$E$3 -> 0.8131256952 | D28: =D8/$E$3 -> 97.64182425 | E28: 97.64182425 | F28: =F8/$E$3 -> 62.80311457 | G28: 62.80311457 | H28: =IF(OR(H27="---",N27="Yes"),"---",IF(G28>=E28,G28,IF(G28<E28,IF(G28<$E$26,$E$26,G28),"ERROR"))) -> 62.80311457 | I28: =IF(OR(I27="---",N27="Yes"),"---",IF(N28="NO",IF((G28-H27)>=0,G28-H27,0),"SOLD")) -> 0 | J28: =IF(OR(J27="---",N27="Yes"),"---",IF(N28="No",J27+I28+L28,"CUM NET MTM IN ADJ BASIS")) -> 27.32561732 | K28: =IF(OR(K27="---",N27="Yes"),"---",IF(N28="YES","SOLD",IF(G28-H27<0,G28-H27,0))) -> -38.62974884 | L28: =IF(OR(L27="---",N27="Yes"),"---",IF(N28="Yes","SOLD",IF(-K28>J27,-J27,K28))) -> -38.62974884 | M28: =IF(OR(M27="---",N27="Yes"),"---",IF(N28="Yes",G28-H27,IF(G28-$E$26<0,G28-$E$26,0))) -> 0 | N28: NO
A29: =F2 -> 2006 | B29: =B9/$F$3 -> 1.123781455 | C29: =C9/$F$3 -> 1.123781455 | D29: =D9/$F$3 -> 63.99909318 | E29: 63.99909318 | F29: =F9/$F$3 -> 79.505781 | G29: 79.505781 | H29: =IF(OR(H28="---",N28="Yes"),"---",IF(G29>=E29,G29,IF(G29<E29,IF(G29<$E$26,$E$26,G29),"ERROR"))) -> 79.505781 | I29: =IF(OR(I28="---",N28="Yes"),"---",IF(N29="NO",IF((G29-H28)>=0,G29-H28,0),"SOLD")) -> 16.70266643 | J29: 44.02828375 | K29: =IF(OR(K28="---",N28="Yes"),"---",IF(N29="YES","SOLD",IF(G29-H28<0,G29-H28,0))) -> 0 | L29: 0 | M29: =IF(OR(M28="---",N28="Yes"),"---",IF(N29="Yes",G29-H28,IF(G29-$E$26<0,G29-$E$26,0))) -> 0 | N29: NO
A30: =G2 -> 2007 | B30: =B10/$G$3 -> 1.946659893 | C30: =C10/$G$3 -> 1.946659893 | D30: =D10/$G$3 -> 89.07797816 | E30: 89.07797816 | F30: =F10/$G$3 -> 83.82016764 | G30: 83.82016764 | H30: =IF(OR(H29="---",N29="Yes"),"---",IF(G30>=E30,G30,IF(G30<E30,IF(G30<$E$26,$E$26,G30),"ERROR"))) -> 83.82016764 | I30: =IF(OR(I29="---",N29="Yes"),"---",IF(N30="NO",IF((G30-H29)>=0,G30-H29,0),"SOLD")) -> 4.314386638 | J30: 48.34267038 | K30: =IF(OR(K29="---",N29="Yes"),"---",IF(N30="YES","SOLD",IF(G30-H29<0,G30-H29,0))) -> 0 | L30: 0 | M30: =IF(OR(M29="---",N29="Yes"),"---",IF(N30="Yes",G30-H29,IF(G30-$E$26<0,G30-$E$26,0))) -> 0 | N30: NO
A31: =H2 -> 2008 | B31: =B11/$H$3 -> 1.624331 | C31: =C11/$H$3 -> 1.624331 | D31: =D11/$H$3 -> 67.92918897 | E31: 67.92918897 | F31: =F11/$H$3 -> 51.46150679 | G31: 51.46150679 | H31: =IF(OR(H30="---",N30="Yes"),"---",IF(G31>=E31,G31,IF(G31<E31,IF(G31<$E$26,$E$26,G31),"ERROR"))) -> 51.46150679 | I31: =IF(OR(I30="---",N30="Yes"),"---",IF(N31="NO",IF((G31-H30)>=0,G31-H30,0),"SOLD")) -> 0 | J31: 15.98400954 | K31: =IF(OR(K30="---",N30="Yes"),"---",IF(N31="YES","SOLD",IF(G31-H30<0,G31-H30,0))) -> -32.35866085 | L31: -32.35866085 | M31: =IF(OR(M30="---",N30="Yes"),"---",IF(N31="Yes",G31-H30,IF(G31-$E$26<0,G31-$E$26,0))) -> 0 | N31: NO
A32: =I2 -> 2009 | B32: =B12/$I$3 -> 1.606981254 | C32: =C12/$I$3 -> 1.606981254 | D32: =D12/$I$3 -> 53.86770093 | E32: 53.86770093 | F32: =F12/$I$3 -> 56.02240896 | G32: 56.02240896 | H32: =IF(OR(H31="---",N31="Yes"),"---",IF(G32>=E32,G32,IF(G32<E32,IF(G32<$E$26,$E$26,G32),"ERROR"))) -> 56.02240896 | I32: =IF(OR(I31="---",N31="Yes"),"---",IF(N32="NO",IF((G32-H31)>=0,G32-H31,0),"SOLD")) -> 4.560902171 | J32: 20.54491171 | K32: =IF(OR(K31="---",N31="Yes"),"---",IF(N32="YES","SOLD",IF(G32-H31<0,G32-H31,0))) -> 0 | L32: 0 | M32: =IF(OR(M31="---",N31="Yes"),"---",IF(N32="Yes",G32-H31,IF(G32-$E$26<0,G32-$E$26,0))) -> 0 | N32: NO
A33: =J2 -> 2010 | B33: =B13/$J$3 -> 1.999776286 | C33: =C13/$J$3 -> 1.999776286 | D33: =D13/$J$3 -> 58.1655481 | E33: 58.1655481 | F33: =F13/$J$3 -> 17.89709172 | G33: 17.89709172 | H33: =IF(OR(H32="---",N32="Yes"),"---",IF(G33>=E33,G33,IF(G33<E33,IF(G33<$E$26,$E$26,G33),"ERROR"))) -> 35.47749726 | I33: =IF(OR(I32="---",N32="Yes"),"---",IF(N33="NO",IF((G33-H32)>=0,G33-H32,0),"SOLD")) -> 0 | J33: 0 | K33: =IF(OR(K32="---",N32="Yes"),"---",IF(N33="YES","SOLD",IF(G33-H32<0,G33-H32,0))) -> -38.12531724 | L33: -20.54491171 | M33: =IF(OR(M32="---",N32="Yes"),"---",IF(N33="Yes",G33-H32,IF(G33-$E$26<0,G33-$E$26,0))) -> -17.58040553 | N33: NO
A34: =K2 -> 2011 | B34: =B14/$K$3 -> 1.703510989 | C34: =C14/$K$3 -> 1.703510989 | D34: =D14/$K$3 -> 15.0769863 | E34: 15.0769863 | F34: =F14/$K$3 -> 15.09583253 | G34: 15.09583253 | H34: =IF(OR(H33="---",N33="Yes"),"---",IF(G34>=E34,G34,IF(G34<E34,IF(G34<$E$26,$E$26,G34),"ERROR"))) -> 15.09583253 | I34: =IF(OR(I33="---",N33="Yes"),"---",IF(N34="NO",IF((G34-H33)>=0,G34-H33,0),"SOLD")) -> 0 | J34: 0 | K34: =IF(OR(K33="---",N33="Yes"),"---",IF(N34="YES","SOLD",IF(G34-H33<0,G34-H33,0))) -> -20.38166473 | L34: 0 | M34: =IF(OR(M33="---",N33="Yes"),"---",IF(N34="Yes",G34-H33,IF(G34-$E$26<0,G34-$E$26,0))) -> -20.38166473 | N34: NO
A35: =L2 -> 2012 | B35: =B15/$L$3 -> 1.666150936 | C35: =C15/$L$3 -> 1.666150936 | D35: =D15/$L$3 -> 14.60320494 | E35: 14.60320494 | F35: =F15/$L$3 -> 14.62143616 | G35: 14.62143616 | H35: =IF(OR(H34="---",N34="Yes"),"---",IF(G35>=E35,G35,IF(G35<E35,IF(G35<$E$26,$E$26,G35),"ERROR"))) -> 14.62143616 | I35: =IF(OR(I34="---",N34="Yes"),"---",IF(N35="NO",IF((G35-H34)>=0,G35-H34,0),"SOLD")) -> 0 | J35: 0 | K35: =IF(OR(K34="---",N34="Yes"),"---",IF(N35="YES","SOLD",IF(G35-H34<0,G35-H34,0))) -> -0.4743963694 | L35: 0 | M35: =IF(OR(M34="---",N34="Yes"),"---",IF(N35="Yes",G35-H34,IF(G35-$E$26<0,G35-$E$26,0))) -> -20.8560611 | N35: NO
A36: =M2 -> 2013 | B36: =B16/$M$3 -> 1.493557809 | C36: =C16/$M$3 -> 1.493557809 | D36: =D16/$M$3 -> 12.96496767 | E36: 12.96496767 | F36: =F16/$M$3 -> 12.98113347 | G36: 12.98113347 | H36: =IF(OR(H35="---",N35="Yes"),"---",IF(G36>=E36,G36,IF(G36<E36,IF(G36<$E$26,$E$26,G36),"ERROR"))) -> 12.98113347 | I36: =IF(OR(I35="---",N35="Yes"),"---",IF(N36="NO",IF((G36-H35)>=0,G36-H35,0),"SOLD")) -> 0 | J36: 0 | K36: =IF(OR(K35="---",N35="Yes"),"---",IF(N36="YES","SOLD",IF(G36-H35<0,G36-H35,0))) -> -1.640302693 | L36: 0 | M36: =IF(OR(M35="---",N35="Yes"),"---",IF(N36="Yes",G36-H35,IF(G36-$E$26<0,G36-$E$26,0))) -> -22.49636379 | N36: NO
A37: =N2 -> 2014 | B37: =B17/$N$3 -> 1.436769231 | C37: =C17/$N$3 -> 1.436769231 | D37: =D17/$N$3 -> 12.35384615 | E37: 12.35384615 | F37: =F17/$N$3 -> 12.36923077 | G37: 12.36923077 | H37: =IF(OR(H36="---",N36="Yes"),"---",IF(G37>=E37,G37,IF(G37<E37,IF(G37<$E$26,$E$26,G37),"ERROR"))) -> 12.36923077 | I37: =IF(OR(I36="---",N36="Yes"),"---",IF(N37="NO",IF((G37-H36)>=0,G37-H36,0),"SOLD")) -> 0 | J37: 0 | K37: =IF(OR(K36="---",N36="Yes"),"---",IF(N37="YES","SOLD",IF(G37-H36<0,G37-H36,0))) -> -0.6119026971 | L37: 0 | M37: =IF(OR(M36="---",N36="Yes"),"---",IF(N37="Yes",G37-H36,IF(G37-$E$26<0,G37-$E$26,0))) -> -23.10826649 | N37: NO
A38: =O2 -> 2015 | B38: =B18/$O$3 -> 1.258533333 | C38: =C18/$O$3 -> 1.258533333 | D38: =D18/$O$3 -> 10.72 | E38: 10.72 | F38: =F18/$O$3 -> 10.73333333 | G38: 10.73333333 | H38: =IF(OR(H37="---",N37="Yes"),"---",IF(G38>=E38,G38,IF(G38<E38,IF(G38<$E$26,$E$26,G38),"ERROR"))) -> 10.73333333 | I38: =IF(OR(I37="---",N37="Yes"),"---",IF(N38="NO",IF((G38-H37)>=0,G38-H37,0),"SOLD")) -> 0 | J38: 0 | K38: =IF(OR(K37="---",N37="Yes"),"---",IF(N38="YES","SOLD",IF(G38-H37<0,G38-H37,0))) -> -1.635897436 | L38: 0 | M38: =IF(OR(M37="---",N37="Yes"),"---",IF(N38="Yes",G38-H37,IF(G38-$E$26<0,G38-$E$26,0))) -> -24.74416392 | N38: NO
A39: =P2 -> 2016 | B39: =B19/$P$3 -> 1.122235294 | C39: =C19/$P$3 -> 1.122235294 | D39: =D19/$P$3 -> 9.470588235 | E39: 9.470588235 | F39: =F19/$P$3 -> 9.482352941 | G39: 9.482352941 | H39: =IF(OR(H38="---",N38="Yes"),"---",IF(G39>=E39,G39,IF(G39<E39,IF(G39<$E$26,$E$26,G39),"ERROR"))) -> 9.482352941 | I39: =IF(OR(I38="---",N38="Yes"),"---",IF(N39="NO",IF((G39-H38)>=0,G39-H38,0),"SOLD")) -> 0 | J39: 0 | K39: =IF(OR(K38="---",N38="Yes"),"---",IF(N39="YES","SOLD",IF(G39-H38<0,G39-H38,0))) -> -1.250980392 | L39: 0 | M39: =IF(OR(M38="---",N38="Yes"),"---",IF(N39="Yes",G39-H38,IF(G39-$E$26<0,G39-$E$26,0))) -> -25.99514431 | N39: NO
A40: =Q2 -> 2017 | B40: =B20/$Q$3 -> 1.014631579 | C40: =C20/$Q$3 -> 1.014631579 | D40: =D20/$Q$3 -> 8.484210526 | E40: 8.484210526 | F40: =F20/$Q$3 -> 8.494736842 | G40: 8.494736842 | H40: =IF(OR(H39="---",N39="Yes"),"---",IF(G40>=E40,G40,IF(G40<E40,IF(G40<$E$26,$E$26,G40),"ERROR"))) -> 8.494736842 | I40: =IF(OR(I39="---",N39="Yes"),"---",IF(N40="NO",IF((G40-H39)>=0,G40-H39,0),"SOLD")) -> 0 | J40: 0 | K40: =IF(OR(K39="---",N39="Yes"),"---",IF(N40="YES","SOLD",IF(G40-H39<0,G40-H39,0))) -> -0.9876160991 | L40: 0 | M40: =IF(OR(M39="---",N39="Yes"),"---",IF(N40="Yes",G40-H39,IF(G40-$E$26<0,G40-$E$26,0))) -> -26.98276041 | N40: NO
A41: =R2 -> 2018 | B41: =B21/$R$3 -> 0.9275238095 | C41: =C21/$R$3 -> 0.9275238095 | D41: =D21/$R$3 -> 7.685714286 | E41: 7.685714286 | F41: =F21/$R$3 -> 7.695238095 | G41: 7.695238095 | H41: =IF(OR(H40="---",N40="Yes"),"---",IF(G41>=E41,G41,IF(G41<E41,IF(G41<$E$26,$E$26,G41),"ERROR"))) -> 7.695238095 | I41: =IF(OR(I40="---",N40="Yes"),"---",IF(N41="NO",IF((G41-H40)>=0,G41-H40,0),"SOLD")) -> 0 | J41: 0 | K41: =IF(OR(K40="---",N40="Yes"),"---",IF(N41="YES","SOLD",IF(G41-H40<0,G41-H40,0))) -> -0.7994987469 | L41: 0 | M41: =IF(OR(M40="---",N40="Yes"),"---",IF(N41="Yes",G41-H40,IF(G41-$E$26<0,G41-$E$26,0))) -> -27.78225916 | N41: NO
A42: =S2 -> 2019 | B42: =B22/$S$3 -> 0.8555652174 | C42: =C22/$S$3 -> 0.8555652174 | D42: =D22/$S$3 -> 7.026086957 | E42: 7.026086957 | F42: =F22/$S$3 -> 7.034782609 | G42: 7.034782609 | H42: =IF(OR(H41="---",N41="Yes"),"---",IF(G42>=E42,G42,IF(G42<E42,IF(G42<$E$26,$E$26,G42),"ERROR"))) -> 7.034782609 | I42: =IF(OR(I41="---",N41="Yes"),"---",IF(N42="NO",IF((G42-H41)>=0,G42-H41,0),"SOLD")) -> 0 | J42: 0 | K42: =IF(OR(K41="---",N41="Yes"),"---",IF(N42="YES","SOLD",IF(G42-H41<0,G42-H41,0))) -> -0.6604554865 | L42: 0 | M42: =IF(OR(M41="---",N41="Yes"),"---",IF(N42="Yes",G42-H41,IF(G42-$E$26<0,G42-$E$26,0))) -> -28.44271465 | N42: NO
A43: =T2 -> 2020 | B43: =B23/$T$3 -> 0.79512 | C43: =C23/$T$3 -> 0.79512 | D43: =D23/$T$3 -> 6.472 | E43: =D43*$C$1 -> 6.472 | F43: =F23/$T$3 -> 6.48 | G43: 6.48 | H43: =IF(OR(H42="---",N42="Yes"),"---",IF(G43>=E43,G43,IF(G43<E43,IF(G43<$E$26,$E$26,G43),"ERROR"))) -> 6.48 | I43: =IF(OR(I42="---",N42="Yes"),"---",IF(N43="NO",IF((G43-H42)>=0,G43-H42,0),"SOLD")) -> 0 | J43: 0 | K43: =IF(OR(K42="---",N42="Yes"),"---",IF(N43="YES","SOLD",IF(G43-H42<0,G43-H42,0))) -> -0.5547826087 | L43: 0 | M43: =IF(OR(M42="---",N42="Yes"),"---",IF(N43="Yes",G43-H42,IF(G43-$E$26<0,G43-$E$26,0))) -> -28.99749726 | N43: NO
A46: FOREIGN FUND NAME (as on moneycontrol.com site) | B46: FOREIGN FUND SYMBOL (as on moneycontrol.com site) | C46: FUND'S REGISTERED ADDRESS (as on moneycontrol.com's site) | E46: FOLIO OR ACCOUNT NUMBER IF APPLICABLE | F46: IF FUND NOT HELD DIRECTLY, GIVE BROKERAGE NAME WHERE YOU HOLD IT | H46: IF YOU HAVE IT IN BROKERAGE, THEN GIVE BROKERAGE FULL ADDRESS | J46: Date which Mutual Fund Account Was Bought, OR if held in Brokerage, date which Brokerage Account was Opened | K46: Date which Mutual Fund Account Was Sold, OR if held in Brokerage, date which Brokerage Account was Closed
A47: Mutual Fund Name (Enter in A47)
